{"text_format":"3","workbook":"xlsx","n_sheets":1,"sheets":["Sheet1 (2)"],"not_rendered":{"images":17,"defined_names":3},"read":"whole","date_system":"1900"}

{"sheet":"Sheet1 (2)","index":0,"n_rows":1583,"n_cols":7,"rows_kept":1583,"merged":[[0,0,0,6],[1,0,1,6]]}
["惠州市应急避难场所名册"]
["                                                                                                                     统计时间：2024年6月"]
["序号","避难场所名称","场所地址","场所层级","有效避险面积（M²)","可容纳安置人数","避险分类"]
[1,"惠州学院应急避难场所","惠州市惠城区河南岸街道演达大道46号","市级",100000,50000,"综合避险"]
[2,"惠州市华罗庚中学应急避难场所","惠州市惠城区桥东街道东江新城旭日二路1号","市级",20000,10000,"综合避险"]
[3,"惠州市下埔滨江公园应急避难场所","惠州市惠城区桥西街道惠沙堤一路","市级",100000,50000,"综合避险"]
[4,"河南岸公园应急避难场所","惠州市惠城区河南岸街道螺仔湖南街21号","市级",10000,5000,"综合避险"]
[5,"高榜山公园应急避难场所","惠州市惠城区龙丰街道红花湖路2号","市级",20000,10000,"综合避险"]
[6,"惠州奥林匹克体育场应急避难场所","惠州市惠城区河南岸街道四环南路与金山大道交叉口处","市级",100000,50000,"综合避险"]
[7,"惠州市惠港中学应急避难场所","惠州市惠城区河南岸街道演达四路3号","区级",8000,4000,"综合避险"]
[8,"惠州市惠台学校应急避难场所","惠州市惠城区江北街道江北24号小区","区级",8000,4000,"综合避险"]
[9,"三栋镇政府应急避难场所","惠州市惠城区三栋镇新兴北路66号","镇（街道）级",500,250,"综合避险"]
[10,"三栋镇中心小学应急避难场所","惠州市惠城区三栋镇演达路","村（社区）级",300,200,"综合避险"]
[11,"三栋镇达德小学应急避难场所","惠州市惠城区三栋镇沙澳村","村（社区）级",200,100,"综合避险"]
[12,"三栋镇演达中学应急避难场所","惠州市惠城区三栋镇演达中学","村（社区）级",1000,500,"综合避险"]
[13,"三栋镇福长岭小学应急避难场所","惠州市惠城区三栋镇田心村","村（社区）级",600,300,"综合避险"]
[14,"三栋镇养志小学应急避难场所","惠州市惠城区三栋镇坝山口村","村（社区）级",500,250,"综合避险"]
[15,"官桥村民委员会应急避难场所","惠州市惠城区三栋镇官桥村","村（社区）级",40,20,"综合避险"]
[16,"木沥小学应急避难场所","惠州市惠城区三栋镇木沥村","村（社区）级",100,50,"综合避险"]
[17,"坦陂小学应急避难场所","惠州市惠城区三栋镇上洞村","村（社区）级",200,100,"综合避险"]
[18,"莲塘村民委员会应急避难场所","惠州市惠城区三栋镇莲塘村","村（社区）级",40,20,"综合避险"]
[19,"演达小学应急避难场所","惠州市惠城区三栋镇鹿颈村","村（社区）级",100,50,"综合避险"]
[20,"三栋镇竹仔园村应急避难场所","惠州市惠城区三栋镇竹仔园村民委员会","村（社区）级",200,100,"综合避险"]
[21,"横沥镇横沥中学应急避难场所","惠州市惠城区横沥镇横沥中学","镇（街道）级",4000,2000,"综合避险"]
[22,"横沥镇矮陂中学应急避难场所","惠州市惠城区横沥镇矮陂中学","镇（街道）级",4000,2000,"综合避险"]
[23,"横沥镇人民政府应急避难场所","惠州市惠城区横沥镇人民政府","镇（街道）级",10000,5000,"综合避险"]
[24,"横沥镇大岚中学应急避难场所","惠州市惠城区横沥镇大岚中学","镇（街道）级",1200,600,"综合避险"]
[25,"横沥镇观音山村应急避难场所","惠州市惠城区横沥镇观音山村","村（社区）级",1800,900,"综合避险"]
[26,"横沥镇洋圳村应急避难场所","惠州市惠城区横沥镇洋圳村","村（社区）级",400,200,"综合避险"]
[27,"横沥镇土桥村应急避难场所","惠州市惠城区横沥镇土桥村","村（社区）级",400,200,"综合避险"]
[28,"横沥镇矮陂村应急避难场所","惠州市惠城区横沥镇矮陂村","村（社区）级",300,150,"综合避险"]
[29,"横沥镇增湖村应急避难场所","惠州市惠城区横沥镇增湖村","村（社区）级",400,200,"综合避险"]
[30,"横沥镇大岭村应急避难场所","惠州市惠城区横沥镇大岭村","村（社区）级",240,120,"综合避险"]
[31,"横沥镇輋洞村应急避难场所","惠州市惠城区横沥镇輋洞村","村（社区）级",400,200,"综合避险"]
[32,"横沥镇岚建村应急避难场所","惠州市惠城区横沥镇岚建村","村（社区）级",200,100,"综合避险"]
[33,"横沥镇小岚村应急避难场所","惠州市惠城区横沥镇小岚村","村（社区）级",600,300,"综合避险"]
[34,"横沥镇大利村应急避难场所","惠州市惠城区横沥镇大利村","村（社区）级",400,200,"综合避险"]
[35,"横沥镇大岚村应急避难场所","惠州市惠城区横沥镇大岚村","村（社区）级",1200,600,"综合避险"]
[36,"横沥镇沙岗村应急避难场所","惠州市惠城区横沥镇沙岗村","村（社区）级",1200,600,"综合避险"]
[37,"横沥镇岚联村应急避难场所","惠州市惠城区横沥镇岚联村","村（社区）级",1400,700,"综合避险"]
[38,"横沥镇黄沙洞村应急避难场所","惠州市惠城区横沥镇黄沙洞村","村（社区）级",2400,1200,"综合避险"]
[39,"横沥镇梅岭社区应急避难场所","惠州市惠城区横沥镇梅岭社区","村（社区）级",200,100,"综合避险"]
[40,"横沥镇横星村应急避难场所","惠州市惠城区横沥镇横星村","村（社区）级",1400,700,"综合避险"]
[41,"横沥镇马坌村应急避难场所","惠州市惠城区横沥镇马坌村","村（社区）级",200,100,"综合避险"]
[42,"横沥镇周公堂村应急避难场所","惠州市惠城区横沥镇周公堂村","村（社区）级",800,400,"综合避险"]
[43,"横沥镇中洞村应急避难场所","惠州市惠城区横沥镇中洞村","村（社区）级",200,100,"综合避险"]
[44,"横沥镇大陂头村应急避难场所","惠州市惠城区沥镇大陂头村","村（社区）级",350,175,"综合避险"]
[45,"横沥镇森柏洞村应急避难场所","惠州市惠城区横沥镇森柏洞村","村（社区）级",400,200,"综合避险"]
[46,"横沥镇柯树排村应急避难场所","惠州市惠城区横沥镇柯树排村","村（社区）级",400,200,"综合避险"]
[47,"横沥镇南门村应急避难场所","惠州市惠城区横沥镇南门村","村（社区）级",800,400,"综合避险"]
[48,"横沥镇潭头村应急避难场所","惠州市惠城区横沥镇潭头村","村（社区）级",300,150,"综合避险"]
[49,"横沥镇蔗埔村应急避难场所","惠州市惠城区横沥镇蔗埔村","村（社区）级",240,120,"综合避险"]
[50,"横沥镇连塘村应急避难场所","惠州市惠城区横沥镇连塘村","村（社区）级",200,100,"综合避险"]
[51,"横沥镇排沙村应急避难场所","惠州市惠城区横沥镇排沙村","村（社区）级",800,400,"综合避险"]
[52,"横沥镇泰安村应急避难场所","惠州市惠城区横沥镇泰安村","村（社区）级",1200,600,"综合避险"]
[53,"横沥镇马岭村应急避难场所","惠州市惠城区横沥镇马岭村","村（社区）级",400,200,"综合避险"]
[54,"横沥镇新村村应急避难场所","惠州市惠城区横沥镇新村村","村（社区）级",1300,650,"综合避险"]
[55,"横沥镇蓝村村应急避难场所","惠州市惠城区横沥镇蓝村村","村（社区）级",1000,500,"综合避险"]
[56,"横沥镇天罡村应急避难场所","惠州市惠城区横沥镇天罡村","村（社区）级",800,400,"综合避险"]
[57,"横沥镇墨园村应急避难场所","惠州市惠城区横沥镇墨园村","村（社区）级",1000,500,"综合避险"]
[58,"横沥镇水东村应急避难场所","惠州市惠城区横沥镇水东村","村（社区）级",1000,500,"综合避险"]
[59,"横沥镇霞塱村应急避难场所","惠州市惠城区横沥镇霞塱村","村（社区）级",200,150,"综合避险"]
[60,"横沥镇建安村应急避难场所","惠州市惠城区横沥镇建安村","村（社区）级",400,150,"综合避险"]
[61,"横沥镇翟村村应急避难场所","惠州市惠城区横沥镇翟村","村（社区）级",1000,500,"综合避险"]
[62,"横沥镇福元村应急避难场所","惠州市惠城区横沥镇福元村","村（社区）级",1000,500,"综合避险"]
[63,"横沥镇岭下村应急避难场所","惠州市惠城区横沥镇岭下村","村（社区）级",120,60,"综合避险"]
[64,"横沥镇欧陂村应急避难场所","惠州市惠城区横沥镇欧陂村","村（社区）级",200,100,"综合避险"]
[65,"芦洲镇龙颈小学应急避难场所","惠州市惠城区芦洲镇龙颈村龙颈小学","镇（街道）级",2000,1000,"综合避险"]
[66,"芦洲镇横江村小学应急避难场所","惠州市惠城区芦洲镇横江村胡屋塘边","镇（街道）级",2000,1000,"综合避险"]
[67,"芦洲镇芦洲学校应急避难场所","惠州市惠城区芦洲镇双洲社区双洲路","镇（街道）级",20000,10000,"综合避险"]
[68,"芦洲镇大兴村应急避难场所","惠州市惠城区芦洲镇大兴村村民委员会","村（社区）级",160,80,"综合避险"]
[69,"芦洲镇芦村村应急避难场所","惠州市惠城区芦洲镇芦村村民委员会","村（社区）级",1300,650,"综合避险"]
[70,"芦洲镇岚石村应急避难场所","惠州市惠城区芦洲镇岚石村村民委员会","村（社区）级",650,325,"综合避险"]
[71,"芦洲镇军田村应急避难场所","惠州市惠城区芦洲镇军田村村民委员会","村（社区）级",240,120,"综合避险"]
[72,"芦洲镇群建村应急避难场所","惠州市惠城区芦洲镇群建村村民委员会","村（社区）级",200,100,"综合避险"]
[73,"芦洲镇香园村应急避难场所","惠州市惠城区芦洲镇香园村村民委员会","村（社区）级",200,100,"综合避险"]
[74,"芦洲镇横岭村避难场所","惠州市惠城区芦洲镇横岭村民委员会广场","村（社区）级",200,100,"综合避险"]
[75,"芦洲镇东胜村应急避难场所","惠州市惠城区芦洲镇东胜村民委员会东胜村二组","村（社区）级",1100,650,"综合避险"]
[76,"芦洲镇岚星小学应急避难场所","惠州市惠城区芦洲镇岚星村岚星小学","村（社区）级",600,200,"综合避险"]
[77,"芦洲镇岚派村应急避难场所","惠州市惠城区芦洲镇岚派村村民委员会","村（社区）级",360,180,"综合避险"]
[78,"芦洲镇富星村应急避难场所","惠州市惠城区芦洲镇富星村村民委员会","村（社区）级",500,300,"综合避险"]
[79,"芦洲镇岚中村应急避难场所","惠州市惠城区芦洲镇岚中村民委员会","村（社区）级",320,200,"综合避险"]
[80,"芦洲镇岚田村应急避难场所","惠州市惠城区芦洲镇岚田村民委员会","村（社区）级",1300,800,"综合避险"]
[81,"芦洲镇三洲村应急避难场所","惠州市惠城区芦洲镇三洲村村民委员会","村（社区）级",1000,600,"综合避险"]
[82,"芦洲镇上青村应急避难场所","惠州市惠城区芦洲镇上青村村民委员会","村（社区）级",350,200,"综合避险"]
[83,"汝湖镇汝湖中心小学应急避难场所","惠州市惠城区汝湖镇石路街1号","镇（街道）级",5000,3300,"综合避险"]
[84,"汝湖镇汝湖中学应急避难场所","惠州市惠城区汝湖镇石路街1号","镇（街道）级",5000,3300,"综合避险"]
[85,"汝湖镇东亚村应急避难场所","惠州市惠城区汝湖镇东亚村民委员会","村（社区）级",500,300,"综合避险"]
[86,"汝湖镇虾村村应急避难场所","惠州市惠城区汝湖镇虾村村民委员会","村（社区）级",500,300,"综合避险"]
[87,"汝湖镇新光村应急避难场所","惠州市惠城区汝湖镇新光村民委员会","村（社区）级",700,500,"综合避险"]
[88,"汝湖镇大良村应急避难场所","惠州市惠城区汝湖镇大良村民委员会","村（社区）级",700,500,"综合避险"]
[89,"汝湖镇上围村应急避难场所","惠州市惠城区汝湖镇上围村民委员会","村（社区）级",400,200,"综合避险"]
[90,"汝湖镇下围村应急避难场所","惠州市惠城区汝湖镇下围村民委员会","村（社区）级",400,200,"综合避险"]
[91,"汝湖镇围仔村应急避难场所","惠州市惠城区汝湖镇围仔村民委员会","村（社区）级",500,300,"综合避险"]
[92,"汝湖镇古仙村应急避难场所","惠州市惠城区汝湖镇古仙村民委员会","村（社区）级",700,500,"综合避险"]
[93,"汝湖镇房村村应急避难场所","惠州市惠城区汝湖镇房村村民委员会","村（社区）级",600,400,"综合避险"]
[94,"汝湖镇黄村村应急避难场所","惠州市惠城区汝湖镇黄村村民委员会","村（社区）级",400,200,"综合避险"]
[95,"汝湖镇仍西村应急避难场所","惠州市惠城区汝湖镇仍西村民委员会","村（社区）级",500,300,"综合避险"]
[96,"汝湖镇埔头村应急避难场所","惠州市惠城区汝湖镇埔头村民委员会","村（社区）级",500,300,"综合避险"]
[97,"汝湖镇黄埔村应急避难场所","惠州市惠城区汝湖镇黄埔村民委员会","村（社区）级",500,300,"综合避险"]
[98,"汝湖镇仍中村应急避难场所","惠州市惠城区汝湖镇仍中村民委员会","村（社区）级",400,200,"综合避险"]
[99,"汝湖镇南新村应急避难场所","惠州市惠城区汝湖镇南新村民委员会","村（社区）级",500,300,"综合避险"]
[100,"汝湖镇村尾村应急避难场所","惠州市惠城区汝湖镇村尾村民委员会","村（社区）级",300,200,"综合避险"]
[101,"汝湖镇上仍头村应急避难场所","惠州市惠城区汝湖镇上仍头村民委员会","村（社区）级",400,200,"综合避险"]
[102,"汝湖镇沙洲尾村应急避难场所","惠州市惠城区汝湖镇沙洲尾村民委员会","村（社区）级",400,200,"综合避险"]
[103,"汝湖镇茶径村应急避难场所","惠州市惠城区汝湖镇茶径村民委员会","村（社区）级",500,300,"综合避险"]
[104,"汝湖镇仍图社区应急避难场所","惠州市惠城区汝湖镇仍图社区","村（社区）级",300,200,"综合避险"]
[105,"汝湖镇水上社区应急避难场所","惠州市惠城区汝湖镇水上社区","村（社区）级",300,200,"综合避险"]
[106,"汝湖镇白鹭湖小学应急避难场所","惠州市惠城区汝湖镇白鹭湖社区","村（社区）级",500,300,"综合避险"]
[107,"马安中学应急避难场所","惠州市惠城区马安镇乡道G66","镇（街道）级",5000,3000,"综合避险"]
[108,"马安镇中心小学应急避难场所","惠州市惠城区马安镇新安街70号","镇（街道）级",10000,5000,"综合避险"]
[109,"马安镇新湖社区应急避难场所","惠州市惠城区马安镇新湖社区服务中心","村（社区）级",300,150,"综合避险"]
[110,"马安镇群乐社区应急避难场所","惠州市惠城区马安镇群乐社区服务中心","村（社区）级",150,100,"综合避险"]
[111,"马安镇江安社区应急避难场所","惠州市惠城区马安镇江安社区服务中心","村（社区）级",150,100,"综合避险"]
[112,"马安镇马安社区应急避难场所","惠惠州市城区马安镇马安社区服务中心","村（社区）级",200,130,"综合避险"]
[113,"马安镇上寮村应急避难场所","惠州市惠城区上寮村","村（社区）级",500,300,"综合避险"]
[114,"马安镇新乐村应急避难场所","惠州市惠城区马安镇新乐村村民委员会","村（社区）级",450,300,"综合避险"]
[115,"马安镇柏田村应急避难场所","惠州市惠城区马安镇柏田村","村（社区）级",700,450,"综合避险"]
[116,"马安镇新群村应急避难场所","惠州市惠城区马安镇新楼村村民委员会","村（社区）级",500,300,"综合避险"]
[117,"马安镇木棉村应急避难场所","惠州市惠城区马安镇木棉村村民委员会","村（社区）级",300,200,"综合避险"]
[118,"马安镇黄严村应急避难场所","惠州市惠城区马安镇黄严村村民委员会","村（社区）级",300,150,"综合避险"]
[119,"马安镇龙塘村应急避难场所","惠州市惠城区马安镇龙塘村村民委员会","村（社区）级",500,320,"综合避险"]
[120,"马安镇横河村应急避难场所","惠惠州市城区马安镇横河村村民委员会","村（社区）级",500,300,"综合避险"]
[121,"马安镇马安村应急避难场所","惠州市惠城区马安镇马安村村民委员会","村（社区）级",200,120,"综合避险"]
[122,"马安镇水贝村应急避难场所","惠惠州市城区马安镇水贝村村民委员会","村（社区）级",600,400,"综合避险"]
[123,"马安镇新楼村应急避难场所","惠州市惠城区马安镇新楼村村民委员会","村（社区）级",500,320,"综合避险"]
[124,"马安镇下良村应急避难场所","惠州市惠城区马安镇下良村村民委员会","村（社区）级",800,500,"综合避险"]
[125,"马安镇双寮村应急避难场所","惠州市惠城区马安镇双寮村村民委员会","村（社区）级",500,300,"综合避险"]
[126,"水口中心小学应急避难场所","惠州市惠城区水口街道育才路78号","镇（街道）级",10000,5000,"综合避险"]
[127,"水口文化广场应急避难场所","惠州市惠城区水口街道文化广场","镇（街道）级",132000,50000,"综合避险"]
[128,"合生实验学校应急避难场所","惠州市惠城区水口街道冠路与德政大道南路交叉口往东150米","镇（街道）级",20000,10000,"综合避险"]
[129,"上村村民委员会应急避难场所","惠州市惠城区水口街道上村村民委员会","村（社区）级",500,333,"综合避险"]
[130,"万年村民委员会应急避难场所","惠州市惠城区水口街道万年小学东侧","村（社区）级",600,400,"综合避险"]
[131,"澳背小学应急避难场所","惠州市惠城区水口街道澳背小学","村（社区）级",2000,1000,"综合避险"]
[132,"张村村民委员会应急避难场所","惠州市惠城区水口街道张村村民委员会","村（社区）级",150,100,"综合避险"]
[133,"龙湖社区应急避难场所","惠州市惠城区水口街道德民街8号","村（社区）级",500,333,"综合避险"]
[134,"湖滨学校应急避难场所","惠州市惠城区水口街道湖滨路115号","村（社区）级",10000,5000,"综合避险"]
[135,"水口新民村应急避难场所","惠州市惠城区水口街道新民村民委员会","村（社区）级",600,400,"综合避险"]
[136,"下源村民委员会应急避难场所","惠州市惠城区水口街道下源村民委员会","村（社区）级",600,400,"综合避险"]
[137,"下源小学应急避难场所","惠州市惠城区水口街道下源小学","村（社区）级",6000,3000,"综合避险"]
[138,"鹿岗小学应急避难场所","惠州市惠城区水口街道鹿岗小学","村（社区）级",2000,1000,"综合避险"]
[139,"鹿岗村民委员会应急避难场所","惠州市惠城区水口街道鹿岗村民委员会","村（社区）级",120,60,"综合避险"]
[140,"东兴社区应急避难场所","惠州市惠城区水口街道东兴社区","村（社区）级",400,250,"综合避险"]
[141,"水口村民委员会应急避难场所","惠州市惠城区水口街道水口村民委员会","村（社区）级",550,350,"综合避险"]
[142,"水口小学应急避难场所","惠州市惠城区水口街道水口小学","村（社区）级",10000,5000,"综合避险"]
[143,"陈布小学应急避难场所","惠州市惠城区水口街道陈布大道北50米","村（社区）级",2000,1000,"综合避险"]
[144,"三联小学应急避难场所","惠州市惠城区水口街道227县道西100米","村（社区）级",2000,1000,"综合避险"]
[145,"洛塘小学应急避难场所","惠州市惠城区水口街道洛塘村民委员会元背63号","村（社区）级",4000,2000,"综合避险"]
[146,"湖滨公园应急避难场所","惠州市惠城区水口街道湖滨路与德政东三路交汇处","村（社区）级",19000,5000,"综合避险"]
[147,"龙津小学应急避难场所","惠州市惠城区水口街道龙津小学","村（社区）级",10000,5000,"综合避险"]
[148,"联和小学应急避难场所","惠州市惠城区水口街道联和小学","村（社区）级",2000,1000,"综合避险"]
[149,"蓬陵小学应急避难场所","惠州市惠城区水口街道蓬陵小学","村（社区）级",500,250,"综合避险"]
[150,"三联村民委员会应急避难场所","惠州市惠城区水口街道三联村民委员会","村（社区）级",1000,500,"综合避险"]
[151,"花海幼儿园应急避难场所","惠州市惠城区水口街道227县道姚村花海幼儿园","村（社区）级",1300,650,"综合避险"]
[152,"毅成小学应急避难场所","惠州市惠城区水口街道毅成小学","村（社区）级",1500,1000,"综合避险"]
[153,"大和村民委员会应急避难场所","惠州市惠城区水口街道大和村民委员会","村（社区）级",600,400,"综合避险"]
[154,"姚村村民委员会应急避难场所","惠州市惠城区水口街道姚村村民委员会","村（社区）级",600,400,"综合避险"]
[155,"绿杨小学应急避难场所","惠州市惠城区水口街道绿杨小学","村（社区）级",5000,2500,"综合避险"]
[156,"万年小学应急避难场所","惠州市惠城区水口街道万年小学","村（社区）级",8000,4000,"综合避险"]
[157,"上村小学应急避难场所","惠州市惠城区水口街道上村小学","村（社区）级",7000,3500,"综合避险"]
[158,"湖溪社区应急避难场所","惠州市惠城区水口街道湖溪社区","村（社区）级",1350,900,"综合避险"]
[159,"联和村民委员会应急避难场所","惠州市惠城区水口街道联和村民委员会","村（社区）级",3300,2000,"综合避险"]
[160,"张村小学应急避难场所","惠州市惠城区水口街道张村小学","村（社区）级",5000,2500,"综合避险"]
[161,"万年老人协会应急避难场所","惠州市惠城区水口街道万年村老人协会","村（社区）级",300,200,"综合避险"]
[162,"澳背村民委员会应急避难场所","惠州市惠城区水口街道澳背村民委员会","村（社区）级",1500,1000,"综合避险"]
[163,"龙津村民委员会应急避难场所","惠州市惠城区水口街道龙津村民委员会","村（社区）级",3000,2000,"综合避险"]
[164,"蓬陵村民委员会应急避难场所","惠州市惠城区水口街道蓬陵村民委员会","村（社区）级",3000,1500,"综合避险"]
[165,"万卢村民委员会应急避难场所","惠州市惠城区水口街道万卢村民委员会","村（社区）级",2000,1000,"综合避险"]
[166,"湖滨社区应急避难场所","惠州市惠城区水口街道湖滨社区居民委员会","村（社区）级",600,400,"综合避险"]
[167,"霞村小学应急避难场所","惠州市惠城区水口街道霞村小学","村（社区）级",4000,2000,"综合避险"]
[168,"洛塘村民委员会应急避难场所","惠州市惠城区水口街道洛塘村民委员会","村（社区）级",7000,3500,"综合避险"]
[169,"樟霞村民委员会应急避难场所","惠州市惠城区水口街道樟霞村民委员会","村（社区）级",450,300,"综合避险"]
[170,"大和小学应急避难场所","惠州市惠城区水口街道大和小学","村（社区）级",2000,1000,"综合避险"]
[171,"万卢小学应急避难场所","惠州市惠城区水口街道万卢小学","村（社区）级",7000,3500,"综合避险"]
[172,"鹿江公园应急避难场所","惠州市惠城区桥东街道长湖西路东金山立交西","镇（街道）级",20000,10000,"综合避险"]
[173,"东平公园应急避难场所","惠州市惠城区桥东街道东湖西路与惠州大道交汇处","镇（街道）级",4000,2000,"综合避险"]
[174,"惠州市第二中学应急避难场所","惠州市惠城区桥东街道菜园墩26号","镇（街道）级",4000,2000,"综合避险"]
[175,"惠州市东湖双语学校应急避难场所","惠州市惠城区桥东街道东湖六街92号","镇（街道）级",4000,2000,"综合避险"]
[176,"惠州市第四小学应急避难场所","惠州市惠城区桥东街道花园后街与马路下街交叉路口","村（社区）级",370,30,"综合避险"]
[177,"京师实验小学应急避难场所","惠州市惠城区桥东街道荷兰水乡东平二街2号","村（社区）级",4000,2000,"综合避险"]
[178,"惠州市第十小学应急避难场所","惠州市惠城区桥东街道东湖北路1号","村（社区）级",2000,1000,"综合避险"]
[179,"惠州市长湖苑小学应急避难场所","惠州市惠城区桥东街道长湖南路2号","村（社区）级",450,200,"综合避险"]
[180,"东湖六号小区应急避难场所","惠州市惠城区桥东街道东湖六号小区616栋2楼","村（社区）级",250,50,"综合避险"]
[181,"东坡小学应急避难场所","桥惠州市惠城区东街道桥东学背街119号","村（社区）级",2000,1000,"综合避险"]
[182,"文头岭村民委员会应急避难场所","惠州市惠城区桥东街道中海水岸城珊瑚湾东升一路113号商铺二楼","村（社区）级",1000,500,"综合避险"]
[183,"惠州市第六小学应急避难场所","惠州市惠城区桥东街道新民后街46号","村（社区）级",2000,1000,"综合避险"]
[184,"水东东社区应急避难场所","惠州市惠城区桥东街道水东东北面小区","村（社区）级",180,90,"综合避险"]
[185,"惠州市瑞昌大厦应急避难场所","桥惠州市惠城区西街道南坛北西堤路3号","镇（街道）级",20000,10000,"综合避险"]
[186,"惠州市中山公园应急避难场所","惠州市惠城区桥西街道中山公园119号","镇（街道）级",5000,2500,"综合避险"]
[187,"北门街社区居民委员会应急避难场所","惠州市惠城区桥西街道府前横街9号","村（社区）级",500,250,"综合避险"]
[188,"数码街社区应急避难场所","惠州市惠城区桥西街道下埔南三街2号二楼","村（社区）级",250,125,"综合避险"]
[189,"更楼下社区居民委员会应急避难场所","惠州市惠城区桥西街道惠州市惠城区后所街8号","村（社区）级",120,60,"综合避险"]
[190,"桥西街道南坛社区应急避难场所","惠州市惠城区桥西街道南坛北路麻渣下6号2-3层","村（社区）级",600,300,"综合避险"]
[191,"桥西街道百萃园公园应急避难场所","惠州市惠城区桥西街道明珠路1号","村（社区）级",1000,500,"综合避险"]
[192,"惠州市阳光名邸应急避难场所","惠州市惠城区桥西街道惠城区西堤路5号","村（社区）级",2000,1500,"综合避险"]
[193,"惠州市明辉楼小区应急避难场所","惠州市惠城区桥西街道惠城区西堤路1号","村（社区）级",3000,2000,"综合避险"]
[194,"金雅苑龙船街13号小区地下车库应急避难场所","惠州市惠城区桥西街道惠城区龙船街13号小区地下车库","村（社区）级",2800,1500,"综合避险"]
[195,"惠州市亿豪园应急避难场所","惠州市惠城区桥西街道惠城区惠沙堤7号","村（社区）级",1000,500,"综合避险"]
[196,"惠州市机关幼儿园应急避难场所","惠州市惠城区桥西街道惠城区紫西岭二巷","村（社区）级",2000,1000,"综合避险"]
[197,"惠州市第一中学下浦校区应急避难场所","惠州市惠城区桥西街道惠城区下埔南三街四号","村（社区）级",10000,5000,"综合避险"]
[198,"惠州市南坛小学应急避难场所","惠州市惠城区桥西街道南新路21号","村（社区）级",4000,2000,"综合避险"]
[199,"惠州市下埔小学应急避难场所","惠州市惠城区桥西街道下埔北三街5号","村（社区）级",6000,3000,"综合避险"]
[200,"惠州市实验小学应急避难场所","惠州市惠城区桥西街道惠城区马庄路25号","村（社区）级",2000,1000,"综合避险"]
[201,"惠州市第十一小学应急避难场所","惠州市惠城区桥西街道惠城区水门直街22号","村（社区）级",2000,1000,"综合避险"]
[202,"惠州市第九小学应急避难场所","惠州市惠城区桥西街道更楼下大菜园1号","村（社区）级",600,300,"综合避险"]
[203,"尔雅巷社区居民委员会应急避难场所","惠州市惠城区桥西街道惠城区环城西二路38号","村（社区）级",100,50,"综合避险"]
[204,"南湖社区居民委员会应急避难场所","惠州市惠城区桥西街道麦地路35号南湖花园C栋1楼","村（社区）级",100,50,"综合避险"]
[205,"桥西街道横江社区居民委员会","惠州市惠城区桥西街道横江二路16号","村（社区）级",120,60,"综合避险"]
[206,"紫西岭社区居民委员会应急避难场所","惠州市惠城区桥西街道南坛北路32号","村（社区）级",250,150,"综合避险"]
[207,"下埔社区居民委员会应急避难场所","惠州市惠城区桥西街道下埔社区居民委员会","村（社区）级",150,75,"综合避险"]
[208,"麦地社区应急避难场所","惠州市惠城区桥西街道麦地社区居民委员会","村（社区）级",150,75,"综合避险"]
[209,"花边岭社区应急避难场所","惠州市惠城区桥西街道麦兴路35号华润花园嘉华楼3楼","村（社区）级",300,200,"综合避险"]
[210,"惠州市麦地小学应急避难场所","惠州市惠城区桥西街道麦地东路12号","村（社区）级",4000,2000,"综合避险"]
[211,"望江公园应急避难场所","惠州市惠城区江北街道惠民大道与三环路交汇处西北侧","镇（街道）级",32000,16000,"综合避险"]
[212,"新湖公园应急避难场所","惠州市惠城区江北街道新沥路与新旺横街交叉口正西方向166米","镇（街道）级",5000,2500,"综合避险"]
[213,"惠州市富民小学应急避难难场所","惠州市惠城区江北街道富民路4号","镇（街道）级",4000,2000,"综合避险"]
[214,"惠州市第一小学应急避难场所","惠州市惠城区江北街道水北六路1号","镇（街道）级",4000,2000,"综合避险"]
[215,"江北街道惠新社区应急避难场所","惠州市惠城区江北街道惠民大道89号国汇山8栋外围首层","村（社区）级",200,100,"综合避险"]
[216,"江北街道清湖社区应急避难场所","惠州市惠城区江北街道万科二期北门5栋清湖社区党群服务中心","村（社区）级",300,150,"综合避险"]
[217,"江北街道望江村应急避难场所","惠州市惠城区江北街道望江过沥路237号","村（社区）级",200,100,"综合避险"]
[218,"江北街道三新村应急避难场所","惠州市惠城区江北街道三新村新村会所","村（社区）级",1000,500,"综合避险"]
[219,"江北街道云山社区应急避难场所","惠州市惠城区江北街道云山花园路1号TCL雅园1号商铺","村（社区）级",205,100,"综合避险"]
[220,"江北街道水北新村应急避难场所","惠州市惠城区江北街道水北新村一区14栋前广场","村（社区）级",500,250,"综合避险"]
[221,"江北街道惠桥社区应急避难场所","惠州市惠城区江北街道文昌二路2号金裕碧水湾三景园D3栋负一楼","村（社区）级",180,90,"综合避险"]
[222,"江北街道江城社区应急避难场所","惠州市惠城区江北街道新岗北二路一号16栋二层（外围）","村（社区）级",200,100,"综合避险"]
[223,"江北街道期湖塘社区应急避难场所","惠州市惠城区江北街道云山东路32号丽日君颐家园1栋101号二层","村（社区）级",200,100,"综合避险"]
[224,"江南学校应急避难场所","惠州市惠城区江南街道梅湖路5号","镇（街道）级",1500,750,"综合避险"]
[225,"七联小学应急避难场所","惠州市惠城区江南街道梅湖路16号","镇（街道）级",1000,500,"综合避险"]
[226,"下角小学应急避难场所","惠州市惠城区江南街道祝屋六巷北门1号","镇（街道）级",1000,500,"综合避险"]
[227,"江南街道埔前社区应急避难场所","惠州市惠城区江南街道江边路16号","村（社区）级",100,50,"综合避险"]
[228,"江南街道园岭社区应急避难场所","惠州市惠城区江南街道圆岭东路丽日·湖逸家园","村（社区）级",100,50,"综合避险"]
[229,"江南街道亚婆田社区应急避难场所","惠州市惠城区江南街道产菱湖路红军楼小区东南侧约40米","村（社区）级",100,50,"综合避险"]
[230,"江南街道祝屋巷社区应急避难场所","惠州市惠城区江南街道丰山路36号","村（社区）级",100,50,"综合避险"]
[231,"江南街道共建社区应急避难场所","惠州市惠城区江南街道滨江西一路丽水湾6栋一楼","村（社区）级",100,50,"综合避险"]
[232,"江南街道上湖塘社区应急避难场所","惠州市惠城区江南街道下角中路28号","村（社区）级",100,50,"综合避险"]
[233,"江南街道下角村民委员会应急避难场所","惠州市惠城区江南街道下角南路4号","村（社区）级",150,80,"综合避险"]
[234,"江南街道七联村民委员会应急避难场所","惠州市惠城区江南街道梅湖路16号","村（社区）级",150,80,"综合避险"]
[235,"惠州市第四中学应急避难场所","惠州市惠城区龙丰街道共联路2号","镇（街道）级",4000,2000,"综合避险"]
[236,"惠州市实验中学应急避难场所","惠州市惠城区龙丰街道金峰社区","镇（街道）级",10000,5000,"综合避险"]
[237,"二十六小学应急避难场所","惠州市惠城区龙丰街道鹅岭南路117号嘉逸圆小区内","村（社区）级",2000,1000,"综合避险"]
[238,"惠州市第二十五小学应急避难场所","惠州市惠城区龙丰街道共联路17号","村（社区）级",3000,1500,"综合避险"]
[239,"花园水社区应急避难场所","惠州市惠城区龙丰街道花园水社区鹅岭南路23号","村（社区）级",250,160,"综合避险"]
[240,"金迪外国语学校应急避难场所","惠州市惠城区龙丰街道鹅岭南路110号金迪星苑小区内","村（社区）级",4000,2000,"综合避险"]
[241,"龙丰街道黄塘社区应急避难场所","惠州市惠城区龙丰街道黄塘路19号","村（社区）级",600,300,"综合避险"]
[242,"惠州市第七小学应急避难场所","惠州市惠城区龙丰街道黄塘路9号","村（社区）级",1200,700,"综合避险"]
[243,"惠州市上排小学应急避难场所","惠州市惠城区龙丰街道黄屋路2号","村（社区）级",6000,3000,"综合避险"]
[244,"龙丰街道瑶芳花园应急避难场所","惠州市惠城区龙丰街道大岭路31号","村（社区）级",800,100,"综合避险"]
[245,"金山湖公园急避难场所","惠州市惠城区河南岸街道环湖一路","镇（街道）级",750000,350000,"综合避险"]
[246,"成语公园应急避难场所","惠州市惠城区河南岸街道低地二路","镇（街道）级",25000,12500,"综合避险"]
[247,"惠城区第十一小学方直校区应急避难场所","惠州市惠城区河南岸街道金山大道2号","村（社区）级",2000,1000,"综合避险"]
[248,"惠城区湖山小学应急避难场所","惠州市惠城区河南岸街道湖山村湖山村上吕组327号","村（社区）级",2000,1000,"综合避险"]
[249,"惠城区惠南学校应急避难场所","惠州市惠城区河南岸街道学府社区体育南路2号","村（社区）级",10000,5000,"综合避险"]
[250,"惠城区中建麦绍棠学校应急避难场所","惠州市惠城区河南岸街道金湖社区上一组五巷与南岸路交叉口东南50米","村（社区）级",10000,5000,"综合避险"]
[251,"惠城区南山学校应急避难场所","惠城区河南岸街道金湖社区惠兴路与演达二路交叉路口往北约160米","村（社区）级",10000,5000,"综合避险"]
[252,"惠城区河南岸中心小学应急避难场所","惠州市惠城区河南岸街道南城社区斑樟湖路81号","村（社区）级",10000,5000,"综合避险"]
[253,"惠州市第五小学应急避难场所","惠州市惠城区河南岸街道银岗岭社区白泥路22号","村（社区）级",4000,2000,"综合避险"]
[254,"惠城区东江小学应急避难场所","惠州市惠城区河南岸街道斑樟湖三横街53号","村（社区）级",5000,2500,"综合避险"]
[255,"惠城区和地小学应急避难场所","惠州市惠城区河南岸街道和地路三巷石湖苑东北侧约60米","村（社区）级",2000,1000,"综合避险"]
[256,"三十九学校应急避难场所","惠州市惠城区小金口街道金龙大道旁","镇（街道）级",20000,10000,"综合避险"]
[257,"小金口街道综合文化站应急避难场所","惠州市惠城区小金口街道综合文化站","镇（街道）级",4000,2000,"综合避险"]
[258,"金宝山庄应急避难场所","惠州市惠城区小金口街道金宝山庄","村（社区）级",1000,500,"综合避险"]
[259,"小铁村兴隆文化室应急避难场所","惠州市惠城区小金口街道小铁村兴隆文化室","村（社区）级",800,400,"综合避险"]
[260,"柏岗村民委员会应急避难所","惠州市惠城区小金口街道柏岗路北178号","村（社区）级",1600,800,"综合避险"]
[261,"青塘小学应急避难场所","惠州市惠城区小金口街道青塘小学内","村（社区）级",3000,1500,"综合避险"]
[262,"小金口街道金鸡村应急避难场所","惠州市惠城区小金口街道丰奎路1号","村（社区）级",2000,1000,"综合避险"]
[263,"九龙小学应急避难场所","惠州市惠城区小金口街道九龙小学内","村（社区）级",2000,1000,"综合避险"]
[264,"惠阳区市政广场应急避难场所","惠阳区淡水街道松岭社区金惠大道","区级",106819,20000,"室外避险"]
[265,"淡水滨河社区居民委员会应急避难场所","惠州市惠阳区淡水街道内环路保利阳光城48-190号","村（社区）级",784,392,"室内避险"]
[266,"淡水街道第八小学应急避难场所","惠州市惠阳区淡水街道体育文化路7号","镇（街道）级",8468,4234,"综合避险"]
[267,"淡水街道半岛学校应急避难场所","惠州市惠阳区淡水街道金秋大道260号","镇（街道）级",9200,4600,"综合避险"]
[268,"淡水街道第十小学应急避难场所","惠州市惠阳区淡水街道内环路保利阳光城3期","镇（街道）级",7804,3902,"综合避险"]
[269,"淡水街道善培小学应急避难场所","惠州市惠阳区淡水街道洋纳村纳善路56号","镇（街道）级",2800,1400,"综合避险"]
[270,"淡水街道洋纳村民委员会应急避难场所","惠州市惠阳区淡水街道洋纳小区1-1","村（社区）级",450,225,"室内避险"]
[271,"淡水草洋社区居民委员会应急避难场所","惠州市惠阳区淡水街道承修三路二巷19号","村（社区）级",100,50,"综合避险"]
[272,"淡水石桥村民委员会应急避难场所","惠州市惠阳区淡水街道石桥小学正对面","村（社区）级",150,75,"综合避险"]
[273,"淡水街道石桥小学应急避难场所","惠州市惠阳区淡水街道富源中路8号","镇（街道）级",2400,1200,"综合避险"]
[274,"淡水松岭社区居民委员会应急避难场所","惠州市惠阳区淡水街道园林街7-1号","村（社区）级",60,30,"室内避险"]
[275,"淡水第十六小学应急避难场所","惠州市惠阳区淡水街道石园西街4号","镇（街道）级",4000,2000,"综合避险"]
[276,"淡水上塘社区居民委员会应急避难场所","惠州市惠阳区淡水街道太子村二巷28号","村（社区）级",40,20,"室内避险"]
[277,"淡水排坊社区居民委员会应急避难场所","惠州市惠阳区淡水街道永泗水路88号","村（社区）级",65,32,"室内避险"]
[278,"淡水街道第七小学应急避难场所","惠州市惠阳区淡水泗水路与泗水二路交叉口东南约200米","镇（街道）级",2078,1039,"综合避险"]
[279,"淡水大埔社区居民委员会应急避难场所","惠州市惠阳区淡水街道大埔东路26号","村（社区）级",150,75,"综合避险"]
[280,"淡水街道大埔小学应急避难场所","惠州市惠阳区淡水街道大埔东路2号","镇（街道）级",1312,656,"综合避险"]
[281,"淡水土湖村民委员会应急避难场所","惠州市惠阳区淡水街道兴湖路12号","村（社区）级",125,62,"室内避险"]
[282,"淡水街道红星社区应急避难场所","惠州市惠阳区淡水街道南门北路17号","村（社区）级",150,75,"综合避险"]
[283,"淡水第一小学应急避难场所","惠州市惠阳区淡水街道万庄路26号","镇（街道）级",3400,1700,"综合避险"]
[284,"淡水群力小学应急避难场所","惠州市惠阳区淡水街道群力街6号","镇（街道）级",1120,560,"综合避险"]
[285,"惠阳区崇雅中学应急避难场所","惠州市惠阳区淡水街道崇雅路3号","镇（街道）级",21200,10600,"综合避险"]
[286,"惠阳博雅学校应急避难场所","惠州市惠阳区淡水街道东门田辽91号","镇（街道）级",8208,4104,"综合避险"]
[287,"淡水街道淡环村民委员会应急避难场所","惠州市惠阳区淡水街道昙花路11号","村（社区）级",300,150,"综合避险"]
[288,"淡水街道第五小学应急避难场所","惠州市惠阳区淡水街道南五街15号","镇（街道）级",1615.6,807,"综合避险"]
[289,"淡水街道桥东社区居民委员会应急避难场所","惠州市惠阳区淡水街道南六街一巷15号","村（社区）级",150,75,"室内避险"]
[290,"淡水凤凰山学校应急避难场所","惠州市惠阳区淡水街道风情大道1号","镇（街道）级",16041.6,8020,"综合避险"]
[291,"淡水凤凰社区居民委员会应急避难场所","惠州市惠阳区淡水街道铂悦府2栋104","村（社区）级",400,200,"室内避险"]
[292,"淡水南四社区居民委员会应急避难场所","惠州市惠阳区淡水街道莲塘西85号","村（社区）级",120,60,"室内避险"]
[293,"淡水街道中心小学应急避难场所","惠州市惠阳区淡水街道大华路60号","镇（街道）级",5496,2748,"综合避险"]
[294,"淡水街道惠阳第四中学应急避难场所","惠州市惠阳区淡水街道叶挺西路229号","镇（街道）级",10786.4,5393,"综合避险"]
[295,"淡水街道桥背村民委员会应急避难场所","惠州市惠阳区淡水街道永兴路中油碧辟加油站南100米","村（社区）级",100,50,"室内避险"]
[296,"淡水街道桥背小学应急避难场所","惠州市惠阳区淡水街道荔兴路112号","镇（街道）级",5200,2600,"综合避险"]
[297,"淡水东风社区居民委员会应急避难场所","惠州市惠阳区淡水街道塘边村2-5号","村（社区）级",500,250,"综合避险"]
[298,"淡水竹贤学校应急避难场所","惠州市惠阳区淡水街道围珠田77号","镇（街道）级",8426.8,4213,"综合避险"]
[299,"淡水街道惠阳一中初中部应急避难场所","惠州市惠阳区淡水街道二路8号","镇（街道）级",13895.2,6947,"综合避险"]
[300,"淡水万顺社区居民委员会应急避难场所","惠州市惠阳区淡水街道万顺二路三巷四号","村（社区）级",125,62,"室内避险"]
[301,"淡水街道上湖社区应急避难场所","惠州市惠阳区淡水街道兴湖路26号","村（社区）级",400,200,"室内避险"]
[302,"淡水街道土湖小学应急避难场所","惠州市惠阳区淡水街道土小二巷31号","镇（街道）级",1200,600,"综合避险"]
[303,"淡水河背社区居民委员会应急避难场所","惠州市惠阳区淡水街道永兴路43号","村（社区）级",150,75,"室内避险"]
[304,"淡水坝尾社区居民委员会应急避难场所","惠州市惠阳区淡水街道人民四路19号天安珑城三期6栋1楼沿河商铺","村（社区）级",320,160,"室内避险"]
[305,"淡水上圩社区居民委员会应急避难场所","惠州市惠阳区淡水街道中山三路67-5号","村（社区）级",400,200,"室内避险"]
[306,"淡水街道第六小学应急避难场所","惠州市惠阳区淡水街道长安中路143号","镇（街道）级",8000,4000,"综合避险"]
[307,"淡水新雅社区居民委员会应急避难场所","惠州市惠阳区淡水街道新乐大道25号雅居乐花园1期20栋01号铺","村（社区）级",300,150,"室内避险"]
[308,"淡水街道惠阳第五中学应急避难场所","惠州市惠阳区淡水街道新乐大道25-1号","镇（街道）级",40000,20000,"综合避险"]
[309,"淡水街道白云社区居民委员会应急避难场所","惠州市惠阳区淡水街道吊金路万城名座10栋1层","镇（街道）级",600,300,"综合避险"]
[310,"淡水司前社区居民委员会应急避难场所","惠州市惠阳区淡水街道长安南路四巷25号","村（社区）级",180,90,"室内避险"]
[311,"淡水街道华南师范大学附属惠阳学校应急避难场所","惠州市惠阳区淡水街道星河东七路1号","镇（街道）级",{"$f":"#REF!/5*2","v":{"$error":"#REF!"}},{"$f":"#REF!/5","v":{"$error":"#REF!"}},"综合避险"]
[312,"淡水星河社区居民委员会应急避难场所","惠州市惠阳区淡水街道星河丹堤G4区体育公园旁","村（社区）级",400,200,"室内避险"]
[313,"淡水云新社区居民委员会应急避难场所","惠州市惠阳区淡水街道新力睿园小区2栋一楼115-120号商铺","村（社区）级",500,250,"综合避险"]
[314,"淡水街道第九小学应急避难场所","惠州市惠阳区淡水街道天山一路37号","镇（街道）级",4800.8,2400,"综合避险"]
[315,"淡水街道东王实验学校应急避难场所","惠州市惠阳区淡水街道白云坑工业大道26号","镇（街道）级",6214,3107,"综合避险"]
[316,"淡水东华村村民委员会应急避难场所","惠州市惠阳区淡水街道万庄路43号","村（社区）级",750,375,"综合避险"]
[317,"淡水古屋村村民委员会应急避难场所","惠州市惠阳区淡水街道白云六路233号","村（社区）级",500,250,"综合避险"]
[318,"淡水街道古屋小学应急避难场所","惠州市惠阳区淡水街道古屋村余屋小组22号","镇（街道）级",2920,1460,"综合避险"]
[319,"淡水街道惠阳一中高中部应急避难场所","惠州市惠阳区淡水街道白云六路279号","镇（街道）级",21547.6,10773,"综合避险"]
[320,"淡水新桥村村民委员会应急避难场所","惠州市惠阳区淡水街道新桥村塘背小组1号","村（社区）级",690,345,"综合避险"]
[321,"淡水街道华南师范大学附属惠阳小学应急避难场所","惠州市惠阳区淡水街道新桥村竹长路口","镇（街道）级",9729.2,4864,"综合避险"]
[322,"淡水街道新桥小学应急避难场所","惠州市惠阳区淡水街道新桥村塘背小组1号","镇（街道）级",3562.8,1781,"综合避险"]
[323,"淡水街道人民公园应急避难场所","惠州市惠阳区淡水街道南门西街29号旁边","镇（街道）级",60169,30084,"室外避险"]
[324,"秋长长安小学应急避难场所","惠州市惠阳区秋长街道人民一路18号","镇（街道）级",{"$f":"F327*2","v":2880},1440,"综合避险"]
[325,"秋长景新小学应急避难场所","惠州市惠阳区秋长街道维布村景新二路12号","镇（街道）级",4400,2200,"综合避险"]
[326,"秋长惠华学校应急避难场所","惠州市惠阳区秋长街道人民一路s358号","镇（街道）级",10800,5400,"综合避险"]
[327,"秋长白石实验学校应急避难场所","惠州市惠阳区秋长街道白石村秋宝路515号","镇（街道）级",4400,2200,"综合避险"]
[328,"秋长白石五育学校应急避难场所","惠州市惠阳区秋长街道白石洞村永光路327号","镇（街道）级",1400,700,"综合避险"]
[329,"秋长黄埔文化活动中心应急避难场所","惠州市惠阳区秋长街道新塘村黄浦路2号","村（社区）级",750,375,"综合避险"]
[330,"秋长朝晖学校应急避难场所","惠州市惠阳区秋长街道新塘村新二直路49号","镇（街道）级",10000,5000,"综合避险"]
[331,"秋长西湖小学应急避难场所","惠州市惠阳区秋长街道西湖村狮鼓岭巷1号","镇（街道）级",4000,2000,"综合避险"]
[332,"秋长善美小学应急避难场所","惠州市惠阳区秋长街道茶园村茶老小组69号","镇（街道）级",3600,1800,"综合避险"]
[333,"秋长中心小学应急避难场所","惠州市惠阳区秋长街道居民委员会学林路15号","镇（街道）级",6800,3400,"综合避险"]
[334,"秋长社区应急避难场所","惠州市惠阳区秋长街道居民委员会棚下岭三路3号","村（社区）级",650,325,"综合避险"]
[335,"秋长叶挺中学应急避难场所","惠州市惠阳区秋长街道居民委员会学林路21号","镇（街道）级",21814,10907,"综合避险"]
[336,"秋长腾云小学应急避难场所","惠州市惠阳区秋长街道周田村朱屋小组11号","镇（街道）级",2000,1000,"综合避险"]
[337,"秋长岭湖小学应急避难场所","惠州市惠阳区秋长街道岭湖村来中小组村16号","镇（街道）级",2000,1000,"综合避险"]
[338,"秋长高二小学应急避难场所","惠州市惠阳区秋长街道高岭村蒋田8号","镇（街道）级",1600,800,"室外避险"]
[339,"秋长维新小学应急避难场所","惠州市惠阳区秋长街道办事处佛岭村上围小组7号","镇（街道）级",4000,2000,"综合避险"]
[340,"秋长翰林实验学校应急避难场所","惠州市惠阳区秋长街道高岭村桔园路78号","镇（街道）级",12000,6000,"综合避险"]
[341,"秋长金秋广场应急避难场所","惠州市惠阳区秋长街道金秋大道111号对面","镇（街道）级",16000,8000,"室外避险"]
[342,"秋长官山小学应急避难场所","惠州市惠阳区秋长街道官山村（官山村民委员会1号旁）","镇（街道）级",1200,600,"综合避险"]
[343,"三和拾围村民委员会应急避难场所","惠州市惠阳区三和街道天星路56号","村（社区）级",1464,732,"综合避险"]
[344,"三和惠阳三和中学应急避难场所","惠州市惠阳区三和街道文化路10号","镇（街道）级",16926,8463,"综合避险"]
[345,"三和惠州新华印刷职业技术学校应急避难场所","惠州市惠阳区三和街道新华路2号","镇（街道）级",15748,7874,"综合避险"]
[346,"三和莲塘面村民委员会应急避难场所","惠州市惠阳区三和街道和兴路2号","村（社区）级",380,190,"综合避险"]
[347,"三和莲塘面小学应急避难场所","惠州市惠阳区三和街道莲塘面村勤敏路16号","镇（街道）级",1680,840,"综合避险"]
[348,"三和象岭村民委员会应急避难场所","惠州市惠阳区三和街道象岭村学联小组","村（社区）级",518,259,"综合避险"]
[349,"三和象岭小学应急避难场所","惠州市惠阳区三和街道象岭村象岭东路12号","镇（街道）级",2562,1281,"综合避险"]
[350,"三和铁门扇小学应急避难场所","惠州市惠阳区三和街道铁门扇村铁三小组38号","镇（街道）级",2340,1170,"综合避险"]
[351,"三和铁门扇村民委员会应急避难场所","惠州市惠阳区叶挺大道与200县道交叉口东北200米","村（社区）级",294,147,"综合避险"]
[352,"三和全坑村民委员会应急避难场所","惠州市惠阳区三和街道X822道田心段","村（社区）级",436,218,"综合避险"]
[353,"三和三和广场应急避难场所","惠州市惠阳区三和街道御和路35号","镇（街道）级",30000,15000,"室外避险"]
[354,"良井镇新塘村民委员会应急避难场所","惠州市惠阳区良井镇新塘村江下前小组（无们牌）","村（社区）级",500,250,"综合避险"]
[355,"良井镇新塘小学应急避难场所","惠州市惠阳区良井镇新塘村门口小组58号","镇（街道）级",3212,1606,"综合避险"]
[356,"良井镇围龙村民委员会应急避难场所","惠州市惠阳区良井镇围龙村围一小组1号","村（社区）级",350,175,"综合避险"]
[357,"良井镇金苹果幼儿园应急避难场所","惠州市惠阳区良井镇围龙村委羊角头村金苹果幼儿园（无们牌）","镇（街道）级",1892,946,"综合避险"]
[358,"良井镇楼角村民委员会应急避难场所","惠州市惠阳区良井镇楼角村民委员会122号","村（社区）级",250,125,"综合避险"]
[359,"良井镇楼角小学应急避难场所","惠州市惠阳区良井镇楼角小学123号","镇（街道）级",3000,1500,"综合避险"]
[360,"良井镇北联村民委员会应急避难场所","惠州市惠阳区良井镇北联村岩塘小组1号","村（社区）级",225,112,"综合避险"]
[361,"良井镇北联小学应急避难场所","惠州市惠阳区良井镇北联村东队小组1号","镇（街道）级",3810,1905,"综合避险"]
[362,"良井镇松元村民委员会应急避难场所","惠州市惠阳区良井镇松元村黄沙岭路1号","村（社区）级",900,450,"综合避险"]
[363,"良井镇松元小学应急避难场所","惠州市惠阳区良井镇松元村明徳路1号","镇（街道）级",3000,1500,"综合避险"]
[364,"良井镇黄洞村民委员会应急避难场所","惠州市惠阳区良井镇黄洞村南塘下1号","村（社区）级",150,75,"综合避险"]
[365,"良井镇时化村民委员会应急避难场所","惠州市惠阳区良井镇时化村民委员会（新屋小组97号）","村（社区）级",265,132,"室内避险"]
[366,"良井镇时化小学应急避难场所","惠州市惠阳区良井镇时化小学（新屋小组98号）","镇（街道）级",2440,1220,"综合避险"]
[367,"良井镇大白村民委员会应急避难场所","惠州市惠阳区良井镇大白村西向头121号","村（社区）级",310,155,"综合避险"]
[368,"良井镇大白小学应急避难场所","惠州市惠阳区良井镇大白村西向头123号","镇（街道）级",2024.8,1012,"综合避险"]
[369,"良井镇矮光村民委员会应急避难场所","惠州市惠阳区良井镇矮光下窝小组136号","村（社区）级",350,175,"综合避险"]
[370,"良井镇秀峰村民委员会应急避难场所","惠州市惠阳区良井镇秀峰村景盛街以北100米金福商住小区1号","村（社区）级",100,50,"综合避险"]
[371,"良井镇山井村民委员会应急避难场所","惠州市惠阳区良井镇山井村民委员会良白公路52号","村（社区）级",60,30,"综合避险"]
[372,"良井镇山井小学应急避难场所","惠州市惠阳区良井镇山井村山二小组（无们牌）","镇（街道）级",3036.8,1518,"综合避险"]
[373,"良井镇前锋村民委员会应急避难场所","惠州市惠阳区良井镇前锋村周上小组18号","村（社区）级",110,55,"综合避险"]
[374,"良井镇前锋小学应急避难场所","惠州市惠阳区良井镇前锋村周下小组100号","镇（街道）级",3675.6,1838,"综合避险"]
[375,"良井镇大湖洋村民委员会应急避难场所","惠州市惠阳区良井镇大湖洋村宅上小组38号","村（社区）级",212,106,"综合避险"]
[376,"良井镇大湖洋小学应急避难场所","惠州市惠阳区良井镇大湖洋新三小组1号","镇（街道）级",2800,1400,"综合避险"]
[377,"良井镇二联村民委员会应急避难场所","惠州市惠阳区良井镇二联村南屋小组88号","村（社区）级",165,82,"综合避险"]
[378,"良井镇官田村民委员会应急避难场所","惠州市惠阳区良井镇官田村老三村小组66号","村（社区）级",200,100,"综合避险"]
[379,"良井镇桥背村民委员会应急避难场所","惠州市惠阳区良井镇桥背村桥一小组1号","村（社区）级",150,75,"综合避险"]
[380,"良井镇桥背小学应急避难场所","惠州市惠阳区良井镇桥背村桥新小组32号","镇（街道）级",2288,1144,"综合避险"]
[381,"良井镇霞角村民委员会应急避难场所","惠阳区良井镇霞角村城内小组59号","村（社区）级",1250,625,"综合避险"]
[382,"良井镇宏基小学应急避难场所","惠阳区良井镇霞角村大福地小组38号","镇（街道）级",4121.6,2060,"综合避险"]
[383,"良井镇居民委员会应急避难场所","惠州市惠阳区良井镇祥福街2号","村（社区）级",120,60,"室内避险"]
[384,"良井中学应急避难场所","惠州市惠阳区良井镇西门街40号","镇（街道）级",23952,11976,"综合避险"]
[385,"良井敬老福利院应急避难场所","惠州市惠阳区良井镇前锋村芋子排51号","镇（街道）级",3899.75,1949,"综合避险"]
[386,"沙田东澳村民委员会应急避难场所","惠州市惠阳区沙田镇东澳村富东五路11号","村（社区）级",600,300,"综合避险"]
[387,"沙田集成村民委员会应急避难场所","惠州市惠阳区沙田镇集成村兴业三路126号","村（社区）级",555,278,"综合避险"]
[388,"沙田鹤山村民委员会应急避难场所","惠州市惠阳区沙田镇鹤山村民委员会1号","村（社区）级",300,150,"综合避险"]
[389,"沙田东明村民委员会应急避难场所","惠州市惠阳区沙田镇东明村石岭路1号","村（社区）级",1600,800,"综合避险"]
[390,"沙田花塘村民委员会应急避难场所","惠州市惠阳区沙田镇花塘路106号","村（社区）级",500,250,"综合避险"]
[391,"沙田金桔村民委员会应急避难场所","惠州市惠阳区沙田镇金桔村金坑小组83号","村（社区）级",390,195,"综合避险"]
[392,"沙田社区居民委员会应急避难场所","惠州市惠阳区沙田镇创业街二路1号","村（社区）级",250,125,"综合避险"]
[393,"沙田田头村委应急避难场所","惠州市惠阳区沙田镇田头村振华二路一号","村（社区）级",500,250,"综合避险"]
[394,"沙田联和小学应急避难场所","惠州市惠阳区沙田镇田头村永乐三路一号","镇（街道）级",848,424,"综合避险"]
[395,"沙田肖屋村民委员会应急避难场所","惠州市惠阳区沙田镇肖屋路2号","村（社区）级",375,188,"综合避险"]
[396,"沙田中学应急避难场所","惠州市惠阳区沙田镇培英路1号","村（社区）级",5200,2600,"综合避险"]
[397,"沙田文化体育公园应急避难场所","惠州市惠阳区沙田镇沙田文化体育公园","镇（街道）级",23920,11960,"室外避险"]
[398,"沙田中心小学应急避难场所","惠州市惠阳区沙田镇育才路6号","镇（街道）级",10252,5126,"综合避险"]
[399,"沙田肖屋小学应急避难场所","惠州市惠阳区沙田镇肖屋村6号","镇（街道）级",2387,1193,"综合避险"]
[400,"沙田鹤山小学应急避难场所","惠州市惠阳区沙田镇鹤山村3号","镇（街道）级",1174,587,"综合避险"]
[401,"沙田集成小学应急避难场所","惠州市惠阳区沙田镇集成村横澳寨1号","镇（街道）级",4000,2000,"综合避险"]
[402,"沙田东明小学应急避难场所","惠州市惠阳区沙田镇东明村富东2路23号","镇（街道）级",2579,1290,"综合避险"]
[403,"沙田东澳小学应急避难场所","惠州市惠阳区沙田镇东澳村富东五路18号","镇（街道）级",2500,1250,"综合避险"]
[404,"沙田雅中小学应急避难场所","惠州市惠阳区沙田镇花塘村77号","镇（街道）级",2396,1198,"综合避险"]
[405,"新圩镇新圩中学应急避难场所","惠州市惠阳区新圩镇石岗吓新秋路22号","镇（街道）级",{"$f":"F408*2","v":10526},5263,"综合避险"]
[406,"新圩镇新圩第二中学应急避难场所","惠州市惠阳区新圩镇塘吓社区东风村锦云路2号","镇（街道）级",20256,10128,"综合避险"]
[407,"新圩镇约场中学应急避难场所","惠州市惠阳区新圩镇约场村银峰二路117号","镇（街道）级",7364,3682,"综合避险"]
[408,"新圩镇长布小学应急避难场所","惠州市惠阳区新圩镇长布村长布路1号","镇（街道）级",4400,2200,"综合避险"]
[409,"新圩镇花果小学应急避难场所","惠州市惠阳区新圩镇花果村花果北路158号","镇（街道）级",3752,1876,"综合避险"]
[410,"新圩镇中心小学（新联校区）应急避难场所","惠州市惠阳区新圩镇新联村黄岭路129号","镇（街道）级",7400,3700,"综合避险"]
[411,"新圩镇中心小学应急避难场所","惠州市惠阳区新圩镇东门街12号","镇（街道）级",2370,1185,"综合避险"]
[412,"新圩镇元洞小学应急避难场所","惠州市惠阳区新圩镇元洞村元兴路50号","镇（街道）级",2080,1040,"综合避险"]
[413,"新圩镇产径小学应急避难场所","惠州市惠阳区新圩镇产径村新圩大道637号","镇（街道）级",5478,2739,"综合避险"]
[414,"新圩镇东风小学应急避难场所","惠州市惠阳区新圩镇东风村东诚街15号","镇（街道）级",2068,1034,"综合避险"]
[415,"新圩镇约场小学应急避难场所","惠州市惠阳区新圩镇约场村青草湖西路14号","镇（街道）级",4728,2364,"综合避险"]
[416,"新圩镇红田小学应急避难场所","惠州市惠阳区新圩镇红田村银锋三路137号","镇（街道）级",4000,2000,"综合避险"]
[417,"新圩镇红卫小学应急避难场所","惠州市惠阳区新圩镇红卫村曾上66号","镇（街道）级",2260,1130,"综合避险"]
[418,"新圩镇南坑学校应急避难场所","惠州市惠阳区新圩镇南坑村贻德路33号","镇（街道）级",5200,2600,"综合避险"]
[419,"新圩镇长布村民委员会应急避难场所","惠州市惠阳区新圩镇长布村广场路1号","村（社区）级",168,84,"综合避险"]
[420,"新圩镇花果村四联文化室应急避难场所","惠州市惠阳区新圩镇花果村五联路48号","村（社区）级",150,75,"室内避险"]
[421,"新圩镇新联村民委员会应急避难场所","惠州市惠阳区新圩镇新联村新秋路51号","村（社区）级",60,30,"室内避险"]
[422,"新圩镇小碧小组活动中心应急避难场所","惠州市惠阳区新圩镇新丰村碧富路四巷1号","村（社区）级",300,150,"室内避险"]
[423,"新圩镇老高田活动中心应急避难场所","惠州市惠阳区新圩镇新丰村老高田小组41号","村（社区）级",350,175,"室内避险"]
[424,"新圩镇塘口小组活动中心应急避难场所","惠州市惠阳区新圩镇新丰村大塘路12号","村（社区）级",300,150,"室内避险"]
[425,"新圩镇元洞村民委员会应急避难场所","惠州市惠阳区新圩镇元洞村高新路2号","村（社区）级",106,53,"室内避险"]
[426,"新圩镇产径村民委员会应急避难场所","惠州市惠阳区新圩镇产径村基耕路21号","村（社区）级",650,325,"综合避险"]
[427,"新圩镇东风村民委员会应急避难场所","惠州市惠阳区新圩镇东风村银锋一路219号","村（社区）级",140,70,"室内避险"]
[428,"新圩镇约场村民委员会应急避难场所","惠州市惠阳区新圩镇约场村伟达路22号","村（社区）级",200,100,"室内避险"]
[429,"新圩镇红田村民委员会应急避难场所","惠州市惠阳区新圩镇红田村银锋三路107号","村（社区）级",130,65,"室内避险"]
[430,"新圩镇红卫村民委员会应急避难场所","惠州市惠阳区新圩镇红卫村新南一路249号","村（社区）级",1500,750,"综合避险"]
[431,"新圩镇南坑村民委员会应急避难场所","惠州市惠阳区新圩镇南坑村新南二路222号","村（社区）级",1000,500,"综合避险"]
[432,"新圩镇新圩社区应急避难场所","惠州市惠阳区新圩镇市场六街横巷2号","村（社区）级",140,70,"室内避险"]
[433,"新圩镇塘吓社区党群服务中心应急避难场所","惠州市惠阳区新圩镇牧云溪谷5期45号商铺","村（社区）级",74,37,"室内避险"]
[434,"永湖麻溪村民委员会应急避难场所","惠州市惠阳区永湖镇中三小组旁","村（社区）级",{"$f":"SUM(F437*2)","v":1150},575,"综合避险"]
[435,"永湖麻溪联治学校应急避难场所","惠州市惠阳区永湖镇石一小组旁","镇（街道）级",3052,1526,"综合避险"]
[436,"永湖虎爪村民委员会应急避难场所","惠州市惠阳区永湖镇虎爪村民委员会虎爪小组","村（社区）级",150,75,"综合避险"]
[437,"永湖虎爪燕贻学校应急避难场所","惠州市惠阳区永湖镇虎爪村民委员会虎爪小组","镇（街道）级",2244,1122,"综合避险"]
[438,"永湖老围下村民委员会应急避难场所","惠州市惠阳区永湖镇老围下村围龙屋小组","村（社区）级",560,280,"综合避险"]
[439,"永湖老围下以时学校应急避难场所","惠州市惠阳区永湖镇老围下村围龙屋小组","镇（街道）级",4416,2208,"综合避险"]
[440,"永湖元岭村民委员会应急避难场所","惠州市惠阳区永湖镇元岭村老河","村（社区）级",250,125,"室内避险"]
[441,"永湖元岭启基学校应急避难场所","惠州市惠阳区永湖镇元岭村沙咀小组","镇（街道）级",1960,980,"综合避险"]
[442,"永湖中心小学应急避难场所","惠州市惠阳区区永湖镇新乐街21号","镇（街道）级",5328,2664,"综合避险"]
[443,"永湖敬老院应急避难场所","惠州市惠阳区区永湖镇永湖中学后面","村（社区）级",800,400,"综合避险"]
[444,"永湖彩一村民委员会应急避难场所","惠州市惠阳区永湖镇彩一村柑子园小组","村（社区）级",160,80,"室内避险"]
[445,"永湖彩一村毅成学校应急避难场所","惠州市惠阳区永湖镇彩一村何老屋小组旁","镇（街道）级",544,272,"综合避险"]
[446,"永湖彩二村民委员会应急避难场所","惠州市惠阳区永湖镇彩二村塘背、茶壶耳、元下三个小组中间","村（社区）级",110,55,"综合避险"]
[447,"永湖彩二民治学校应急避难场所","惠州市惠阳区永湖镇彩二村塘背、茶壶耳、元下三个小组中间","镇（街道）级",3120,1560,"综合避险"]
[448,"永湖大坑村民委员会应急避难场所","惠州市惠阳区永湖镇大坑村民委员会下屋小组","村（社区）级",330,165,"综合避险"]
[449,"永湖镇凤咀村凤仪学校应急避难场所","惠州市惠阳区永湖镇凤咀村老屋小组","镇（街道）级",1490,745,"综合避险"]
[450,"永湖吊沥村民委员会应急避难场所","惠州市惠阳区永湖镇吊沥村民委员会","村（社区）级",450,225,"综合避险"]
[451,"永湖镇吊沥日新学校应急避难场所","惠州市惠阳区永湖镇357线旁张屋小组","镇（街道）级",4384,2192,"综合避险"]
[452,"永湖乌坭埔村民委员会应急避难场所","惠州市惠阳区永湖镇乌坭埔二村原老学校，现村民委员会","村（社区）级",124,62,"综合避险"]
[453,"永湖稻园村民委员会应急避难场所","惠州市惠阳区永湖镇稻园村第一小组","村（社区）级",60,30,"室内避险"]
[454,"永湖稻园小学应急避难场所","惠州市惠阳区永湖镇稻园村第一小组","镇（街道）级",1920,960,"综合避险"]
[455,"永湖福地村民委员会应急避难场所","惠州市惠阳区永湖镇福地村民委员会二片80号","村（社区）级",74,37,"室内避险"]
[456,"永湖镇淡塘村新民学校应急避难场所","惠州市惠阳区永湖镇淡塘村四联小组","镇（街道）级",2940,1470,"综合避险"]
[457,"永湖康园中心应急避难场所","惠州市惠阳区永湖镇老市场","村（社区）级",100,50,"综合避险"]
[458,"永湖居民委员会应急避难场所","惠州市惠阳区永湖镇永良横街","村（社区）级",60,30,"室内避险"]
[459,"镇隆山顶村民委员会应急避难场所","惠州市惠阳区镇隆镇山顶村石头岭小组","村（社区）级",100,50,"室内避险"]
[460,"镇隆山顶小学应急避难场所","惠州市惠阳区镇隆镇山顶村石头岭小组","镇（街道）级",{"v":1206.092,"d":"1206"},{"v":603.046,"d":"603"},"综合避险"]
[461,"镇隆长龙村民委员会应急避难场所","惠州市惠阳区镇隆镇长龙村205国道旁","村（社区）级",100,50,"室内避险"]
[462,"镇隆长龙小学应急避难场所","惠州市惠阳区镇隆镇长龙村七车陂小组","镇（街道）级",{"v":2155.332,"d":"2155"},{"v":1077.666,"d":"1078"},"综合避险"]
[463,"镇隆大光小学应急避难场所","惠州市惠阳区镇隆镇大光村镇高公路狮头小组段旁","镇（街道）级",{"v":2198.856,"d":"2199"},{"v":1099.428,"d":"1099"},"综合避险"]
[464,"镇隆大光村民委员会应急避难场所","惠州市惠阳区镇隆镇大光村塘房小组","村（社区）级",100,50,"室内避险"]
[465,"镇隆陂塘角村民委员会应急避难场所","惠州市惠阳区镇隆镇陂塘角村陂角小组","村（社区）级",100,50,"室内避险"]
[466,"镇隆井龙村民委员会应急避难场所","惠州市惠阳区镇隆镇井龙村井西小组","村（社区）级",150,75,"室内避险"]
[467,"镇隆井龙小学应急避难场所","惠州市惠阳区镇隆镇井龙村沙角井小组","镇（街道）级",{"v":3309.82,"d":"3310"},{"v":1654.91,"d":"1655"},"综合避险"]
[468,"镇隆高田村民委员会应急避难场所","惠州市惠阳区镇隆镇高田村镇高公路婆岭小组段旁","村（社区）级",100,50,"室内避险"]
[469,"镇隆高田小学应急避难场所","惠州市惠阳区镇隆镇高田村高田小组","镇（街道）级",{"v":7579.244,"d":"7579"},{"v":3789.622,"d":"3790"},"综合避险"]
[470,"镇隆塘角村民委员会应急避难场所","惠州市惠阳区镇隆镇塘角村神前小组","村（社区）级",100,50,"室内避险"]
[471,"镇隆塘角小学应急避难场所","惠州市惠阳区镇隆镇塘角村神前小组","镇（街道）级",{"v":2513.344,"d":"2513"},{"v":1256.672,"d":"1257"},"综合避险"]
[472,"镇隆楼寨村民委员会应急避难场所","惠州市惠阳区镇隆镇楼寨村新富小组","村（社区）级",100,50,"室内避险"]
[473,"镇隆楼寨小学应急避难场所","惠州市惠阳区镇隆镇楼寨村新刘小组","镇（街道）级",{"v":1814.524,"d":"1815"},{"v":907.262,"d":"907"},"综合避险"]
[474,"镇隆楼下村民委员会应急避难场所","惠州市惠阳区镇隆镇205国道楼下村门楼对面","村（社区）级",50,25,"室内避险"]
[475,"镇隆楼下小学应急避难场所","惠州市惠阳区镇隆镇205国道楼下村门楼旁边","镇（街道）级",{"v":2449.32,"d":"2449"},{"v":1224.66,"d":"1225"},"综合避险"]
[476,"镇隆黄洞村民委员会应急避难场所","惠州市惠阳区镇隆镇黄洞村357省道塘一小组路段","村（社区）级",50,25,"室内避险"]
[477,"镇隆黄洞小学应急避难场所","惠州市惠阳区镇隆镇黄洞村357省道陈屋小组路段","镇（街道）级",{"v":1947.7,"d":"1948"},{"v":973.85,"d":"974"},"综合避险"]
[478,"镇隆甘陂村民委员会应急避难场所","惠州市惠阳区镇隆镇甘陂村旱亚小组","村（社区）级",150,75,"室内避险"]
[479,"镇隆甘陂小学应急避难场所","惠州市惠阳区镇隆镇甘陂村排岭小组","镇（街道）级",{"v":1433.732,"d":"1434"},{"v":716.866,"d":"717"},"综合避险"]
[480,"镇隆皇后村民委员会应急避难场所","惠州市惠阳区镇隆镇皇后村爱民路黄屋小组段旁","村（社区）级",200,100,"室内避险"]
[481,"镇隆皇后小学应急避难场所","惠州市惠阳区镇隆镇皇后村楼下小组","镇（街道）级",{"v":2837.292,"d":"2837"},{"v":1418.646,"d":"1419"},"综合避险"]
[482,"镇隆联溪村民委员会应急避难场所","惠州市惠阳区镇隆镇联溪村赤泥陂小组","村（社区）级",200,100,"室内避险"]
[483,"镇隆联溪小学应急避难场所","惠州市惠阳区镇隆镇联溪村上布围小组","镇（街道）级",{"v":1891.42,"d":"1891"},{"v":945.71,"d":"946"},"综合避险"]
[484,"镇隆居民委员会应急避难场所","惠州市惠阳区镇隆镇205国道老交警路口进去150米","村（社区）级",50,25,"室内避险"]
[485,"镇隆中心小学应急避难场所","惠州市惠阳区镇隆镇镇中路楼寨村新列小组路段","镇（街道）级",{"v":3674.844,"d":"3675"},{"v":1837.422,"d":"1837"},"综合避险"]
[486,"镇隆中学应急避难场所","惠州市惠阳区镇隆镇大光村马联小组马鞍山下","镇（街道）级",13826,6913,"综合避险"]
[487,"平潭镇鹤湖村民委员会应急避难场所","惠州市惠阳区平潭镇鹤湖村民委员会","村（社区）级",{"$f":"F490*2","v":304},152,"综合避险"]
[488,"平潭示范场应急避难场所","惠州市惠阳区平潭示范场","村（社区）级",494,247,"综合避险"]
[489,"平潭镇川龙村民委员会应急避难场所","惠州市惠阳区平潭镇川龙村民委员会","村（社区）级",882,441,"综合避险"]
[490,"平潭镇独石村老人活动中心应急避难场所","惠州市惠阳区平潭镇独石村民委员会旁老人活动中心","村（社区）级",250,125,"综合避险"]
[491,"平潭镇房坑村民委员会应急避难场所","惠州市惠阳区平潭镇房坑村民委员会","村（社区）级",1142,571,"综合避险"]
[492,"平潭镇光辉村民委员会应急避难场所","惠州市惠阳区平潭镇光辉村民委员会","村（社区）级",978,489,"综合避险"]
[493,"平潭镇光明村民委员会应急避难场所","惠州市惠阳区平潭镇光明村民委员会","村（社区）级",774,387,"综合避险"]
[494,"平潭镇鹤湖小学应急避难场所","惠州市惠阳区惠州市惠阳区区平潭镇鹤湖村二村","镇（街道）级",5780,2890,"综合避险"]
[495,"平潭镇红光村民委员会应急避难场所","惠州市惠阳区平潭镇红光村民委员会","村（社区）级",612,306,"综合避险"]
[496,"平潭镇江南村民委员会应急避难场所","惠州市惠阳区平潭镇江南村民委员会","村（社区）级",650,325,"综合避险"]
[497,"平潭镇金星村民委员会应急避难场所","惠州市惠阳区平潭镇金星村民委员会","村（社区）级",400,200,"综合避险"]
[498,"平潭镇凌屋排村民委员会应急避难场所","惠州市惠阳区平潭镇凌屋排村民委员会","村（社区）级",2000,1000,"综合避险"]
[499,"平潭镇平潭村民委员会应急避难场所","惠州市惠阳区平潭镇平潭村民委员会","村（社区）级",100,50,"综合避险"]
[500,"平潭镇平潭居民委员会应急避难场所","惠州市惠阳区平潭镇平潭居民委员会","村（社区）级",100,50,"综合避险"]
[501,"平潭镇常青春小学应急避难场所","惠州市惠阳区平潭镇鹊地村民委员会","镇（街道）级",3072,1536,"综合避险"]
[502,"平潭镇田埔村委应急避难场所","惠州市惠阳区平潭镇田埔村民委员会","村（社区）级",1050,525,"综合避险"]
[503,"平潭镇新岗村民委员会应急避难场所","惠州市惠阳区平潭镇新岗村民委员会","村（社区）级",650,325,"综合避险"]
[504,"平潭镇新圩村民委员会应急避难场所","惠州市惠阳区平潭镇新圩村民委员会","村（社区）级",1000,500,"综合避险"]
[505,"平潭镇阳光村民委员会应急避难场所","惠州市惠阳区平潭镇阳光村民委员会","村（社区）级",1000,500,"综合避险"]
[506,"平潭镇新湖小学应急避难场所","惠州市惠阳区平潭镇新圩村5号","镇（街道）级",3440,1720,"综合避险"]
[507,"平潭镇文化广场应急避难场所","惠州市惠阳区平潭镇沿路大道118号对面","镇（街道）级",22000,11000,"室外避险"]
[508,"平潭镇张新小学应急避难场所","惠州市惠阳区平潭镇张新村二村3号","镇（街道）级",2774,1387,"综合避险"]
[509,"平潭镇仙洞小学应急避难场所","惠州市惠阳区平潭镇红光村仙洞小学","镇（街道）级",2880,1440,"综合避险"]
[510,"平潭镇新岗小学应急避难场所","惠州市惠阳区平潭镇新岗村栗岗176号","镇（街道）级",2300,1150,"综合避险"]
[511,"平潭镇光辉小学应急避难场所","惠州市惠阳区平潭镇光辉小学","镇（街道）级",3800,1900,"综合避险"]
[512,"平潭镇新田埔小学应急避难场所","惠州市惠阳区平潭镇新田埔小学","镇（街道）级",4800,2400,"综合避险"]
[513,"平潭镇房坑小学应急避难场所","惠州市惠阳区平潭镇房坑村述古屋小组","镇（街道）级",2142,1071,"综合避险"]
[514,"平潭镇平潭中学应急避难场所","惠州市惠阳区平潭镇沿路街","镇（街道）级",8980,4490,"综合避险"]
[515,"平潭镇江南小学应急避难场所","惠州市惠阳区平潭镇江南村民委员会鸡公石一村","镇（街道）级",4400,2200,"综合避险"]
[516,"平潭镇中心小学应急避难场所","惠州市惠阳区平潭镇平新一街","镇（街道）级",9650,4825,"综合避险"]
[517,"平潭镇大花园小学应急避难场所","惠州市惠阳区平潭镇独石村民委员会独石村学校路22号","镇（街道）级",4024,2012,"综合避险"]
[518,"平潭镇阳光小学应急避难场所","惠州市惠阳区平潭镇阳光村民委员会阳光小学","镇（街道）级",2312,1156,"综合避险"]
[519,"平潭镇新明幼儿园应急避难场所","惠州市惠阳区平潭镇川龙村","镇（街道）级",1208,604,"综合避险"]
[520,"平潭镇新圩村三角湖活动中心应急避难场所","惠州市惠阳区平潭镇新圩村三角湖活动中心","村（社区）级",750,375,"综合避险"]
[521,"惠东县平山街道惠东县救助站应急避难场所","惠东县平山街道草塘路与飞鹅路交叉口北150米","县级",4000,29,"综合避险"]
[522,"惠东县平山街道园岭社区居民委员会应急避难场所","惠东县平山街道营盘路3号","村（社区）级",400,100,"室内避险"]
[523,"惠东县平山街道城东社区居民委员会应急避难场所","惠东县平山街道松子岭33号","村（社区）级",90,50,"室内避险"]
[524,"惠东县平山街道平山第二小学应急避难场所","惠东县平山街道城西社区石灰行11号","村（社区）级",100,400,"综合避险"]
[525,"惠东县平山街道城南社区居民委员会应急避难场所","惠东县平山街道乌泥山三巷29-1号","村（社区）级",150,30,"室内避险"]
[526,"惠东县平山街道城北社区居民委员会应急避难场所","惠东县兴隆街四栋7-10号","村（社区）级",650,300,"室内避险"]
[527,"惠东县平山街道南湖社区居民委员会应急避难场所","惠东县平山街道通园街25号","村（社区）级",650,300,"室内避险"]
[528,"惠东县平山街道红光社区居民委员会应急避难场所","惠东县平山街道东湖一路5号附近","村（社区）级",350,150,"室内避险"]
[529,"惠东县平山街道金光社区居民委员会应急避难场所","惠东县平山街道牛车井二巷24号","村（社区）级",400,100,"室内避险"]
[530,"惠东县平山街道青云社区居民委员会应急避难场所","惠东县平山街道金龙大道18号","村（社区）级",1200,200,"室内避险"]
[531,"惠东县平山街道黄排社区居民委员会应急避难场所","惠东县平山街道东联村操练埔66号","村（社区）级",200,25,"室内避险"]
[532,"惠东县平山街道莲花社区居民委员会应急避难场所","惠东县平山街道白文路38号附近","村（社区）级",240,200,"室内避险"]
[533,"惠东县平山街道红岭社区居民委员会应急避难场所","惠东县平山街道红岭市场前路87号","村（社区）级",100,200,"室内避险"]
[534,"惠东县平山街道蕉田社区居民委员会应急避难场所","惠东县平山街道蕉田路2-1附近","村（社区）级",500,300,"室内避险"]
[535,"惠东县平山街道华侨城社区居民委员会应急避难场所","惠东县平山街道华侨城农副产品市场二楼","村（社区）级",500,100,"室内避险"]
[536,"惠东县平山街道湖榕社区居民委员会应急避难场所","惠东县平山街道银基商贸城南二号楼二楼","村（社区）级",2000,400,"室内避险"]
[537,"惠东县平山街道泰园社区居民委员会应急避难场所","惠东县平山街道银基皮革鞋材批发市场F栋236号","村（社区）级",300,100,"室内避险"]
[538,"惠东县平山街道惠园社区居民委员会应急避难场所","惠东县平山街道惠新路6号","村（社区）级",600,200,"室内避险"]
[539,"百惠东县平山街道丘田社区红星村文化室应急避难场所","惠东县平山街道红星村百坵田36号","村（社区）级",200,100,"室内避险"]
[540,"惠东县平山街道福田社区居民委员会应急避难场所","惠东县平山街道健明路惠东黄排综合市场北侧约70米","村（社区）级",150,90,"室内避险"]
[541,"惠东县平山街道碧山村民委员会应急避难场所","惠东县平山街道碧山村委下新屋村小组66号","村（社区）级",400,300,"室内避险"]
[542,"惠东县平山街道陈塘村民委员会应急避难场所","惠东县平山街道陈塘村朱屋村1号","村（社区）级",650,30,"室内避险"]
[543,"惠东县平山街道坣陂村民委员会应急避难场所","惠东县谭仙古庙旁(720乡道东)","村（社区）级",1100,300,"室内避险"]
[544,"惠东县平山街道光明村民委员会应急避难场所","惠东县平山街道光明村校士下小组（光明村公交站旁）","村（社区）级",80,60,"室内避险"]
[545,"六德村民委员会应急避难场所","惠东县平山街道六德村鲤鱼岭村6号","村（社区）级",600,400,"室内避险"]
[546,"三联村民委员会应急避难场所","惠东县平山街道三联象飞路（三联红绿灯旁）","村（社区）级",500,400,"室内避险"]
[547,"大岭街道第七小学应急避难场所","惠东县大岭街道富祥路119号后面","村（社区）级",5750,1200,"综合避险"]
[548,"大岭街道第二小学应急避难场所","惠东县大岭街道联新路47号","村（社区）级",14000,300,"综合避险"]
[549,"东兴社区居民委员会应急避难场所","惠东县大岭街道教育一路20号","村（社区）级",210,50,"室内避险"]
[550,"沙梨园社区应急避难场所","惠东县大岭街道沙梨园路58号","村（社区）级",400,40,"室内避险"]
[551,"沙梨园社区建新小组办公室应急避难场所","惠东县大岭街道沙梨园路58号后面","村（社区）级",160,20,"室内避险"]
[552,"新源社区控弄小组办公楼应急避难场所","惠东县大岭街道新源社区控弄小组78-3号","村（社区）级",100,40,"室内避险"]
[553,"新源社区大浪小组办公楼应急避难场所","惠东县大岭街道新园社区大浪一路1号","村（社区）级",560,200,"室内避险"]
[554,"新安社区应急避难场所","惠东县大岭街道新安社区平梁路89号","村（社区）级",560,280,"室内避险"]
[555,"大岭第五小学应急避难场所","惠东县大岭街道大岭第五小学黄果埔左路小组1号","村（社区）级",560,1620,"综合避险"]
[556,"高级中学应急避难场所","惠东县大岭街道惠东大道2890号路口","镇级",80000,6500,"综合避险"]
[557,"上坝菜市场二楼文化室应急避难场所","惠东县大岭街道上坝村文化室","村（社区）级",200,"约80","室内避险"]
[558,"第四小学应急避难场所","惠东县大岭街道第四小学财山路4号","村（社区）级",1300,"约1500","综合避险"]
[559,"小布小学应急避难场所","惠东县大岭街道小布村委老村1号","村（社区）级",1500,500,"综合避险"]
[560,"洪湖小学应急避难场所","惠东县大岭街道洪湖村委洪湖北1号","村（社区）级",2000,1000,"综合避险"]
[561,"万松小学应急避难场所","惠东县大岭街道万松村新屋小组23号","村（社区）级",9768,"500人","综合避险"]
[562,"万松社岗庙应急避难场所","惠东县大岭街道大岭万松村社岗庙","村（社区）级",450,"200人","室内避险"]
[563,"万松村委应急避难场所","惠东县大岭街道万松村山下小组1号","村（社区）级",600,"20人","室内避险"]
[564,"白沙布村委办公室应急避难场所","惠东县大岭街道白沙布村塘埯小组50号","村（社区）级",700,50,"室内避险"]
[565,"白沙布小学应急避难场所","惠东县大岭街道白沙布村塘埯小组51号","村（社区）级",700,100,"综合避险"]
[566,"彭白小学应急避难场所","惠东县大岭街道彭白村彭白小学","村（社区）级",1000,500,"综合避险"]
[567,"桥星村委办公室应急避难场所","惠东县大岭街道桥星村田心小组20号","村（社区）级",1600,60,"室内避险"]
[568,"大洲小学应急避难场所","惠东县大岭街道大洲村沙湖新区1号后面","村（社区）级",900,"约1500","综合避险"]
[569,"大洲征地办应急避难场所","惠东县大岭街道大洲村沙湖沙一小组1号对面","村（社区）级",500,"约200","室内避险"]
[570,"池竹二小组文化室应急避难场所","惠东县大岭街道池竹村小学","村（社区）级",250,30,"室内避险"]
[571,"文布村委办公室应急避难场所","惠东县大岭街道文布村一号","村（社区）级",800,160,"室内避险"]
[572,"茗教村委应急避难场所","惠东县大岭街道新化小组100号","村（社区）级",2100,200,"室内避险"]
[573,"春光村委应急避难场所","惠东县大岭街道春光村下排自然村4号","村（社区）级",600,400,"室内避险"]
[574,"春光小学应急避难场所","惠东县大岭街道春光村下排自然村5号","村（社区）级",1200,800,"综合避险"]
[575,"棠阁小学应急避难场所","惠东县大岭街道棠阁村楼肚77号","村（社区）级",1000,200,"综合避险"]
[576,"棠阁村委办公室应急避难场所","惠东县大岭街道棠阁村楼肚117号","村（社区）级",200,50,"室内避险"]
[577,"澄溪小学应急避难场所","惠东县大岭街道澄溪小组","村（社区）级",600,100,"综合避险"]
[578,"稔山社区居民委员会办公楼应急避难场所","惠东县稔山镇稔山广播电视站附近","村（社区）级",800,70,"室内避险"]
[579,"大埔屯居民委员会办公楼应急避难场所","惠东县稔山镇稔山镇大埔屯社区1号楼","村（社区）级",240,300,"室内避险"]
[580,"三期物业中心应急避难场所","惠东县稔山镇碧桂园十里银滩山林海5号楼","村（社区）级",400,300,"室内避险"]
[581,"芙蓉村民委员会办公楼应急避难场所","惠东县稔山镇芙蓉村民委员会办公楼","村（社区）级",200,100,"室内避险"]
[582,"范和村民委员会办公楼应急避难场所","惠东县稔山镇范和村民委员会办公楼","村（社区）级",600,1000,"室内避险"]
[583,"大墩村白字剧公园应急避难场所","惠东县稔山镇大墩村白字剧公园","村（社区）级",400,300,"综合避险"]
[584,"长排村民委员会办公楼应急避难场所","惠东县稔山镇长排村民委员会办公楼","村（社区）级",1200,120,"室内避险"]
[585,"稔石村民委员会办公楼应急避难场所","惠东县稔山镇稔石村民委员会办公楼","村（社区）级",1200,100,"室内避险"]
[586,"莲蓬村民委员会办公楼应急避难场所","惠东县稔山镇莲蓬村民委员会办公楼","村（社区）级",1400,50,"室内避险"]
[587,"新村村民委员会办公楼应急避难场所","惠东县稔山镇新村村民委员会办公楼","村（社区）级",2400,150,"室内避险"]
[588,"白云小学应急避难场所","惠东县稔山镇白云村村委白云街","村（社区）级",200,200,"综合避险"]
[589,"老年人活动中心应急避难场所","惠东县稔山镇老年人活动中心","村（社区）级",1400,200,"综合避险"]
[590,"坝仔村民委员会办公楼应急避难场所","惠东县稔山镇坝仔村民委员会办公楼","村（社区）级",200,300,"室内避险"]
[591,"五配村民委员会办公楼应急避难场所","惠东县稔山镇五配村民委员会办公楼","村（社区）级",800,80,"室内避险"]
[592,"老坑村民委员会办公楼应急避难场所","惠东县稔山镇老坑村民委员会办公楼","村（社区）级",200,300,"室内避险"]
[593,"竹园村民委员会办公楼应急避难场所","惠东县稔山镇竹园村民委员会办公楼","村（社区）级",350,200,"室内避险"]
[594,"联丰村民委员会办公楼应急避难场所","惠东县稔山镇联丰村民委员会办公楼","村（社区）级",400,250,"室内避险"]
[595,"牛牯墩村民委员会办公楼应急避难场所","惠东县稔山镇牛牯墩村民委员会办公楼","村（社区）级",400,200,"室内避险"]
[596,"船澳小学应急避难场所","惠东县稔山镇船澳村环大亚湾路边坭围村小组18号","村（社区）级",800,300,"综合避险"]
[597,"盐灶背村民委员会办公楼应急避难场所","惠东县稔山镇盐灶背村民委员会办公楼","村（社区）级",300,150,"室内避险"]
[598,"和岭小学应急避难场所","惠东县安墩镇和岭村和岭路","村（社区）级",240,205,"综合避险"]
[599,"上洞村上洞小学应急避难场所","惠东县安墩镇上洞村委委会","村（社区）级",200,200,"综合避险"]
[600,"石珠村石珠小学应急避难场所","惠东县安墩镇石珠村石珠小学","村（社区）级",800,150,"综合避险"]
[601,"白沙村委应急避难场所","惠东县安墩镇白沙村委","村（社区）级",1200,100,"室内避险"]
[602,"宝安村委应急避难场所","惠东县安墩镇宝安村委","村（社区）级",400,238,"室内避险"]
[603,"澄华小学应急避难场所","惠东县安墩镇澄华小学","村（社区）级",160,1000,"综合避险"]
[604,"大布村小学应急避难场所","惠东县安墩镇大布村小学","村（社区）级",1300,1000,"综合避险"]
[605,"黄沙小学应急避难场所","惠东县安墩镇黄沙小学","村（社区）级",650,200,"综合避险"]
[606,"南华小学应急避难场所","惠东县安墩镇南华小学","村（社区）级",240,150,"综合避险"]
[607,"热汤小学应急避难场所","惠东县安墩镇热汤小学","村（社区）级",200,1000,"综合避险"]
[608,"杉园村委应急避难场所","惠东县安墩镇杉园村委","村（社区）级",200,230,"室内避险"]
[609,"安墩中学应急避难场所","惠东县安墩镇安墩中学","村（社区）级",200,1000,"综合避险"]
[610,"石塘中心小学应急避难场所","惠东县安墩镇石塘中心小学","村（社区）级",1100,100,"综合避险"]
[611,"水美村水美小学应急避难场所","惠东县安墩镇水美村水美小学","村（社区）级",600,1000,"综合避险"]
[612,"下洞小学应急避难场所","惠东县安墩镇下洞小学","村（社区）级",360,1000,"综合避险"]
[613,"新村小学应急避难场所","惠东县安墩镇新村小学","村（社区）级",500,200,"综合避险"]
[614,"新田村委应急避难场所","惠东县安墩镇新田村委","村（社区）级",320,30,"室内避险"]
[615,"洋潭学校应急避难场所","惠东县安墩镇洋潭学校","村（社区）级",1300,800,"综合避险"]
[616,"梓横小学应急避难场所","惠东县安墩镇梓横小学","村（社区）级",1000,300,"综合避险"]
[617,"左华村委应急避难场所","惠东县安墩镇左华村委","村（社区）级",350,250,"室内避险"]
[618,"葵双村委应急避难场所","惠东县安墩镇葵双村委","村（社区）级",200,25,"室内避险"]
[619,"仙洞村委应急避难场所","惠东县安墩镇仙洞村委","村（社区）级",240,200,"室内避险"]
[620,"珠湖小学应急避难场所","惠东县安墩镇珠湖小学","村（社区）级",1400,200,"综合避险"]
[621,"白盆珠中学应急避难场所","惠东县白盆珠镇金竹布村45号","镇级",1300,1300,"综合避险"]
[622,"白盆珠中心小学应急避难场所","惠东县白盆珠镇金南二街15号","镇级",1500,1500,"综合避险"]
[623,"新庵学校应急避难场所","惠东县白盆珠镇富一路5巷1号","村（社区）级",1200,1200,"综合避险"]
[624,"白盆珠镇白马村民委员会及文化广场应急避难场所","惠东县白盆珠镇白马村","镇级",500,500,"综合避险"]
[625,"横瑶村民委员会及文化广场应急避难场所","惠东县白盆珠镇横瑶村","村（社区）级",300,300,"综合避险"]
[626,"白盆珠镇鹿窝村民委员会及文化广场应急避难场所","惠东县白盆珠镇鹿窝村","村（社区）级",200,200,"综合避险"]
[627,"白盆珠镇布心村民委员会及文化广场应急避难场所","惠东县白盆珠镇布心村","村（社区）级",300,300,"综合避险"]
[628,"白盆珠镇双金村民委员会及文化广场应急避难场所","惠东县白盆珠镇双金村","村（社区）级",400,400,"综合避险"]
[629,"白盆珠镇新丰村民委员会及文化广场应急避难场所","惠东县白盆珠镇新丰村","村（社区）级",300,300,"综合避险"]
[630,"白盆珠镇新和村民委员会及文化广场应急避难场所","惠东县白盆珠镇新和村","村（社区）级",162,162,"综合避险"]
[631,"白盆珠镇横坑村民委员会及文化广场应急避难场所","惠东县白盆珠镇横坑村","村（社区）级",340,340,"综合避险"]
[632,"白盆珠镇坑屯村民委员会及文化广场应急避难场所","惠东县白盆珠镇坑屯村","村（社区）级",300,300,"综合避险"]
[633,"白盆珠镇共和村民委员会及文化广场应急避难场所","惠东县白盆珠镇共和村","村（社区）级",256,256,"综合避险"]
[634,"白盆珠镇沐化村民委员会及文化广场应急避难场所","惠东县白盆珠镇沐化村","村（社区）级",200,200,"综合避险"]
[635,"白盆珠镇横江村村民委员会及文化广场应急避难场所","惠东县白盆珠镇横江村","村（社区）级",250,250,"综合避险"]
[636,"白盆珠镇社区居民委员会及文化广场应急避难场所","惠东县白盆珠镇社区","村（社区）级",200,200,"综合避险"]
[637,"宝口镇中心小学应急避难场所","惠东县宝口镇宝溪埔25号","村（社区）级",3850,"1000人","综合避险"]
[638,"塘南村民委员会应急避难场所","惠东县宝口镇兴发路44号","村（社区）级",630,"200人","室内避险"]
[639,"新化村民委员会应急避难场所","惠东县宝口镇新化村坪上小组","村（社区）级",260,"200人","室内避险"]
[640,"大围村民委员会应急避难场所","惠东县宝口镇大围村委双坑口39号","村（社区）级",350,"200人","室内避险"]
[641,"井湖村民委员会应急避难场所","惠东县宝口镇井湖村围塘村小组37号","村（社区）级",300,"200人","室内避险"]
[642,"联和村民委员会应急避难场所","惠东县宝口镇联和村三联小组15号","村（社区）级",480,"200人","室内避险"]
[643,"龙坪村民委员会应急避难场所","惠东县宝口镇龙坪村上围村小组1号","村（社区）级",360,"200人","室内避险"]
[644,"马山村民委员会应急避难场所","惠东县宝口镇宝口镇马山村委人民路","村（社区）级",200,"200人","室内避险"]
[645,"兴家村民委员会应急避难场所","惠东县宝口镇兴家村兴家小组","村（社区）级",380,"200人","室内避险"]
[646,"佐坑村民委员会应急避难场所","惠东县宝口镇佐坑村圩街1号","村（社区）级",480,"200人","室内避险"]
[647,"五一村民委员会应急避难场所","惠东县宝口镇五一村委勤和小组38号","村（社区）级",720,"200人","室内避险"]
[648,"禾多村民委员会应急避难场所","惠东县宝口镇禾多村委横江村小组仙水塘1号","村（社区）级",700,"200人","室内避险"]
[649,"国和村卫生站应急避难场所","惠东县宝口镇国和村寿一小组文化活动中心","村（社区）级",80,"100人","室内避险"]
[650,"大和社区居委应急避难场所","惠东县宝口镇人民街115号","村（社区）级",280,"200人","室内避险"]
[651,"高潭纪念堂应急避难场所","惠东县高潭镇人民东路51号","镇级",1100,800,"综合避险"]
[652,"高潭中心小学应急避难场所","惠东县高潭镇马克思街与人民东路交叉口南260米","村（社区）级",2500,600,"综合避险"]
[653,"高潭中学应急避难场所","惠东县高潭镇新兴路218号","村（社区）级",3000,500,"综合避险"]
[654,"水口村委应急避难场所","惠东县高潭镇高潭水口村委","村（社区）级",800,60,"室内避险"]
[655,"新联村委应急避难场所","惠东县高潭镇高潭新联村委","村（社区）级",200,80,"室内避险"]
[656,"金坑村委应急避难场所","惠东县高潭镇金坑村委","村（社区）级",500,80,"室内避险"]
[657,"中洞村委应急避难场所","惠东县高潭镇中洞村委","村（社区）级",300,100,"室内避险"]
[658,"公梅村委应急避难场所","惠东县高潭镇公梅村委","村（社区）级",150,60,"室内避险"]
[659,"星光村委应急避难场所","惠东县高潭镇星光村委","村（社区）级",130,80,"室内避险"]
[660,"福田村委应急避难场所","惠东县高潭镇福田村委","村（社区）级",400,80,"室内避险"]
[661,"黄沙村委应急避难场所","惠东县高潭镇黄沙村委","村（社区）级",500,50,"室内避险"]
[662,"水下村委应急避难场所","惠东县高潭镇水下村委","村（社区）级",100,50,"室内避险"]
[663,"甘溪村委应急避难场所","惠东县高潭镇甘溪村委","村（社区）级",460,80,"室内避险"]
[664,"普联村委应急避难场所","惠东县高潭镇普联村委","村（社区）级",320,20,"室内避险"]
[665,"大星村委应急避难场所","惠东县高潭镇大星村委","村（社区）级",300,100,"室内避险"]
[666,"梁化中学应急避难场所","惠东县梁化镇第一中学","镇级",4500,1300,"综合避险"]
[667,"梁化二中应急避难场所","惠东县梁化镇梁化二中","村（社区）级",2000,1000,"综合避险"]
[668,"梁化镇中心小学应急避难场所","惠东县梁化镇中心小学","村（社区）级",2000,800,"综合避险"]
[669,"石屋寮小学应急避难场所","惠东县梁化镇石屋寮村石屋寮小学","村（社区）级",1400,400,"综合避险"]
[670,"梁化屯小学应急避难场所","惠东县梁化镇梁化屯村委塘唇村","村（社区）级",5000,400,"综合避险"]
[671,"四眉山小学应急避难场所","惠东县梁化镇四眉山村委斜对面","村（社区）级",1500,400,"综合避险"]
[672,"光长小学应急避难场所","惠东县梁化镇光长村谢屋村","村（社区）级",500,400,"综合避险"]
[673,"四民小学应急避难场所","惠东县梁化镇四民村四民小学","村（社区）级",4760,200,"综合避险"]
[674,"大地小学应急避难场所","惠东县梁化镇大地村大地村小学","村（社区）级",240,200,"综合避险"]
[675,"七星墩小学应急避难场所","惠东县梁化镇七星墩村赤米屋村小组","村（社区）级",600,400,"综合避险"]
[676,"星湖小学应急避难场所","惠东县梁化镇星湖村下田心村小组","村（社区）级",600,400,"综合避险"]
[677,"小禾洞小学应急避难场所","惠东县梁化镇小禾洞村小禾洞小学","村（社区）级",300,200,"综合避险"]
[678,"晨光小学应急避难场所","惠东县梁化镇晨光村三队","村（社区）级",800,200,"综合避险"]
[679,"新民小学应急避难场所","惠东县梁化镇新民村惠紫路15-16号","村（社区）级",3694,500,"综合避险"]
[680,"黎光小学应急避难场所","惠东县梁化镇黎光村四队","村（社区）级",4500,350,"综合避险"]
[681,"水联小学应急避难场所","惠东县梁化镇水联村水联小学","村（社区）级",3159,400,"综合避险"]
[682,"育民群联小学应急避难场所","惠东县梁化镇育民村委旁","村（社区）级",500,400,"综合避险"]
[683,"埔仔小学应急避难场所","惠东县梁化镇埔仔小学","村（社区）级",1300,200,"综合避险"]
[684,"黄竹浪小学应急避难场所","惠东县梁化镇黄竹浪上新屋村小组小学","村（社区）级",400,200,"综合避险"]
[685,"马安岭小学应急避难场所","惠东县梁化镇马安岭村新田小组","村（社区）级",700,400,"综合避险"]
[686,"齐眉塘周英纪念小学应急避难场所","惠东县梁化镇齐眉塘周英纪念小学","村（社区）级",500,200,"综合避险"]
[687,"吕屋坪村民委员会应急避难场所","惠东县梁化镇吕屋坪村民委员会","村（社区）级",800,200,"综合避险"]
[688,"大禾洞仁生小学应急避难场所","惠东县梁化镇大禾洞村大禾洞小学","村（社区）级",2781,200,"综合避险"]
[689,"平海镇文化广场应急避难场所","惠东县平海镇平海社区龙泉新村文化广场","村（社区）级",2000,1000,"综合避险"]
[690,"平海中学应急避难场所","惠东县平海镇平海社区龙泉新村平海大街99号","村（社区）级",2500,1000,"综合避险"]
[691,"碧甲小学应急避难场所","惠东县平海镇碧甲村村民委员会旁","村（社区）级",1200,500,"综合避险"]
[692,"咸台小学应急避难场所","惠东县平海镇咸台村村委门口村8号西边150米","村（社区）级",1000,500,"综合避险"]
[693,"六乡小学应急避难场所","惠东县平海镇六乡村荣超医院斜对面Y706公路旁","村（社区）级",1000,500,"综合避险"]
[694,"油蔴园小学应急避难场所","惠东县平海镇油麻园村村民委员会旁","村（社区）级",1000,500,"综合避险"]
[695,"鹧洞小学应急避难场所","惠东县平海镇鹧洞村村民委员会北150米处","村（社区）级",1000,500,"综合避险"]
[696,"磜头小学应急避难场所","惠东县平海镇磜头村村民委员会对面","村（社区）级",1000,500,"综合避险"]
[697,"径口小学应急避难场所","惠东县平海镇径口村村民委员会北100米处","村（社区）级",1000,500,"综合避险"]
[698,"东和小学应急避难场所","惠东县平海镇东和村坑口村168号西北处","村（社区）级",1000,500,"综合避险"]
[699,"铁涌中学应急避难场所","惠东县铁涌镇铁涌中学","镇级",500,500,"综合避险"]
[700,"铁涌镇中心小学应急避难场所","惠东县铁涌镇中心小学","村（社区）级",500,300,"综合避险"]
[701,"毓秀小学应急避难场所","惠东县铁涌镇毓秀小学","村（社区）级",700,200,"综合避险"]
[702,"黄坑小学应急避难场所","惠东县铁涌镇黄坑小学","村（社区）级",700,200,"综合避险"]
[703,"河潭小学应急避难场所","惠东县铁涌镇河潭小学","村（社区）级",400,200,"综合避险"]
[704,"梁屋小学应急避难场所","惠东县铁涌镇梁屋小学","村（社区）级",400,200,"综合避险"]
[705,"光明小学应急避难场所","惠东县铁涌镇光明小学","村（社区）级",500,200,"综合避险"]
[706,"石桥小学应急避难场所","惠东县铁涌镇石桥小学","村（社区）级",700,200,"综合避险"]
[707,"铁涌镇田洋小学应急避难场所","惠东县铁涌镇田洋小学","村（社区）级",600,200,"综合避险"]
[708,"好招楼学校应急避难场所","惠东县铁涌镇好招楼学校","村（社区）级",400,300,"综合避险"]
[709,"新建村委应急避难场所","惠东县铁涌镇新建村委","村（社区）级",500,200,"综合避险"]
[710,"沙桥村委应急避难场所","惠东县铁涌镇沙桥村委","村（社区）级",500,150,"综合避险"]
[711,"赤岸小学应急避难场所","惠东县铁涌镇赤岸小学","村（社区）级",500,200,"综合避险"]
[712,"新寮村委应急避难场所","惠东县铁涌镇新寮村委","村（社区）级",400,200,"室内避险"]
[713,"大岭背村委应急避难场所","惠东县铁涌镇大岭背村委","村（社区）级",500,200,"室内避险"]
[714,"溪美村委应急避难场所","惠东县铁涌镇溪美村委","村（社区）级",300,200,"室内避险"]
[715,"涌围村委应急避难场所","惠东县铁涌镇涌围村委","村（社区）级",400,200,"室内避险"]
[716,"大村村委应急避难场所","惠东县铁涌镇大村村委","村（社区）级",400,200,"室内避险"]
[717,"三多村委应急避难场所","惠东县铁涌镇三多村委","村（社区）级",500,100,"室内避险"]
[718,"新民村委应急避难场所","惠东县铁涌镇新民村委","村（社区）级",300,100,"室内避险"]
[719,"燕岭小学应急避难场所","惠东县铁涌镇燕岭小学","村（社区）级",300,200,"综合避险"]
[720,"铁涌社区应急避难场所","惠东县铁涌镇铁涌社区","村（社区）级",500,30,"室内避险"]
[721,"巽寮中心学校应急避难场所","惠东县巽寮管委会巽寮中心学校","村（社区）级",1000,3000,"综合避险"]
[722,"巽寮二小应急避难场所","惠东县巽寮管委会巽寮二小","村（社区）级",1300,1200,"综合避险"]
[723,"赤砂小学应急避难场所","惠东县巽寮管委会赤砂小学","村（社区）级",1500,580,"综合避险"]
[724,"榄涌小学应急避难场所","惠东县巽寮管委会榄涌小学","村（社区）级",2000,1320,"综合避险"]
[725,"下松坑小学应急避难场所","惠东县多祝镇下松坑村下松坑小学","村（社区）级",700,"1000人","综合避险"]
[726,"多祝镇中心小学（临时）应急避难场所","惠东县多祝镇多祝社区新桥路112号","村（社区）级",20000,"500人","综合避险"]
[727,"洋口小学应急避难场所","惠东县多祝镇洋口村委连湖村小组地段","村（社区）级",4100,"500人","综合避险"]
[728,"丰年小学应急避难场所","惠东县多祝镇丰年村格塘小组","村（社区）级",5000,"1200人","综合避险"]
[729,"永和小学应急避难场所","惠东县多祝镇永和村永和小学","村（社区）级",640,"400人","综合避险"]
[730,"岭梅村委应急避难场所","惠东县356省道与文启路交叉口西南220米","村（社区）级",60,"100人","室内避险"]
[731,"下埔小学应急避难场所","惠东县多祝镇多祝镇下埔村委","村（社区）级",400,"300人","综合避险"]
[732,"守望小学应急避难场所","惠东县多祝镇守望村守望小学","村（社区）级",2300,"300人","综合避险"]
[733,"元岭村民委员会应急避难场所","惠东县多祝镇元岭村民委员会","村（社区）级",600,"100人","室内避险"]
[734,"三角小学应急避难场所","惠东县多祝镇三角村委三竹围小组三角小学","村（社区）级",800,"300人","综合避险"]
[735,"大和小学应急避难场所","惠东县多祝镇大和村大和小学","村（社区）级",1798,"300人","综合避险"]
[736,"明溪村委应急避难场所","惠东县多祝镇明溪村明溪小学","村（社区）级",3000,"800人","室内避险"]
[737,"三胜小学应急避难场所","惠东县多祝镇三胜村委新围仔村小组18号","村（社区）级",2000,"1000人","综合避险"]
[738,"原大道小学应急避难场所","惠东县多祝镇大道村委召山小组","村（社区）级",1480,"200人","室内避险"]
[739,"新联村委应急避难场所","惠东县多祝镇新联村民委员会","村（社区）级",290,"300人","室内避险"]
[740,"下鉴小学应急避难场所","惠东县多祝镇下鉴村委下鉴村小组地段","村（社区）级",3100,"300人","综合避险"]
[741,"横塘小学应急避难场所","惠东县多祝镇横塘小学傍边","村（社区）级",200,"200人","综合避险"]
[742,"皇思扬小学应急避难场所","惠东县多祝镇皇思扬村皇思扬小学","村（社区）级",4200,"500人","综合避险"]
[743,"启南小学应急避难场所","惠东县多祝镇启南村委旁","村（社区）级",2500,"1000人","综合避险"]
[744,"塘田小学应急避难场所","惠东县多祝镇塘田村蓼塘小组塘田小学","村（社区）级",1050,"300人","综合避险"]
[745,"上村小学应急避难场所","惠东县多祝镇上村村委新丰小组","村（社区）级",2000,"200人","综合避险"]
[746,"八维小学应急避难场所","惠东县多祝镇八维村委八维小学","村（社区）级",3000,"500人","综合避险"]
[747,"靖安小学学校应急避难场所","惠东县多祝镇靖安村靖安小学","村（社区）级",2000,"250人","综合避险"]
[748,"大径小学应急避难场所","惠东县多祝镇大径村中径小组地段","村（社区）级",800,"300人","综合避险"]
[749,"松坑中心学校应急避难场所","惠东县多祝镇松坑学校","村（社区）级",3000,"500人","综合避险"]
[750,"松坑中心学校应急避难场所","惠东县多祝镇松坑学校","村（社区）级",3000,"500人","综合避险"]
[751,"石溪小学学校应急避难场所","惠东县多祝镇石溪村塘一小组","村（社区）级",500,"300人","综合避险"]
[752,"水口小学应急避难场所","惠东县多祝镇水口村委牛喜岭小组1号","村（社区）级",800,"400人","综合避险"]
[753,"黄埠中学应急避难场所","惠东县黄埠镇黄埠中学","村（社区）级",200,3000,"综合避险"]
[754,"黄埠中心小学应急避难场所","惠东县黄埠镇黄埠中心小学","村（社区）级",300,2500,"综合避险"]
[755,"盐洲中学应急避难场所","惠东县黄埠镇盐洲中学","村（社区）级",200,2500,"综合避险"]
[756,"育正小学应急避难场所","惠东县黄埠镇育正小学","村（社区）级",1000,2000,"综合避险"]
[757,"盐洲中心小学应急避难场所","惠东县黄埠镇盐洲中心小学","村（社区）级",205,1500,"综合避险"]
[758,"新渔庇护中心应急避难场所","惠东县黄埠镇新渔庇护中心","村（社区）级",500,800,"综合避险"]
[759,"黄埠人民广场应急避难场所","惠东县黄埠镇黄埠人民广场","村（社区）级",180,10000,"综合避险"]
[760,"王公社区党群服务中心应急避难场所","惠东县黄埠镇王公社区党群服务中心","村（社区）级",200,100,"室内避险"]
[761,"下圩社区党群服务中心应急避难场所","惠东县黄埠镇下圩社区党群服务中心","村（社区）级",200,100,"室内避险"]
[762,"四门社区党群服务中心应急避难场所","惠东县黄埠镇四门社区党群服务中心","村（社区）级",1500,100,"室内避险"]
[763,"群英社区党群服务中心应急避难场所","惠东县黄埠镇群英社区党群服务中心","村（社区）级",1000,100,"室内避险"]
[764,"田围社区党群服务中心应急避难场所","惠东县黄埠镇田围社区党群服务中心","村（社区）级",1000,100,"室内避险"]
[765,"新兴社区党群服务中心应急避难场所","惠东县黄埠镇新兴社区党群服务中心","村（社区）级",100,100,"室内避险"]
[766,"坣头村党群服务中心应急避难场所","惠东县黄埠镇坣头村党群服务中心","村（社区）级",100,100,"室内避险"]
[767,"霞坑村党群服务中心应急避难场所","惠东县黄埠镇霞坑村党群服务中心","村（社区）级",100,100,"室内避险"]
[768,"沙埔村党群服务中心应急避难场所","惠东县黄埠镇沙埔村党群服务中心","村（社区）级",100,100,"室内避险"]
[769,"望京洲村党群服务中心应急避难场所","惠东县黄埠镇望京洲村党群服务中心","村（社区）级",100,100,"室内避险"]
[770,"盐洲社区党群服务中心应急避难场所","惠东县黄埠镇盐洲社区党群服务中心","村（社区）级",100,100,"室内避险"]
[771,"望斗村党群服务中心应急避难场所","惠东县黄埠镇望斗村党群服务中心","村（社区）级",150,100,"室内避险"]
[772,"西冲村党群服务中心应急避难场所","惠东县黄埠镇西冲村党群服务中心","村（社区）级",150,100,"室内避险"]
[773,"白沙村党群服务中心应急避难场所","惠东县黄埠镇白沙村党群服务中心","村（社区）级",4000,100,"室内避险"]
[774,"联新村党群服务中心应急避难场所","惠东县黄埠镇联新村党群服务中心","村（社区）级",100,100,"室内避险"]
[775,"三洲村党群服务中心应急避难场所","惠东县黄埠镇三洲村党群服务中心","村（社区）级",100,100,"室内避险"]
[776,"前寮村党群服务中心应急避难场所","惠东县黄埠镇前寮村党群服务中心","村（社区）级",100,100,"室内避险"]
[777,"港口灾害避难场所应急避难场所","惠东县港口管委会港口灾害避难场所","村（社区）级",500,200,"综合避险"]
[778,"东海村民委员会办公楼应急避难场所","惠东县港口管委会东海村民委员会办公楼","村（社区）级",40,50,"室内避险"]
[779,"大园村民委员会办公楼应急避难场所","惠东县港口管委会大园村民委员会办公楼","村（社区）级",100,30,"室内避险"]
[780,"新寮村民委员会办公楼应急避难场所","惠东县港口管委会新寮村民委员会办公楼","村（社区）级",200,20,"室内避险"]
[781,"新村村民委员会办公楼应急避难场所","惠东县港口管委会新村村民委员会办公楼","村（社区）级",40,20,"室内避险"]
[782,"蔡家村民委员会办公楼应急避难场所","惠东县港口管委会蔡家村民委员会办公楼","村（社区）级",100,20,"室内避险"]
[783,"南社村民委员会办公楼应急避难场所","惠东县港口管委会南社村民委员会办公楼","村（社区）级",200,20,"室内避险"]
[784,"港一村民委员会办公楼应急避难场所","惠东县港口管委会港一村民委员会办公楼","村（社区）级",400,20,"室内避险"]
[785,"港口居民委员会办公楼应急避难场所","惠东县港口管委会港口居民委员会办公楼","村（社区）级",400,30,"室内避险"]
[786,"白花镇联进小学应急避难场所","惠东县白花镇联进村联进小学","村（社区）级",1800,3000,"室内避险"]
[787,"白花中心小学应急避难场所","惠东县白花镇白花镇白花社区谭屋巷22号","村（社区）级",1200,600,"综合避险"]
[788,"白花卫生院应急避难场所","惠东县白花镇桃子岭1号","村（社区）级",1200,500,"综合避险"]
[789,"集联村民委员会应急避难场所","惠东县白花镇集联村三联村小组","村（社区）级",300,100,"室内避险"]
[790,"白花中学应急避难场所","惠东县白花镇新平大道3500号","村（社区）级",400,800,"综合避险"]
[791,"田屋小学应急避难场所","惠东县白花镇田屋村委","村（社区）级",240,500,"综合避险"]
[792,"李坑小学应急避难场所","惠东县白花镇李坑村民委员会","村（社区）级",400,150,"综合避险"]
[793,"长塘小学应急避难场所","惠东县白花镇长塘村","村（社区）级",200,200,"综合避险"]
[794,"新联小学应急避难场所","惠东县白花镇 樟山村","村（社区）级",1000,600,"综合避险"]
[795,"谟岭小学应急避难场所","惠东县白花镇谟岭村","村（社区）级",600,200,"综合避险"]
[796,"黄塘小学应急避难场所","惠东县白花镇黄塘村857乡道南","村（社区）级",500,200,"综合避险"]
[797,"原凌坑小学应急避难场所","惠东县白花镇凌坑村委","村（社区）级",500,250,"综合避险"]
[798,"联丰小学应急避难场所","惠东县白花镇联丰村民委员会","村（社区）级",300,200,"综合避险"]
[799,"荣超中学应急避难场所","惠东县白花镇太阳村民委员会","村（社区）级",200,100,"综合避险"]
[800,"夏竹园村应急避难场所","惠东县白花镇夏竹园村民委员会","村（社区）级",1800,50,"室内避险"]
[801,"西山村民委员会应急避难场所","惠东县白花镇西山村清水村小组","村（社区）级",400,80,"室内避险"]
[802,"田洋村民委员会应急避难场所","惠东县白花镇大利村","村（社区）级",400,100,"室内避险"]
[803,"南龙村委文化广场应急避难场所","惠东县白花镇南龙村","村（社区）级",300,200,"综合避险"]
[804,"莆田学校应急避难场所","惠东县白花镇莆田村","村（社区）级",400,2000,"综合避险"]
[805,"福田村应急避难场所","惠东县白花镇福田村","村（社区）级",240,50,"室内避险"]
[806,"湖球村委应急避难场所","惠东县白花镇湖球村","村（社区）级",400,100,"室内避险"]
[807,"李洞村委应急避难场所","惠东县白花镇李洞村","村（社区）级",200,100,"室内避险"]
[808,"长沥村委应急避难场所","惠东县白花镇长沥村","村（社区）级",600,20,"室内避险"]
[809,"石陂村委应急避难场所","惠东县白花镇石陂村","村（社区）级",400,50,"室内避险"]
[810,"黄沙塘小学应急避难场所","惠东县白花镇坦塘村","村（社区）级",1200,200,"综合避险"]
[811,"高埠小学应急避难场所","惠东县白花镇坦塘村","村（社区）级",1200,100,"综合避险"]
[812,"水口村委应急避难场所","惠东县白花镇高埠村","村（社区）级",200,50,"综合避险"]
[813,"原明星小学应急避难场所","惠东县白花镇水口村","村（社区）级",800,200,"综合避险"]
[814,"吉隆中心小学应急避难场所","惠东县白花镇明星村","村（社区）级",14700,3000,"综合避险"]
[815,"吉圣社区党群服务中心应急避难场所","惠州市惠东县吉隆镇吉圣东路21号","村（社区）级",350,100,"室内避险"]
[816,"吉城社区党群服务中心应急避难场所","惠州市惠东县吉隆镇人民路\n黄大吉鞋材商贸城A2栋05号","村（社区）级",280,100,"室内避险"]
[817,"石湖头小学应急避难场所","惠州市惠东县吉隆镇平政村民委员会","村（社区）级",5000,1200,"综合避险"]
[818,"汉塘村党群服务中心应急避难场所","惠州市惠东县吉隆镇汉塘村1号","村（社区）级",550,200,"室内避险"]
[819,"轿岭村党群服务中心应急避难场所","惠州市惠东县吉隆镇\n轿岭村委大埔村1号","村（社区）级",650,200,"室内避险"]
[820,"轿岭小学应急避难场所","惠州市惠东县轿岭村","村（社区）级",2200,800,"综合避险"]
[821,"东洲小学应急避难场所","惠州市惠东县吉隆上东洲村115号","村（社区）级",2300,800,"综合避险"]
[822,"招贤村党群服务中心应急避难场所","惠州市惠东县吉隆镇招贤村小组卫生站对面","村（社区）级",450,300,"室内避险"]
[823,"招贤小学应急避难场所","惠州市惠东县吉隆镇招贤村小组卫生站对面","村（社区）级",1700,1100,"室内避险"]
[824,"大华村党群服务中心应急避难场所","惠州市惠东县吉隆镇吉联\n沿河西下路","村（社区）级",250,100,"室内避险"]
[825,"大华小学应急避难场所","惠州市惠东县吉隆镇大华村","村（社区）级",1200,600,"综合避险"]
[826,"瑶布村综合楼应急避难场所","惠州市惠东县沿河西下路瑶埠\n广场北侧","村（社区）级",550,200,"室内避险"]
[827,"埔仔村党群服务中心应急避难场所","惠州市惠东县吉隆镇\n埔仔村1号","村（社区）级",250,300,"室内避险"]
[828,"埔仔小学应急避难场所","惠州市惠东县吉隆镇埔仔小学","村（社区）级",3000,1000,"综合避险"]
[829,"九龙峰社区应急避难场所","惠东县九龙峰管委会九龙峰社区","镇级",800,500,"室内避险"]
[830,"谭公村委应急避难场所","惠东县九龙峰管委会谭公村委","村（社区）级",240,100,"室内避险"]
[831,"鹤楼村委应急避难场所","惠东县九龙峰管委会鹤楼村委","村（社区）级",200,100,"室内避险"]
[832,"下联村委应急避难场所","惠东县九龙峰管委会下联村委","村（社区）级",350,100,"室内避险"]
[833,"星合村委应急避难场所","惠东县九龙峰管委会星合村委","村（社区）级",400,100,"室内避险"]
[834,"大布村委应急避难场所","惠东县九龙峰管委会大布村委","村（社区）级",400,100,"室内避险"]
[835,"大路村委应急避难场所","惠东县九龙峰管委会大路村委","村（社区）级",800,100,"室内避险"]
[836,"凤岗村委应急避难场所","惠东县九龙峰管委会凤岗村委","村（社区）级",300,100,"室内避险"]
[837,"梌圩村委应急避难场所","惠东县九龙峰管委会梌圩村委","村（社区）级",240,100,"室内避险"]
[838,"集联村委应急避难场所","惠东县九龙峰管委会集联村委","村（社区）级",200,100,"室内避险"]
[839,"读光村委应急避难场所","惠东县九龙峰管委会读光村委","村（社区）级",800,100,"室内避险"]
[840,"联新村委应急避难场所","惠东县九龙峰管委会联新村委","村（社区）级",1200,100,"室内避险"]
[841,"田心村委应急避难场所","惠东县九龙峰管委会田心村委","村（社区）级",400,100,"室内避险"]
[842,"维德村委应急避难场所","惠东县九龙峰管委会维德村委","村（社区）级",120,100,"室内避险"]
[843,"长坑村委应急避难场所","惠东县九龙峰管委会长坑村委","村（社区）级",200,100,"室内避险"]
[844,"增光社区村委应急避难场所","惠东县九龙峰管委会增光社区村委","村（社区）级",650,500,"室内避险"]
[845,"大片地村委应急避难场所","惠东县九龙峰管委会大片地村委","村（社区）级",240,100,"室内避险"]
[846,"平江村委应急避难场所","惠东县九龙峰管委会平江村委","村（社区）级",200,100,"室内避险"]
[847,"全昌村委应急避难场所","惠东县九龙峰管委会全昌村委","村（社区）级",200,100,"室内避险"]
[848,"上围村委应急避难场所","惠东县九龙峰管委会上围村委","村（社区）级",200,100,"室内避险"]
[849,"博罗县文化广场应急避难场所","惠州市博罗县罗阳街道商业中街文化广场","县级",66628,33314,"室外避险"]
[850,"博罗县休闲公园应急避难场所","惠州市博罗县罗阳街道中园五路休闲广场","县级",5897,2949,"室外避险"]
[851,"博罗县人民公园应急避难场所","惠州市博罗县罗阳街道罗阳一路人民公园","县级",11482,5741,"室外避险"]
[852,"博罗县东山森林公园南广场应急避难场所","惠州市博罗县罗阳街道滨江路东山公园南广场","县级",49262,24631,"室外避险"]
[853,"博罗县东山森林公园北广场应急避难场所","惠州市博罗县罗阳街道商业东街东山公园","县级",49926,24963,"室外避险"]
[854,"博罗县救助站应急避难场所","惠州市博罗县罗阳街道博罗大道中北40米","县级",4678,900,"综合避险"]
[855,"博罗县义和广场应急避难场所","惠州市博罗县罗阳街道义和新峰路","县级",15000,8000,"室外避险"]
[856,"博罗县行政服务中心应急避难场所","惠州市博罗县罗阳街道商业西街行政服务中心","县级",21045,10523,"室外避险"]
[857,"博罗县文化中心应急避难场所","惠州市博罗县罗阳街道罗阳一路303号","县级",16033,2000,"综合避险"]
[858,"博罗县体育中心应急避难场所","惠州市博罗县罗阳街道体育大道一号","县级",22000,50000,"综合避险"]
[859,"杨桥镇惠民广场应急避难场所","惠州市博罗县杨桥镇惠民广场","镇级",9000,4000,"室内避险"]
[860,"杨桥镇石坝办事处应急避难场所","惠州市博罗县杨桥镇石坝办事处四队44号","村级",2150,40,"室内避险"]
[861,"杨桥镇小坑办事处应急避难场所","惠州市博罗县杨桥镇小坑办事处二队99号小坑办事处","村级",400,300,"室内避险"]
[862,"杨桥镇塔东办事处应急避难场所","惠州市博罗县杨桥镇塔东三队111号","村级",300,100,"室内避险"]
[863,"杨桥镇塔下办事处应急避难场所","惠州市博罗县杨桥镇塔下办事处六队（党群服务中心3楼）","村级",1500,500,"室内避险"]
[864,"杨桥镇大坑办事处应急避难场所","惠州市博罗县杨桥镇大坑下陂队大坑小学","镇级",400,300,"室内避险"]
[865,"杨桥镇榄岭办事处应急避难场所","惠州市博罗县杨桥镇榄岭办事处西湖队文化室","村级",180,50,"室内避险"]
[866,"杨桥镇坪塘小学应急避难场所","惠州市博罗县杨桥镇坪塘广场","村级",4150,80,"室内避险"]
[867,"杨桥镇朝田办事处应急避难场所","惠州市博罗县杨桥镇朝田分场直属广场","村级",600,100,"室内避险"]
[868,"杨桥镇风门办事处应急避难场所","惠州市博罗县杨桥镇风门办事处办公楼","村级",1200,80,"室内避险"]
[869,"杨桥镇十二岭办事处应急避难场所","惠州市博罗县杨桥镇十二岭小学","镇级",3000,100,"室内避险"]
[870,"杨桥镇桔子办事处应急避难场所","惠州市博罗县杨桥镇桔子办事处党群服务中心","村级",600,450,"室内避险"]
[871,"杨桥镇石岗岭办事处应急避难场所","惠州市博罗县杨桥镇齐子坑石岗岭小学","镇级",1380,188,"室内避险"]
[872,"杨侨镇室内篮球场应急避难场所","惠州市博罗县杨桥镇室内篮球场","村级",600,200,"室内避险"]
[873,"杨侨镇桥东居民委员会应急避难场所","惠州市博罗县杨桥镇侨兴路3号","村级",280,100,"室内避险"]
[874,"博罗县石湾镇石湾公园应急避难场所","惠州市博罗县石湾镇石湾公园","村（社区）级",100,5000,"综合避险"]
[875,"石湾镇石湾村村民委员会应急避难场所","惠州市博罗县石湾镇石湾村红卫街107号","村（社区）级",600,200,"综合避险"]
[876,"石湾镇湖山村村民委员会应急避难场所","惠州市博罗县石湾镇湖山村伴湖路","村（社区）级",2500,400,"综合避险"]
[877,"石湾镇石湾社区居民委员会应急避难场所","惠州市博罗县石湾镇公园北路21号","村（社区）级",80,10,"综合避险"]
[878,"石湾镇里波水村村民委员会应急避难场所","惠州市博罗县石湾镇里波水村民委员会","村（社区）级",4900,300,"综合避险"]
[879,"石湾镇中岗村民委员会应急避难场所","惠州市博罗县石湾镇中岗村民委员会","村（社区）级",1200,600,"综合避险"]
[880,"石湾镇鸾岗村村民委员会应急避难场所","惠州市博罗县石湾镇里鸾岗村民委员会","村（社区）级",200,100,"综合避险"]
[881,"石湾镇滘吓村应急避难场所应急避难场所","惠州市博罗县石湾镇滘吓村民委员会","村（社区）级",4650,1350,"综合避险"]
[882,"石湾镇铁场村民委员会应急避难场所","惠州市博罗县石湾镇铁场村民委员会","村（社区）级",1200,150,"综合避险"]
[883,"石湾镇源头村民委员会应急避难场所","惠州市博罗县石湾镇源头村民委员会","村（社区）级",1800,1000,"综合避险"]
[884,"石湾镇白沙应急避难场所","惠州市博罗县石湾镇白沙村民委员会","村（社区）级",1000,300,"综合避险"]
[885,"石湾镇西田应急避难场所","惠州市博罗县石湾镇西田村民委员会（石湾大道892号）","村（社区）级",3700,100,"室内避险"]
[886,"石湾镇黄西应急避难场所","惠州市博罗县石湾镇黄西村民委员会","村（社区）级",1000,500,"综合避险"]
[887,"石湾镇渔村村礼堂应急避难场所","惠州市博罗县石湾镇渔村一区27号","村（社区）级",1400,1000,"综合避险"]
[888,"石湾镇水上社区居民委员会应急避难场所","惠州市博罗县石湾镇江滨路93号","村（社区）级",900,1000,"综合避险"]
[889,"石湾镇文化广场应急避难场所","惠州市博罗县石湾镇文化广场","村（社区）级",55625,3000,"综合避险"]
[890,"石湾镇鸾岗小学应急避难场所","惠州市博罗县石湾镇里鸾岗小学","镇级",3000,1500,"综合避险"]
[891,"柏塘镇龙头村应急避难场所","惠州市博罗县柏塘镇龙头村民委员会点","村级",250,50,"室内避险"]
[892,"柏塘镇鹅寨村应急避难场所","惠州市博罗县柏塘镇鹅寨村广场","村级",2600,200,"室内避险"]
[893,"柏塘镇车田村应急避难场所","惠州市博罗县柏塘镇车田村委广场","村级",2000,300,"综合避险"]
[894,"柏塘镇柏市村应急避难场所","惠州市博罗县柏塘镇柏市小学","镇村级",4500,2000,"综合避险"]
[895,"柏塘镇新陂学校应急避难场所","惠州市博罗县柏塘镇新陂小学","镇级",3000,1000,"综合避险"]
[896,"柏塘镇黄塘村应急避难场所","惠州市博罗县柏塘镇黄塘村黄塘幼儿园","镇级",5000,2000,"综合避险"]
[897,"柏塘镇低陂村应急避难场所","惠州市博罗县柏塘镇低陂村老年人服务中心","村级",400,300,"综合避险"]
[898,"柏塘镇横岭村应急避难场所","惠州市博罗县柏塘镇横岭小学","镇级",1200,200,"综合避险"]
[899,"柏塘镇蕉木村应急避难场所","惠州市博罗县柏塘镇蕉木村曲寮小组广场","镇级",6200,300,"综合避险"]
[900,"柏塘镇高桥村应急避难场所","惠州市博罗县柏塘镇高桥村高桥小学","村级",2360,400,"综合避险"]
[901,"柏塘镇屯里村应急避难场所","惠州市博罗县柏塘镇屯里村委","镇级",6000,300,"综合避险"]
[902,"柏塘镇上田埔村应急避难场所","惠州市博罗县柏塘镇上田埔村党群服务中心，村广场","村级",800,1000,"综合避险"]
[903,"柏塘中心小学石湖村教学点应急避难场所","惠州市博罗县柏塘镇柏塘镇广梅公路东482","镇级",2500,800,"综合避险"]
[904,"柏塘镇富新村应急避难场所","惠州市博罗县柏塘镇富新村村委大楼","村级",420,200,"综合避险"]
[905,"柏塘镇洋景村应急避难场所","惠州市博罗县柏塘镇洋景村老村委楼","村级",750,600,"综合避险"]
[906,"柏塘镇水陂村应急避难场所","惠州市博罗县柏塘镇柏塘镇水陂教学点","村级",5500,300,"综合避险"]
[907,"柏塘镇罗塘村应急避难场所","惠州市博罗县柏塘镇广梅公路东78号罗塘村民委员会","村级",400,100,"综合避险"]
[908,"柏塘镇鸭公村鸭公小学应急避难场所","惠州市博罗县柏塘镇鸭公村民委员会","村级",2000,300,"综合避险"]
[909,"柏塘镇石岗村应急避难场所","惠州市博罗县柏塘镇石岗村委","镇级",5500,240,"综合避险"]
[910,"柏塘镇邹光村应急避难场所","惠州市博罗县柏塘镇邹光村委","村级",800,150,"综合避险"]
[911,"柏塘镇柏塘社区应急避难场所","惠州市博罗县柏塘镇圩镇解放南路20号","村级",800,230,"室内避险"]
[912,"柏塘镇山前村应急避难场所","惠州市博罗县柏塘镇山前村委、山前小学","村级",700,220,"综合避险"]
[913,"柏塘镇燕光村应急避难场所","惠州市博罗县柏塘镇燕光村上各小组66号","村级",700,300,"综合避险"]
[914,"柏塘镇禾水村应急避难场所","惠州市博罗县柏塘镇禾水村老年人服务中心","村级",150,100,"综合避险"]
[915,"柏塘镇坳头村应急避难场所","惠州市博罗县柏塘镇坳头村村委办公楼","镇村级",3500,1000,"综合避险"]
[916,"柏塘镇平安村应急避难场所","惠州市博罗县柏塘镇平安村民委员会广场及平安幼儿园（桂花街62号）","村级",350,210,"综合避险"]
[917,"柏塘镇小洞村应急避难场所","惠州市博罗县柏塘镇小洞村老年人服务中心","村级",700,100,"综合避险"]
[918,"柏塘镇平南村应急避难场所","惠州市博罗县柏塘镇平南村民委员会办公楼","村级",2350,150,"综合避险"]
[919,"柏塘镇古洞村应急避难场所","惠州市博罗县柏塘镇古洞村卫生站","镇级",4500,1000,"综合避险"]
[920,"柏塘镇陂头村应急避难场所","惠州市博罗县柏塘镇陂头村原陂头小学","村级",700,100,"综合避险"]
[921,"柏塘镇矮围村应急避难场所","惠州市博罗县柏塘镇矮围小学和村委广场","村级",3000,1000,"综合避险"]
[922,"柏塘镇黄新村应急避难场所","惠州市博罗县柏塘镇黄新教学点","村级",920,200,"综合避险"]
[923,"柏塘镇白岭村应急避难场所","惠州市博罗县柏塘镇白岭村民委员会篮球场","镇级",4500,1800,"综合避险"]
[924,"柏塘镇黄栏村应急避难场所","惠州市博罗县柏塘镇黄栏村民委员会金竹小组","镇村级",500,300,"综合避险"]
[925,"柏塘镇平安社区应急避难场所","惠州市博罗县柏塘镇平安社区党群服务中心","镇级",1500,400,"综合避险"]
[926,"柏塘镇下洞村白芒小学应急避难场所","惠州市博罗县柏塘镇下洞村白芒小学","村级",3500,300,"综合避险"]
[927,"柏塘镇上洞村应急避难场所","惠州市博罗县柏塘镇上洞村委","村级",1980,800,"综合避险"]
[928,"柏塘镇旱田村应急避难场所","惠州市博罗县柏塘镇旱田村委","村级",720,200,"综合避险"]
[929,"观音阁棠下村应急避难场所","惠州市博罗县观音阁镇棠下村小学","镇级",4500,1000,"综合避险"]
[930,"观音阁南坑村应急避难场所","惠州市博罗县观音阁镇南村村民委员会","村级",370,245,"综合避险"]
[931,"观音阁砂岭村砂岭小学应急避难场所","惠州市博罗县观音阁镇砂岭村小学","镇级",250,150,"综合避险"]
[932,"观音阁伍塘村伍号营地应急避难场所","惠州市博罗县观音阁镇伍塘村新塘小组伍号营地","村级",20000,3000,"综合避险"]
[933,"观音阁联星村应急避难场所","惠州市博罗县观音阁镇联星小学","镇级",9000,2000,"综合避险"]
[934,"观音阁南村村应急避难场所","惠州市博罗县观音阁镇南村村党群服务中心","村级",600,700,"综合避险"]
[935,"观音阁彭村村应急避难场所","惠州市博罗县观音阁镇彭村村门口小组村民委员会","村级",2500,800,"综合避险"]
[936,"观音阁柏湖村应急避难场所","惠州市博罗县观音阁镇居家养老活动中心、\n文化活动中心。","村级",4500,600,"综合避险"]
[937,"观音阁十字路村应急避难场所","惠州市博罗县观音阁镇十字路村党群服务中心","村级",1530,500,"综合避险"]
[938,"观音阁菱湖村应急避难场所","惠州市博罗县观音阁镇菱湖村民委员会","村级",2500,300,"综合避险"]
[939,"观音阁杨村村应急避难场所","惠州市博罗县观音阁镇杨村村民委员会","村级",6000,400,"综合避险"]
[940,"观音阁泳新村应急避难场所","惠州市博罗县观音阁镇泳新村民委员会","村级",300,500,"综合避险"]
[941,"观音阁塘角村应急避难场所","惠州市博罗县观音阁镇塘角村党群服务中心","村级",1600,2000,"综合避险"]
[942,"观音阁镇政府门前广场应急避难场所","惠州市博罗县观音阁镇观音阁镇塘新路1号","镇级",3000,1500,"综合避险"]
[943,"观音阁文化广场应急避难场所","惠州市博罗县观音阁镇观音阁镇文化广场","镇级",5000,2000,"综合避险"]
[944,"观音阁桂岭村应急避难场所","惠州市博罗县观音阁镇桂新街28号","村级",6000,400,"综合避险"]
[945,"杨村镇李村村委应急避难场所","惠州市博罗县杨村镇李村村民委员会","村级",6160,300,"综合避险"]
[946,"杨村镇石滩村委应急避难场所","惠州市博罗县杨村镇石滩村民委员会","村级",3000,150,"综合避险"]
[947,"杨村镇羊和村委应急避难场所","惠州市博罗县杨村镇羊和村民委员会","村级",340,170,"室内避险"]
[948,"杨村镇耀潭村委应急避难场所","惠州市博罗县杨村镇耀潭小学","镇级",1000,1500,"综合避险"]
[949,"杨村镇宝潭村委应急避难场所","惠州市博罗县杨村镇宝潭村委","村级",1000,1000,"综合避险"]
[950,"杨村镇陈村委应急避难场所","惠州市博罗县杨村镇陈村民委员会","村级",4000,1000,"综合避险"]
[951,"杨村镇水华寨村委应急避难场所","惠州市博罗县杨村镇水华寨张乾学校","镇级",1000,100,"室内避险"]
[952,"杨村镇上车村委应急避难场所","惠州市博罗县杨村镇上车村民委员会","村级",1380,400,"综合避险"]
[953,"杨村镇星光村委应急避难场所","惠州市博罗县杨村镇星光村民委员会","村级",500,150,"综合避险"]
[954,"杨村镇塘角村委应急避难场所","惠州市博罗县杨村镇塘角村民委员会办公楼","村级",200,100,"室内避险"]
[955,"杨村镇新前村委应急避难场所","惠州市博罗县杨村镇新前村老围小组68号","村级",350,175,"室内避险"]
[956,"杨村镇大井村委应急避难场所","惠州市博罗县杨村镇大井小学","镇级",3120,60,"综合避险"]
[957,"杨村镇大岭下村委应急避难场所","惠州市博罗县杨村镇大岭下村民委员会","村级",1200,150,"综合避险"]
[958,"杨村镇合水村委应急避难场所","惠州市博罗县杨村镇合水村上何小组1号","村级",70,60,"室内避险"]
[959,"杨村镇埔连村委应急避难场所","惠州市博罗县杨村镇杨村镇埔连学校","镇级",4000,2000,"综合避险"]
[960,"杨村镇径口村委应急避难场所","惠州市博罗县杨村镇径口村民委员会","村级",2000,400,"综合避险"]
[961,"杨村镇竹子园村委应急避难场所","惠州市博罗县杨村镇竹子园村村民委员会","村级",1500,2000,"综合避险"]
[962,"杨村镇井水龙村委应急避难场所","惠州市博罗县杨村镇井水龙村委","村级",2800,300,"综合避险"]
[963,"杨村镇新田村委应急避难场所","惠州市博罗县杨村镇新田村民委员会","村级",200,200,"综合避险"]
[964,"杨村镇坑美村委应急避难场所","惠州市博罗县杨村镇坑美村民委员会旁坑美小学旧址","镇级",6000,2000,"综合避险"]
[965,"杨村镇杨居委应急避难场所","惠州市博罗县杨村镇祥兴江畔花园1期1-2层","村级",400,200,"室内避险"]
[966,"杨村镇显居委应急避难场所","惠州市博罗县杨村镇显村小学","镇级",15000,3000,"综合避险"]
[967,"杨村镇敬老院应急避难场所","惠州市博罗县杨村镇218县道西150米","镇级",5000,2000,"综合避险"]
[968,"博罗县罗阳街道横江尾村应急避难场所","惠州市博罗县罗阳街道横江尾村党群服务中心","村（社区）级",500,100,"综合避险"]
[969,"博罗县罗阳街道廖洞村应急避难场所","惠州市博罗县罗阳街道廖洞村民委员会","村（社区）级",1000,500,"室外避险"]
[970,"博罗县罗阳街道杨梅村应急避难场所","惠州市博罗县罗阳街道杨梅村民委员会","村（社区）级",600,500,"综合避险"]
[971,"博罗县罗阳街道观背村应急避难场所","惠州市博罗县罗阳街道观背村党群服务中心","村（社区）级",840,500,"综合避险"]
[972,"博罗县罗阳街道三徐村应急避难场所","惠州市博罗县罗阳街道三徐村民委员会大楼","村（社区）级",550,600,"综合避险"]
[973,"博罗县罗阳街道寨头村应急避难场所","惠州市博罗县罗阳街道寨头村民委员会及门前休闲广场","村（社区）级",6350,3000,"综合避险"]
[974,"博罗县罗阳街道上塘村应急避难场所","惠州市博罗县罗阳街道上塘村党群服务中心","村（社区）级",3000,500,"综合避险"]
[975,"博罗县罗阳街道梅林村应急避难场所","惠州市博罗县罗阳街道梅林村党群服务中心","村（社区）级",400,300,"室外避险"]
[976,"博罗县罗阳街道东坑村应急避难场所","惠州市博罗县罗阳街道东坑村党群服务中心","村（社区）级",2000,1000,"综合避险"]
[977,"博罗县罗阳街道小金村应急避难场所","惠州市博罗县罗阳街道小金村党群服务中心","村（社区）级",600,120,"室外避险"]
[978,"博罗县罗阳街道浪头村应急避难场所","惠州市博罗县罗阳街道塱头村党群服务中心","村（社区）级",600,1000,"室外避险"]
[979,"博罗县罗阳街道鸡麻地村应急避难场所","惠州市博罗县罗阳街道鸡麻地村民委员会","村（社区）级",1800,500,"室外避险"]
[980,"博罗县罗阳街道莲湖村应急避难场所","惠州市博罗县罗阳街道莲湖村广场","村（社区）级",5000,2600,"室外避险"]
[981,"博罗县罗阳街道横坑村应急避难场所","惠州市博罗县罗阳街道横坑村党群服务中心","村（社区）级",900,600,"综合避险"]
[982,"博罗县罗阳街道翠美园村应急避难场所","惠州市博罗县罗阳街道 翠美园村民委员会","村（社区）级",1000,1500,"综合避险"]
[983,"博罗县罗阳街道巷口村应急避难场所","惠州市博罗县罗阳街道巷口村党群服务中心","村（社区）级",600,500,"室外避险"]
[984,"博罗县罗阳街道大小塘村应急避难场所","惠州市博罗县罗阳街道大小塘村党群服务中心","村（社区）级",800,800,"室外避险"]
[985,"博罗县罗阳街道大小塘村应急避难场所","惠州市博罗县罗阳街道新角村中围小组1号","村（社区）级",800,200,"综合避险"]
[986,"博罗县罗阳街道天上元村应急避难场所","惠州市博罗县罗阳街道天上元村党群服务中心","村（社区）级",600,600,"综合避险"]
[987,"博罗县罗阳街道云步村应急避难场所","惠州市博罗县罗阳街道云步村党群服务中心","村（社区）级",2000,500,"室外避险"]
[988,"博罗县罗阳街道长贵村应急避难场所","惠州市博罗县罗阳街道长贵村党群服务中心","村（社区）级",1200,1800,"室外避险"]
[989,"博罗县罗阳街道新结村应急避难场所","惠州市博罗县罗阳街道新结村党群服务中心","村（社区）级",2200,500,"综合避险"]
[990,"博罗县罗阳街道涌口村应急避难场所","惠州市博罗县罗阳街道涌口村党群服务中心","村（社区）级",2000,1000,"室外避险"]
[991,"博罗县罗阳街道梅花村应急避难场所","惠州市博罗县罗阳街道梅花村党群服务中心","村（社区）级",300,500,"综合避险"]
[992,"博罗县罗阳街道新村村应急避难场所","惠州市博罗县罗阳街道新村村文体活动中心","村（社区）级",1800,1000,"综合避险"]
[993,"博罗县罗阳街道承粮陂村应急避难场所","惠州市博罗县罗阳街道承粮陂村党群服务中心","村（社区）级",3000,1000,"室外避险"]
[994,"博罗县罗阳街道田牌村应急避难场所","惠州市博罗县罗阳街道田牌村党群服务中心","村（社区）级",5000,2000,"综合避险"]
[995,"博罗县罗阳街道水西村应急避难场所","惠州市博罗县罗阳街道水西村党群服务中心","村（社区）级",2000,1000,"室外避险"]
[996,"博罗县罗阳街道虾浪村应急避难场所","惠州市博罗县罗阳街道虾塱村党群服务中心","村（社区）级",3600,800,"综合避险"]
[997,"博罗县罗阳街道黎村应急避难场所","惠州市博罗县罗阳街道黎村村民委员会","村（社区）级",1270,300,"综合避险"]
[998,"博罗县罗阳街道赤竹坑村应急避难场所","惠州市博罗县罗阳街道赤竹坑村高围小组","村（社区）级",3000,2000,"室外避险"]
[999,"博罗县罗阳街道东区社区应急避难场所","惠州市博罗县罗阳街道新横巷停车场","村（社区）级",800,700,"室外避险"]
[1000,"博罗县罗阳街道西区社区应急避难场所","惠州市博罗县罗阳街道文化广场、榕溪路休闲小公园","村（社区）级",800,500,"室外避险"]
[1001,"博罗县罗阳街道江南社区应急避难场所","惠州市博罗县罗阳街道江南大道东9号","村（社区）级",3000,500,"室外避险"]
[1002,"博罗县罗阳街道水上社区应急避难场所","惠州市博罗县罗阳街道水西路18号水上新村","村（社区）级",1200,500,"综合避险"]
[1003,"湖镇镇新作塘村应急避难场所","惠州市博罗县湖镇镇新作塘村民委员会大楼","村级",250,125,"室内避险"]
[1004,"湖镇镇莲塘村应急避难场所","惠州市博罗县湖镇镇莲塘村民委员会大楼","村级",150,75,"室内避险"]
[1005,"湖镇镇下村村应急避难场所","惠州市博罗县湖镇镇下村村民委员会大楼","村级",120,60,"室内避险"]
[1006,"湖镇镇下边村应急避难场所","惠州市博罗县湖镇镇下边村民委员会大楼","村级",120,60,"室内避险"]
[1007,"湖镇镇湖镇村应急避难场所","惠州市博罗县湖镇镇湖镇村民委员会大楼","村级",200,100,"室内避险"]
[1008,"湖镇镇东风村应急避难场所","惠州市博罗县湖镇镇东风村民委员会大楼","村级",200,100,"室内避险"]
[1009,"湖镇镇陈村村应急避难场所","惠州市博罗县湖镇镇陈村村民委员会大楼","村级",150,75,"室内避险"]
[1010,"湖镇镇光辉村应急避难场所","惠州市博罗县湖镇镇光辉村民委员会大楼","村级",150,75,"室内避险"]
[1011,"湖镇镇水心围村应急避难场所","惠州市博罗县湖镇镇水心围村民委员会大楼","村级",300,150,"室内避险"]
[1012,"湖镇镇显岗村应急避难场所","惠州市博罗县湖镇镇显岗村民委员会大楼","村级",400,200,"室内避险"]
[1013,"湖镇镇梅潭村应急避难场所","惠州市博罗县湖镇镇梅潭村民委员会大楼","村级",150,75,"室内避险"]
[1014,"湖镇镇新风村应急避难场所","惠州市博罗县湖镇镇新风村民委员会大楼","村级",300,150,"室内避险"]
[1015,"湖镇镇钓湖村应急避难场所","惠州市博罗县湖镇镇钓湖村民委员会大楼","村级",120,60,"室内避险"]
[1016,"湖镇镇和睦村应急避难场所","惠州市博罗县湖镇镇和睦村民委员会大楼","村级",150,75,"室内避险"]
[1017,"湖镇镇岗南村应急避难场所","惠州市博罗县湖镇镇岗南村民委员会大楼","村级",300,150,"室内避险"]
[1018,"湖镇镇邹村村应急避难场所","惠州市博罗县湖镇镇邹村村民委员会大楼","村级",120,60,"室内避险"]
[1019,"湖镇镇金星村应急避难场所","惠州市博罗县湖镇镇金星村民委员会大楼","村级",150,75,"室内避险"]
[1020,"湖镇镇茶山村应急避难场所","惠州市博罗县湖镇镇茶山村民委员会大楼","村级",300,150,"室内避险"]
[1021,"湖镇镇大坑村应急避难场所","惠州市博罗县湖镇镇大坑村民委员会大楼","村级",120,60,"室内避险"]
[1022,"湖镇镇横光村应急避难场所","惠州市博罗县湖镇镇横光村民委员会大楼","村级",300,150,"室内避险"]
[1023,"湖镇镇下径村应急避难场所","惠州市博罗县湖镇镇下径村民委员会大楼","村级",120,60,"室内避险"]
[1024,"湖镇镇三水村应急避难场所","惠州市博罗县湖镇镇三水村民委员会大楼","村级",150,75,"室内避险"]
[1025,"湖镇镇星星村应急避难场所","惠州市博罗县湖镇镇星星村民委员会大楼","村级",250,125,"室内避险"]
[1026,"湖镇镇塘下村应急避难场所","惠州市博罗县湖镇镇塘下村民委员会大楼","村级",300,200,"室内避险"]
[1027,"湖镇镇大丰村应急避难场所","惠州市博罗县湖镇镇大丰村民委员会大楼","村级",120,60,"室内避险"]
[1028,"湖镇镇坪山村应急避难场所","惠州市博罗县湖镇镇坪山村民委员会大楼","村级",250,125,"室内避险"]
[1029,"湖镇镇东埔村应急避难场所","惠州市博罗县湖镇镇东埔村民委员会大楼","村级",300,150,"室内避险"]
[1030,"湖镇镇上前村应急避难场所","惠州市博罗县湖镇镇上前村民委员会大楼","村级",250,125,"室内避险"]
[1031,"湖镇镇黎光村应急避难场所","惠州市博罗县湖镇镇黎光村民委员会大楼","村级",150,75,"室内避险"]
[1032,"湖镇镇黄塘村应急避难场所","惠州市博罗县湖镇镇黄塘村民委员会大楼","村级",300,150,"室内避险"]
[1033,"湖镇镇埔新村应急避难场所","惠州市博罗县湖镇镇埔新村民委员会大楼","村级",250,125,"室内避险"]
[1034,"湖镇镇埔头村应急避难场所","惠州市博罗县湖镇镇埔头村民委员会大楼","村级",150,75,"室内避险"]
[1035,"湖镇镇新丰村应急避难场所","惠州市博罗县湖镇镇新丰村民委员会大楼","村级",250,125,"室内避险"]
[1036,"湖镇镇新围村应急避难场所","惠州市博罗县湖镇镇新围村民委员会大楼","村级",250,125,"室内避险"]
[1037,"湖镇镇湖镇社区应急避难场所","惠州市博罗县湖镇镇湖镇社区大楼","社区级",150,75,"室内避险"]
[1038,"湖镇镇响水社区应急避难场所","惠州市博罗县湖镇镇响水社区大楼","社区级",150,75,"室内避险"]
[1039,"湖镇镇下洞村应急避难场所","惠州市博罗县湖镇镇下洞村民委员会大楼","村级",250,125,"室内避险"]
[1040,"湖镇镇文化广场应急避难场所","惠州市博罗县湖镇镇文化广场影剧院","镇级",1000,500,"室内避险"]
[1041,"福田镇徐田村法治公园应急避难场所","惠州市博罗县福田镇徐田村法治公园","村级",830,200,"综合避险"]
[1042,"福田镇坳岭应急避难场所","惠州市博罗县福田镇坳岭小学（山一小组）","村级",1900,500,"综合避险"]
[1043,"福田镇山下应急避难场所","惠州市博罗县福田镇山下村民委员会，礼堂，小学","村级",1800,700,"综合避险"]
[1044,"福田镇荔枝墩应急避难场所","惠州市博罗县福田镇荔枝墩礼堂","村级",1000,150,"综合避险"]
[1045,"福田镇横溪头村礼堂 、球场应急避难场所","惠州市博罗县福田镇横溪头村礼堂","村级",2500,500,"室内避险"]
[1046,"福田镇依岗应急避难场所","惠州市博罗县福田镇依岗村民委员会，小学","村级",2500,1000,"综合避险"]
[1047,"福田镇福田村村民委员会应急避难场所","惠州市博罗县福田镇福田村民委员会","村级",700,100,"综合避险"]
[1048,"福田镇周袁村民委员会应急避难场所","惠州市博罗县福田镇周袁村民委员会","村级",900,200,"综合避险"]
[1049,"福田镇营盘吓村委、篮球场应急避难场所","惠州市博罗县福田镇营盘下村老屋小组","村级",1700,150,"综合避险"]
[1050,"福田镇马田村民委员会、篮球场应急避难场所","惠州市博罗县福田镇马田村民委员会","村级",1500,100,"综合避险"]
[1051,"福田镇鸡公坑东坑小组应急避难场所","惠州市博罗县福田镇鸡公坑东坑小学应急避难场所","镇级",2800,200,"综合避险"]
[1052,"福田镇围岭村礼堂、围岭村广场应急避难场所","惠州市博罗县福田镇围岭村礼堂、围岭村广场","村级",2000,220,"综合避险"]
[1053,"福田镇莲塘岗应急避难场所","惠州市博罗县福田镇莲塘岗村民委员会","村级",420,100,"综合避险"]
[1054,"福田镇联和村应急避难场所","惠州市博罗县福田镇联和村民委员会  联和小学","村级",4052,2500,"综合避险"]
[1055,"福田镇石巷应急避难场所","惠州市博罗县福田镇石巷小学校区","镇级",3000,2000,"综合避险"]
[1056,"福田镇柿树吓村委应急避难场所","惠州市博罗县福田镇柿树吓村蒲芦氹小组柿树吓村委大楼","村级",200,50,"室内避险"]
[1057,"福田镇道姑田应急避难场所","惠州市博罗县福田镇道姑田村委","村级",120,150,"综合避险"]
[1058,"福田镇居委应急避难场所","惠州市博罗县福田镇福石路1号","村级",350,500,"综合避险"]
[1059,"石坝镇象岭应急避难场所","惠州市博罗县石坝镇象岭村民委员会","镇级",2700,200,"综合避险"]
[1060,"石坝镇红星应急避难场所","惠州市博罗县石坝镇红星村小学","镇级\n","4000\n\n",1000,"综合避险"]
[1061,"石坝镇官村应急避难场所","惠州市博罗县石坝镇官村村民委员会","村（社区）级",2000,500,"综合避险"]
[1062,"石坝镇冷水坑应急避难场所","惠州市博罗县石坝镇冷水坑村小学","镇级",5500,800,"综合避险"]
[1063,"石坝镇石联应急避难场所","惠州市博罗县石坝镇石联村小学","镇级",12000,3000,"综合避险"]
[1064,"石坝镇三嘉村应急避难场所","惠州市博罗县石坝镇三嘉村村小学","镇级",4000,1000,"综合避险"]
[1065,"石坝镇罗洞应急避难场所","惠州市博罗县石坝镇罗洞村民委员会","村（社区）级",5600,200,"综合避险"]
[1066,"石坝镇埔贝应急避难场所","惠州市博罗县石坝镇埔贝村小学","镇级",8545,500,"综合避险"]
[1067,"石坝镇丁塘应急避难场所","惠州市博罗县石坝镇丁塘村小学","镇级",3000,500,"综合避险"]
[1068,"石坝镇坦田应急避难场所","惠州市博罗县石坝镇坦田村小学","镇级",3000,500,"综合避险"]
[1069,"石坝镇新村应急避难场所","惠州市博罗县石坝镇新村村兴湖幼儿园","镇级",1600,200,"综合避险"]
[1070,"石坝镇下坑应急避难场所","惠州市博罗县石坝镇下坑村小学","镇级",16000,200,"综合避险"]
[1071,"石坝镇山下应急避难场所","惠州市博罗县石坝镇山下村民委员会","村（社区）级",500,100,"综合避险"]
[1072,"石坝镇龙口应急避难场所","惠州市博罗县石坝镇龙口村下坑小学","镇级",2000,200,"综合避险"]
[1073,"石坝镇石坝应急避难场所","惠州市博罗县石坝镇石坝村石黄路2号","村（社区）级",1000,200,"综合避险"]
[1074,"石坝镇乌坭湖应急避难场所","惠州市博罗县石坝镇乌坭湖村富华学校","镇级",9448,1000,"综合避险"]
[1075,"石坝镇黄山洞应急避难场所","惠州市博罗县石坝镇黄山洞村老村委楼","村（社区）级",1000,300,"综合避险"]
[1076,"石坝镇大水坑应急避难场所","惠州市博罗县石坝镇大水坑村原大水坑小学","镇级",500,100,"综合避险"]
[1077,"石坝镇蓝田应急避难场所","惠州市博罗县石坝镇蓝田村小学","镇级",5000,2300,"综合避险"]
[1078,"石坝镇蓝新应急避难场所","惠州市博罗县石坝镇蓝新村民委员会","村（社区）级",3600,1800,"综合避险"]
[1079,"石坝镇秀埔应急避难场所","惠州市博罗县石坝镇秀埔村小学","镇级",6000,2000,"综合避险"]
[1080,"石坝镇吉石应急避难场所","惠州市博罗县石坝镇吉石村民委员会","村（社区）级",1600,500,"综合避险"]
[1081,"石坝镇蓝田居委应急避难场所","惠州市博罗县石坝镇蓝田社区蓝田广场","村（社区）级",1200,300,"综合避险"]
[1082,"石坝镇石坝居委应急避难场所","惠州市博罗县石坝镇石坝广场、石坝中学","镇级",27000,60000,"综合避险"]
[1083,"博罗县公庄镇蓝坪村委应急避难场所","惠州市博罗县公庄镇蓝坪村委","村级",100,50,"综合避险"]
[1084,"博罗县公庄镇鹊楼村委应急避难场所","惠州市博罗县公庄镇公庄镇鹊楼村委","村级",270,135,"综合避险"]
[1085,"博罗县公庄镇黄陂村委应急避难场所","惠州市博罗县公庄镇公庄镇黄陂村委","村级",810,405,"综合避险"]
[1086,"博罗县公庄镇大陂村委应急避难场所","惠州市博罗县公庄镇大陂村委","村级",600,300,"综合避险"]
[1087,"博罗县公庄镇维新村委应急避难场所","惠州市博罗县公庄镇维新村委","村级",430,215,"综合避险"]
[1088,"博罗县公庄镇梅州围村委应急避难场所","惠州市博罗县公庄镇梅州围村委","村级",240,120,"综合避险"]
[1089,"博罗县公庄镇四家增村委应急避难场所","惠州市博罗县公庄镇四家增村委","村级",396,198,"综合避险"]
[1090,"博罗县公庄镇溪联村委应急避难场所","惠州市博罗县公庄镇溪联村委","村级",530,265,"综合避险"]
[1091,"博罗县公庄镇溪口村委应急避难场所","惠州市博罗县公庄镇溪口村委","村级",260,130,"综合避险"]
[1092,"博罗县公庄镇横岭村委应急避难场所","惠州市博罗县公庄镇横岭村委","村级",900,450,"综合避险"]
[1093,"博罗县公庄镇南梅村委应急避难场所","惠州市博罗县公庄镇南梅村委","村级",250,125,"综合避险"]
[1094,"博罗县公庄镇寨岗村委应急避难场所","惠州市博罗县公庄镇寨岗村委","村级",480,240,"综合避险"]
[1095,"博罗县公庄镇松园围村委应急避难场所","惠州市博罗县公庄镇松园围村委","村级",1100,550,"综合避险"]
[1096,"博罗县公庄镇陂头神村委应急避难场所","惠州市博罗县公庄镇陂头神村委","村级",1000,500,"综合避险"]
[1097,"博罗县公庄镇南溪村委应急避难场所","惠州市博罗县公庄镇南溪村委","村级",720,360,"综合避险"]
[1098,"博罗县公庄镇矮岗村委应急避难场所","惠州市博罗县公庄镇矮岗村委","村级",350,175,"综合避险"]
[1099,"博罗县公庄镇白沙岗村委应急避难场所","惠州市博罗县公庄镇白沙岗村委","村级",260,130,"综合避险"]
[1100,"博罗县公庄镇坝子村委应急避难场所","惠州市博罗县公庄镇坝子村委","村级",306,153,"综合避险"]
[1101,"博罗县公庄镇官山村委应急避难场所","惠州市博罗县公庄镇官山村委","村级",520,260,"综合避险"]
[1102,"博罗县公庄镇近石村应急避难场所","惠州市博罗县公庄镇近石村","村级",200,100,"综合避险"]
[1103,"博罗县公庄镇李洞村委应急避难场所","惠州市博罗县公庄镇李洞村委","村级",396,198,"综合避险"]
[1104,"博罗县公庄镇獭子居委应急避难场所","惠州市博罗县公庄镇獭子居委","村级",640,320,"综合避险"]
[1105,"博罗县公庄镇桔子居委应急避难场所","惠州市博罗县公庄镇桔子居委","村级",600,300,"综合避险"]
[1106,"博罗县公庄镇文化体育广场应急避难场所","惠州市博罗县公庄镇文化体育广场","村级",10000,5000,"综合避险"]
[1107,"博罗县公庄镇荷树塘村委应急避难场所","惠州市博罗县公庄镇荷树塘村委","村级",200,100,"综合避险"]
[1108,"龙溪街道办事处应急避难场所","惠州市博罗县龙溪街道振兴路8号","镇级",10000,2000,"综合避险"]
[1109,"龙溪街道龙岗村应急避难场所","惠州市博罗县龙溪街道龙岗村","村级",800,400,"室内避险"]
[1110,"龙溪街道夏寮村应急避难场所","惠州市博罗县龙溪街道夏寮村","村级",500,100,"综合避险"]
[1111,"龙溪街道宫庭村应急避难场所","惠州市博罗县龙溪街道宫庭村","村级",10000,2000,"综合避险"]
[1112,"龙溪街道结窝村应急避难场所","惠州市博罗县龙溪街道结窝村","村级",800,300,"综合避险"]
[1113,"龙溪街道球岗村应急避难场所","惠州市博罗县龙溪街道球岗村","村级",8000,1000,"综合避险"]
[1114,"龙溪街道长湖村应急避难场所","惠州市博罗县龙溪街道长湖村","村级",1200,800,"室内避险"]
[1115,"龙溪街道埔心村应急避难场所","惠州市博罗县龙溪街道埔心村","村级",9000,1200,"综合避险"]
[1116,"龙溪街道苏村村应急避难场所","惠州市博罗县龙溪街道苏村村","村级",250,80,"室内避险"]
[1117,"龙溪街道绿水湖村应急避难场所","惠州市博罗县龙溪街道绿水湖村","村级",100,100,"室内避险"]
[1118,"龙溪街道湖头村应急避难场所","惠州市博罗县龙溪街道湖头村","村级",9000,1200,"综合避险"]
[1119,"龙溪街道深湖村应急避难场所","惠州市博罗县龙溪街道深湖村","村级",7500,1500,"综合避险"]
[1120,"龙溪街道埔上村应急避难场所","惠州市博罗县龙埔路56号","村级",1000,300,"综合避险"]
[1121,"龙溪街道小蓬岗村应急避难场所","惠州市博罗县龙溪街道小蓬岗村","村级",2000,300,"综合避险"]
[1122,"龙溪街道歧岗村应急避难场所","惠州市博罗县龙溪街道歧岗村","村级",1290,380,"室内避险"]
[1123,"龙溪街道白莲湖小学应急避难场所","惠州市博罗县龙溪街道白莲湖小学","镇级",3974,530,"室内避险"]
[1124,"龙溪街道黄屋村应急避难场所","惠州市博罗县龙溪街道黄屋村","村级",2500,600,"综合避险"]
[1125,"龙溪街道横巷村应急避难场所","惠州市博罗县龙溪街道横巷村","村级",900,500,"综合避险"]
[1126,"龙溪街道黎屋村应急避难场所","惠州市博罗县龙溪街道黎屋村","村级",300,100,"室内避险"]
[1127,"龙溪街道银岗村应急避难场所","惠州市博罗县龙溪街道银岗村","村级",300,30,"综合避险"]
[1128,"龙溪街道龙溪社区应急避难场所","惠州市博罗县龙溪街道龙溪社区","社区级",150,30,"室内避险"]
[1129,"龙溪街道苏村社区应急避难场所","惠州市博罗县龙溪街道苏村社区","社区级",240,100,"室内避险"]
[1130,"龙溪街道礼村社区应急避难场所","惠州市博罗县龙溪街道礼村社区","社区级",10000,2000,"综合避险"]
[1131,"龙溪街道钟屋村应急避难场所","惠州市博罗县龙溪街道钟屋村","村级",1200,350,"室内避险"]
[1132,"园洲镇园洲居民委员会应急避难场所","惠州市博罗县园洲镇园洲居民委员会","村（社区）级",2000,1000,"综合避险"]
[1133,"园洲镇九潭居民委员会应急避难场所","惠州市博罗县园洲镇九潭长寿路15号","村（社区）级",260,130,"室内避险"]
[1134,"园洲镇马嘶村应急避难场所","惠州市博罗县园洲镇马嘶村马嘶村民委员会","村（社区）级",4000,1500,"综合避险"]
[1135,"园洲镇田头村应急避难场所","惠州市博罗县园洲镇田头村田头小组餐厅","村（社区）级",600,150,"室内避险"]
[1136,"园洲镇桔龙村应急避难场所","惠州市博罗县园洲镇桔龙村桔头小学","镇级",15000,7500,"综合避险"]
[1137,"园洲镇廖尾村应急避难场所","惠州市博罗县园洲镇廖尾村村民委员会","村（社区）级",1000,800,"综合避险"]
[1138,"园洲镇禾山村应急避难场所","惠州市博罗县园洲镇园洲禾山小学","镇级",3848,1000,"综合避险"]
[1139,"园洲镇土瓜圩村应急避难场所","惠州市博罗县园洲镇土瓜圩餐厅","村（社区）级",4400,500,"室内避险"]
[1140,"园洲镇深沥村应急避难场所","惠州市博罗县园洲镇深沥村181号村民委员会","村（社区）级",1000,300,"室内避险"]
[1141,"园洲镇沙头村应急避难场所","惠州市博罗县园洲镇沙头村沙头小学79号","村（社区）级",5393,2200,"综合避险"]
[1142,"园洲镇阵村村应急避难场所","惠州市博罗县园洲镇阵村村各小组餐厅","村（社区）级",6000,1000,"室内避险"]
[1143,"园洲镇上南村应急避难场所","惠州市博罗县园洲镇上南村中心小学博园路181号","村（社区）级",4500,17000,"室外避险"]
[1144,"园洲镇刘屋村应急避难场所","惠州市博罗县园洲镇刘屋村民委员会顺安路73号","村（社区）级",2053,300,"室内避险"]
[1145,"园洲镇下南村应急避难场所","惠州市博罗县园洲镇下南村南岗路2号","村（社区）级",1800,800,"室内避险"]
[1146,"园洲镇江头村应急避难场所","惠州市博罗县园洲镇崇本礼堂","村（社区）级",1700,1100,"综合避险"]
[1147,"园洲镇白耀前村应急避难场所","惠州市博罗县园洲镇白耀前村民委员会","村（社区）级",1000,350,"室内避险"]
[1148,"园洲镇高头村应急避难场所","惠州市博罗县园洲镇高头村东江餐厅","村（社区）级",2200,1000,"综合避险"]
[1149,"园洲镇李屋村应急避难场所","惠州市博罗县园洲镇李屋村民委员会办公楼","村（社区）级",1800,4400,"综合避险"]
[1150,"园洲镇寮仔村应急避难场所","惠州市博罗县园洲镇寮仔村村民委员会","村（社区）级",1000,350,"综合避险"]
[1151,"园洲镇白马围村应急避难场所","惠州市博罗县园洲镇白马围村民委员会","村（社区）级",500,250,"综合避险"]
[1152,"园洲镇上村村应急避难场所","惠州市博罗县园洲镇上村村","村（社区）级",920,320,"综合避险"]
[1153,"园洲镇水口村应急避难场所","惠州市博罗县园洲镇水口村民委员会","村（社区）级",920,320,"室外避险"]
[1154,"园洲镇凤山村应急避难场所","惠州市博罗县园洲镇凤山村村民委员会","村（社区）级",1000,300,"室内避险"]
[1155,"园洲镇义合村应急避难场所","惠州市博罗县园洲镇义合村民委员会","村（社区）级",500,250,"室内避险"]
[1156,"园洲镇佛岭村应急避难场所","惠州市博罗县园洲镇佛岭村民委员会","村（社区）级",500,250,"室内避险"]
[1157,"园洲镇沥东村应急避难场所","惠州市博罗县园洲镇围外小组东升宴厅","村（社区）级",2700,2500,"综合避险"]
[1158,"园洲镇沥西村应急避难场所","惠州市博罗县园洲镇沥西村新屋餐厅","村（社区）级",3500,2500,"综合避险"]
[1159,"园洲镇新村村应急避难场所","惠州市博罗县园洲镇新村村","村（社区）级",3000,800,"综合避险"]
[1160,"园洲镇马石岗村应急避难场所","惠州市博罗县园洲镇马石岗村民委员会","村（社区）级",520,260,"室内避险"]
[1161,"园洲中心小学应急避难场所","惠州市博罗县园洲镇上南村中心小学","镇级",17900,1000,"室外避险"]
[1162,"廖尾教学点应急避难场所","惠州市博罗县园洲镇廖尾村廖尾小学","镇级",1500,1500,"综合避险"]
[1163,"第二中心小学应急避难场所","惠州市博罗县园洲镇第二中心小学教育路13号","镇级",13000,3000,"综合避险"]
[1164,"寮仔教学点应急避难场所","惠州市博罗县园洲镇寮仔村寮仔小学","镇级",8405,500,"综合避险"]
[1165,"梁契权学校应急避难场所","惠州市博罗县园洲镇梁契权学校","镇级",15000,3000,"综合避险"]
[1166,"李屋小学应急避难场所","惠州市博罗县园洲镇李屋小学","镇级",11000,8000,"综合避险"]
[1167,"白马围小学应急避难场所","惠州市博罗县园洲镇白马围小学","镇级",4000,500,"综合避险"]
[1168,"阵村小学应急避难场所","惠州市博罗县园洲镇阵村村小学育才路","镇级",17900,9000,"室外避险"]
[1169,"沙头小学应急避难场所","惠州市博罗县园洲镇沙头村沙头小学79号","镇级",5393,2200,"室外避险"]
[1170,"深沥小学应急避难场所","惠州市博罗县园洲镇深沥小学","镇级",4300,1000,"综合避险"]
[1171,"禾山小学应急避难场所","惠州市博罗县园洲镇禾山小学","镇级",3848,1000,"综合避险"]
[1172,"田头小学应急避难场所","惠州市博罗县园洲镇田头村田头小学","镇级",7500,500,"综合避险"]
[1173,"马西小学应急避难场所","惠州市博罗县园洲镇马嘶村马嘶小学","镇级",7200,3200,"综合避险"]
[1174,"桔头小学应急避难场所","惠州市博罗县园洲镇桔龙村桔头小学","镇级",15000,7500,"综合避险"]
[1175,"九潭中心小学应急避难场所","广东省惠州市博罗县园洲镇九潭新村一路13号","镇级",27014.8,13507,"综合避险"]
[1176,"上水小学应急避难场所","惠州市博罗县园洲镇上水小学","镇级",3300,600,"室内避险"]
[1177,"凤山小学应急避难场所","惠州市博罗县园洲镇园洲凤山小学","镇级",2500,300,"室内避险"]
[1178,"义合教学点应急避难场所","惠州市博罗县园洲镇义合小学","镇级",3800,1900,"综合避险"]
[1179,"佛岭小学应急避难场所","惠州市博罗县园洲镇佛岭小学","镇级",7500,3750,"综合避险"]
[1180,"赤沥小学应急避难场所","惠州市博罗县园洲镇县道X193沥东路段8号","镇级",4886,600,"综合避险"]
[1181,"马石岗教学点应急避难场所","惠州市博罗县园洲镇马石岗小学","镇级",4500,1000,"综合避险"]
[1182,"园洲中学应急避难场所","惠州市博罗县园洲镇田头村","镇级",38000,5000,"综合避险"]
[1183,"九潭中学应急避难场所","惠州市博罗县园洲镇九潭中学","镇级",29228,7900,"综合避险"]
[1184,"园洲镇人民广场应急避难场所","惠州市博罗县园洲镇人民广场","镇级",1900,20000,"综合避险"]
[1185,"园洲镇刘伯温公园应急避难场所","惠州市博罗县园洲镇九潭增堤路","镇级",3000,1500,"室外避险"]
[1186,"横河镇横河村民委员会应急避难场所","惠州市博罗县横河镇横河村民委员会","村级",250,50,"综合避险"]
[1187,"横河镇西角村应急避难场所","惠州市博罗县横河镇西角村民委员会","村级",760,100,"综合避险"]
[1188,"横河嶂背村民委员会应急避难场所","惠州市博罗县横河镇嶂背村民委员会","村级",120,300,"综合避险"]
[1189,"横河西群村应急避难场所","惠州市博罗县横河镇西群村民委员会","村级",2500,400,"综合避险"]
[1190,"横河郭前村应急避难场所","惠州市博罗县横河镇郭前村民委员会","村级",460,200,"综合避险"]
[1191,"横河老圩村应急避难场所","惠州市博罗县横河镇老圩村民委员会","村级",500,100,"综合避险"]
[1192,"横河上河村应急避难场所","惠州市博罗县横河镇上河村民委员会","村级",500,150,"综合避险"]
[1193,"横河河肚村村民委员会应急避难场所","惠州市博罗县横河镇河肚村民委员会","村级",420,200,"综合避险"]
[1194,"横河下河村委应急避难场所","惠州市博罗县横河镇下河村民委员会","村级",600,450,"综合避险"]
[1195,"横河镇何家田村民委员会应急避难场所","惠州市博罗县横河镇何家田村民委员会","村级",150,100,"综合避险"]
[1196,"横河镇黄竹坳村民委员会应急避难场所","惠州市博罗县横河镇黄竹坳村民委员会","村级",150,100,"综合避险"]
[1197,"横河直径村应急避难场所","惠州市博罗县横河镇直径村民委员会","村级",1000,1000,"综合避险"]
[1198,"横河石湖村村民委员会应急避难场所","惠州市博罗县横河镇石湖村民委员会","村级",600,300,"综合避险"]
[1199,"横河卢屋村应急避难场所","惠州市博罗县横河镇卢屋村民委员会","村级",400,100,"综合避险"]
[1200,"横河沙上村村民委员会应急避难场所","惠州市博罗县横河镇沙上村民委员会","村级",320,100,"综合避险"]
[1201,"横河花园村应急避难场所","惠州市博罗县横河镇花园村民委员会","村级",350,300,"综合避险"]
[1202,"横河东角村应急避难场所","惠州市博罗县横河镇东角村民委员会","村级",200,100,"综合避险"]
[1203,"横河白马山村应急避难场所","惠州市博罗县横河镇白马山村民委员会","村级",300,100,"综合避险"]
[1204,"横河镇卢屋村坪山小组应急避难场所","惠州市博罗县横河镇卢屋村坪山小组","村级",600,150,"综合避险"]
[1205,"横河镇卢屋村陂下小组应急避难场所","惠州市博罗县横河镇卢屋村陂下小组","村级",3000,300,"综合避险"]
[1206,"横河镇天行小学应急避难场所","惠州市博罗县横河镇横河天行小学","镇级",6600,1500,"综合避险"]
[1207,"横河镇横河村臣子布文化广场应急避难场所","惠州市博罗县横河镇横河村臣子布小组文化广场","村级",300,100,"综合避险"]
[1208,"横河镇横河村刘学小组祠堂应急避难场所","惠州市博罗县横河镇横河村刘学小组祠堂","村级",1000,150,"综合避险"]
[1209,"横河镇横河村石出头小组东岳庙应急避难场所","惠州市博罗县横河镇横河村石出头小组东岳庙","村级",1000,150,"综合避险"]
[1210,"横河镇横河村石出头小组文化广场应急避难场所","惠州市博罗县横河镇横河村石出头小组文化广场","村级",3000,500,"综合避险"]
[1211,"横河镇横河村河口小组文化中心应急避难场所","惠州市博罗县横河镇横河村河口小组文化中心","村级",600,200,"综合避险"]
[1212,"横河下河村广场应急避难场所","惠州市博罗县横河镇下河村广场","村级",600,400,"综合避险"]
[1213,"横河社区居民委员会应急避难场所","惠州市博罗县横河镇横河社区居民委员会","社区级",156,100,"综合避险"]
[1214,"长宁镇中心小学应急避难场所","惠州市博罗县长宁镇新丰路62号","镇级",7000,3500,"综合避险"]
[1215,"长宁镇新村村文化活动中心应急避难场所","惠州市博罗县长宁镇新村村村民委员会","村级",330,165,"室内避险"]
[1216,"长宁镇古坭塘应急避难场所","惠州市博罗县长宁镇538乡道北30米","村级",260,130,"室内避险"]
[1217,"长宁镇新江应急避难场所","惠州市博罗县长宁镇新江村","村级",500,250,"室内避险"]
[1218,"长宁镇松树岗应急避难场所","惠州市博罗县长宁镇松树岗村","村级",800,350,"室内避险"]
[1219,"长宁镇罗村应急避难场所","惠州市博罗县长宁镇广汕路罗村村民委员会","村级",280,125,"室内避险"]
[1220,"长宁镇福岗应急避难场所","惠州市博罗县长宁镇福岗村村民委员会","村级",150,65,"室内避险"]
[1221,"长宁镇东平应急避难场所","惠州市博罗县长宁镇542乡道与广汕路口交叉口西南100米","村级",360,180,"室内避险"]
[1222,"长宁镇水边应急避难场所","惠州市博罗县长宁镇水边村村民委员会","村级",180,85,"室内避险"]
[1223,"长宁镇埔筏应急避难场所","惠州市博罗县长宁镇埔筏村村民委员会","村级",400,200,"室内避险"]
[1224,"长宁镇祥岗应急避难场所","惠州市博罗县长宁镇宜家旺商场对面","村级",350,200,"室内避险"]
[1225,"长宁镇石下屯应急避难场所","惠州市博罗县长宁镇石下屯村村民委员会","村级",420,210,"室内避险"]
[1226,"长宁镇埔筏村埔筏小学应急避难场所","惠州市博罗县长宁镇埔筏小学","镇级",1300,650,"综合避险"]
[1227,"长宁镇新江村新江小学应急避难场所","惠州市博罗县长宁镇新江小学","镇级",2000,1000,"综合避险"]
[1228,"长宁社区居民委员会应急避难场所","惠州市博罗县长宁镇罗浮路176号","村级",2100,1050,"室内避险"]
[1229,"龙华镇龙华村应急避难场所","惠州市博罗县龙华镇龙华中心小学","镇级",300,150,"室内避险"]
[1230,"龙华镇旭日村应急避难场所","惠州市博罗县龙华镇旭日村民委员会","村级",500,500,"综合避险"]
[1231,"龙华镇粮桥村应急避难场所","惠州市博罗县龙华镇粮桥村民委员会","村级",1800,900,"室内避险"]
[1232,"龙华镇柳村村应急避难场所","惠州市博罗县龙华镇华翠路","村级",1100,550,"综合避险"]
[1233,"龙华镇竹园村应急避难场所","惠州市博罗县龙华镇竹园村民委员会","村级",800,400,"室外避险"]
[1234,"龙华镇宁和村应急避难场所","惠州市博罗县龙华镇宁和小学","镇级",615,300,"室内避险"]
[1235,"龙华镇鹤溪村应急避难场所","惠州市博罗县龙华镇鹤溪村民委员会","村级",2800,1700,"综合避险"]
[1236,"龙华镇仕塘村应急避难场所","惠州市博罗县龙华镇仕塘村民委员会","村级",1100,750,"综合避险"]
[1237,"龙华镇北堤村应急避难场所","惠州市博罗县龙华镇北堤村章蔚礼堂","村级",3200,2000,"综合避险"]
[1238,"龙华镇群丰村应急避难场所","惠州市博罗县龙华镇群丰村民委员会","村级",4200,2800,"综合避险"]
[1239,"龙华镇龙华社区应急避难场所","惠州市博罗县龙华镇兴华一街9号","村级",660,400,"综合避险"]
[1240,"龙华镇文化体育公园应急避难场所","惠州市博罗县龙华镇文化体育公园","镇级",7000,3500,"室外避险"]
[1241,"麻陂镇圩镇及永丰村应急避难场所","惠州市博罗县麻陂镇永丰村村民委员会","镇级",700,467,"综合避险"]
[1242,"麻陂镇三科村应急避难场所","惠州市博罗县麻陂镇三科村村民委员会","村级",900,600,"综合避险"]
[1243,"麻陂镇曲潭村应急避难场所","惠州市博罗县麻陂镇曲潭村村民委员会","村级",750,500,"综合避险"]
[1244,"麻陂镇塘尾村应急避难场所","惠州市博罗县麻陂镇塘尾村村民委员会","村级",2700,1800,"综合避险"]
[1245,"麻陂镇洋田村应急避难场所","惠州市博罗县麻陂镇洋田村村民委员会","村级",1900,1267,"综合避险"]
[1246,"麻陂镇艾埔村应急避难场所","惠州市博罗县麻陂镇艾埔村村民委员会","村级",2800,1867,"综合避险"]
[1247,"麻陂镇洪湖村应急避难场所","惠州市博罗县麻陂镇洪湖村村民委员会","村级",800,533,"综合避险"]
[1248,"麻陂镇新村村应急避难场所","惠州市博罗县麻陂镇新村村民委员会","村级",1200,800,"综合避险"]
[1249,"麻陂镇坳头村应急避难场所","惠州市博罗县麻陂镇坳头村村民委员会","村级",2250,1500,"综合避险"]
[1250,"麻陂镇金湖村应急避难场所","惠州市博罗县麻陂镇金湖村村民委员会","村级",1400,933,"综合避险"]
[1251,"麻陂镇横茜村应急避难场所","惠州市博罗县麻陂镇横茜村村民委员会","村级",700,467,"综合避险"]
[1252,"麻陂镇鸡笼山村应急避难场所","惠州市博罗县麻陂镇鸡笼山林场","村级",800,533,"室外避险"]
[1253,"麻陂镇宝溪村应急避难场所","惠州市博罗县麻陂镇宝溪村村民委员会","村级",450,300,"综合避险"]
[1254,"麻陂镇居民委员会（富民广场）应急避难场所","惠州市博罗县麻陂镇麻陂社区党群服务中心","镇级",8300,5533,"综合避险"]
[1255,"泰美镇罗村村应急避难场所","惠州市博罗县泰美镇罗村小学","镇级",4110,3000,"综合避险"]
[1256,"泰美镇赤岭村应急避难场所","惠州市博罗县泰美镇赤岭村松二小组","村级",2000,200,"综合避险"]
[1257,"泰美镇三径村应急避难场所","惠州市博罗县泰美镇三径村民委员会","村级",900,400,"综合避险"]
[1258,"泰美镇芹塘村应急避难场所","惠州市博罗县泰美镇芹塘村村民委员会","村级",1500,2500,"综合避险"]
[1259,"泰美镇水安围村应急避难场所","惠州市博罗县泰美镇水安围村委2号","村级",2000,300,"综合避险"]
[1260,"泰美镇雷公村应急避难场所","惠州市博罗县泰美镇雷公村民委员会","村级",1000,1500,"综合避险"]
[1261,"泰美镇罗营村应急避难场所","惠州市博罗县泰美镇罗营村民委员会","村级",1200,100,"综合避险"]
[1262,"泰美镇罗福田村应急避难场所","惠州市博罗县泰美镇罗福田村委","村级",1500,3300,"综合避险"]
[1263,"泰美镇新星村应急避难场所","惠州市博罗县泰美镇金龙大道新星段738号","村级",450,200,"综合避险"]
[1264,"泰美镇良田村应急避难场所","惠州市博罗县泰美镇良田村民委员会","村级",3700,3000,"综合避险"]
[1265,"泰美镇新塘村应急避难场所","惠州市博罗县泰美镇新塘村民委员会","村级",500,150,"综合避险"]
[1266,"泰美镇楼下村应急避难场所","惠州市博罗县泰美镇楼下村楼下小学","镇级",1000,700,"综合避险"]
[1267,"泰美镇岑坑村应急避难场所","惠州市博罗县泰美镇岑坑村村民委员会","村级",1200,300,"综合避险"]
[1268,"泰美镇岭子头村应急避难场所","惠州市博罗县泰美镇岭子头村民委员会","村级",1463,900,"综合避险"]
[1269,"泰美镇车村村应急避难场所","惠州市博罗县泰美镇车村村委广场","村级",4500,3000,"综合避险"]
[1270,"泰美镇盘沱村应急避难场所","惠州市博罗县泰美镇盘沱村村民委员会","村级",2460,1000,"综合避险"]
[1271,"泰美镇夏青村应急避难场所","惠州市博罗县泰美镇夏青村小学111号","镇级",1500,3000,"综合避险"]
[1272,"泰美镇秀岭村应急避难场所","惠州市博罗县泰美镇秀岭村果园小组","村级",450,300,"综合避险"]
[1273,"泰美镇兴水围村应急避难场所","惠州市博罗县泰美镇兴水围村民委员会","村级",340,200,"综合避险"]
[1274,"泰美镇沐村村应急避难场所","惠州市博罗县泰美镇沐村村民委员会","村级",400,100,"综合避险"]
[1275,"泰美人民广场应急避难场所","惠州市博罗县泰美镇创新路21号","镇级",850,4000,"综合避险"]
[1276,"罗浮山朱明洞景区正门应急避难场所","惠州市博罗县罗浮山朱明洞景区正门","镇级",10000,3000,"综合避险"]
[1277,"罗浮山旅游文化广场应急避难场所","惠州市博罗县罗浮山旅游文化广场","镇级",100000,30000,"综合避险"]
[1278,"长宁镇下浪村民委员会应急避难场所","惠州市博罗县长宁镇544乡道东30米","村级",300,150,"室内避险"]
[1279,"长宁镇下浪村小学应急避难场所","惠州市博罗县长宁镇544乡道东50米","镇级",500,500,"综合避险"]
[1280,"长宁镇澜石村民委员会应急避难场所","惠州市博罗县长宁镇223县道东50米","村级",1800,900,"室内避险"]
[1281,"长宁镇澜石村小学应急避难场所","惠州市博罗县长宁镇澜石村澜石学校","镇级",1100,550,"综合避险"]
[1282,"长宁镇酥醪村酥醪观应急避难场所","惠州市博罗县长宁镇酥醪观","村级",800,400,"室外避险"]
[1283,"长宁镇水果场社区居民委员会应急避难场所","惠州市博罗县长宁镇名流大道20号","村级",615,300,"室内避险"]
[1284,"龙门县体育馆","惠州市龙门县龙城街道体育路1号","县级",43600,2500,"综合避险"]
[1285,"龙城街道城郊广场","惠州市龙门县龙城街道城郊水口1号","村级",600,600,"综合避险"]
[1286,"龙城街道樟潭广场","惠州市龙门县龙城街道樟潭村民委员会","村级",600,600,"综合避险"]
[1287,"龙城街道水贝广场","惠州市龙门县龙城街道水贝村民委员会","村级",600,600,"综合避险"]
[1288,"龙城街道横田广场","惠州市龙门县龙城街道横田村民委员会","村级",600,600,"综合避险"]
[1289,"龙城街道黄溪广场","惠州市龙门县龙城街道黄溪村民委员会","村级",600,600,"综合避险"]
[1290,"龙城街道城南社区","惠州市龙门县龙城街道城南社区居民委员会","村级",150,150,"综合避险"]
[1291,"龙城街道甘香村","惠州市龙门县龙城街道甘香村民委员会","村级",1500,1500,"综合避险"]
[1292,"龙城街道林村村委","惠州市龙门县龙城街道林村村民委员会","村级",1500,1500,"综合避险"]
[1293,"龙城街道黄竹沥村","惠州市龙门县龙城街道黄竹沥村民委员会","村级",1200,1200,"综合避险"]
[1294,"龙城街道城郊村","惠州市龙门县龙城街道城郊村民委员会","村级",600,600,"综合避险"]
[1295,"龙城街道花围村委","惠州市龙门县龙城街道花围村民委员会","村级",1300,1300,"综合避险"]
[1296,"龙城街道樟潭村委","惠州市龙门县龙城街道樟潭村民委员会","村级",600,600,"综合避险"]
[1297,"龙城街道陈村村委","惠州市龙门县龙城街道陈村村民委员会","村级",300,300,"综合避险"]
[1298,"龙城街道城西村","惠州市龙门县龙城街道城西村民委员会","村级",300,300,"综合避险"]
[1299,"龙城街道青溪村","惠州市龙门县龙城街道清溪村民委员会","村级",1200,1200,"综合避险"]
[1300,"龙城街道戴屋村委","惠州市龙门县龙城街道戴屋村村民委员会","村级",300,300,"综合避险"]
[1301,"龙城街道水西村委","惠州市龙门县龙城街道水西村村民委员会","村级",30,30,"综合避险"]
[1302,"龙城街道横田村委","惠州市龙门县龙城街道横田村民委员会","村级",600,600,"综合避险"]
[1303,"龙城街道黄溪村委","惠州市龙门县龙城街道黄溪村民委员会","村级",800,800,"综合避险"]
[1304,"龙城街道黄竹坑村委","惠州市龙门县龙城街道黄竹坑村民委员会","村级",400,400,"综合避险"]
[1305,"龙城街道鸬鹚村委","惠州市龙门县龙城街道鸬鹚村民委员会","村级",70,70,"综合避险"]
[1306,"龙城街道三洞村三洞小学","惠州市龙门县龙城街道三洞村村民委员会","镇级",100,100,"综合避险"]
[1307,"平陵街道隘子小学","惠州市龙门县平陵街道隘子小学","镇级",8500,750,"综合避险"]
[1308,"平陵街道西门小学","惠州市龙门县平陵街道西门小学","镇级",6000,450,"综合避险"]
[1309,"平陵街道洞尾村委","惠州市龙门县平陵街道洞尾村委","村级",500,80,"综合避险"]
[1310,"平陵街道黄沙小学","惠州市龙门县平陵街道黄沙小学","镇级",11000,300,"综合避险"]
[1311,"平陵街道山下小学","惠州市龙门县平陵街道山下小学","镇级",2000,300,"综合避险"]
[1312,"平陵街道小塘村委","惠州市龙门县平陵街道小塘村委","村级",1000,200,"综合避险"]
[1313,"平陵街道竹龙小学","惠州市龙门县平陵街道竹龙小学","镇级",1800,300,"综合避险"]
[1314,"平陵街道祖塘小学","惠州市龙门县平陵街道祖塘旧屋村90号","镇级",9000,500,"综合避险"]
[1315,"平陵街道祖塘村委","惠州市龙门县平陵街道祖塘村委","村级",2800,200,"综合避险"]
[1316,"平陵街道翁坑村委","惠州市龙门县平陵街道翁坑村委","村级",1000,150,"综合避险"]
[1317,"平陵街道光镇村委","惠州市龙门县平陵街道杨平路189号","村级",1100,150,"综合避险"]
[1318,"平陵街道光镇小学","惠州市龙门县平陵街道光镇小学","镇级",9000,500,"综合避险"]
[1319,"平陵街道岭背村委","惠州市龙门县平陵街道岭背村委","村级",1000,150,"综合避险"]
[1320,"平陵街道路滩村委","惠州市龙门县平陵街道路滩村委","村级",3300,300,"综合避险"]
[1321,"平陵街道明思小学","惠州市龙门县平陵街道明思小学","镇级",11000,750,"综合避险"]
[1322,"平陵街道原高树堂小学","惠州市龙门县平陵街道原高树堂小学","镇级",1600,250,"综合避险"]
[1323,"平陵街道平陵中学","惠州市龙门县平陵街道易发路143号","镇级",32000,1000,"综合避险"]
[1324,"平陵街道实验中学","惠州市龙门县平陵街道实验中学","镇级",32000,1000,"综合避险"]
[1325,"平陵街道中心小学","惠州市龙门县平陵街道平陵中心小学","镇级",35000,2500,"综合避险"]
[1326,"平陵街道晨光村委","惠州市龙门县平陵街道晨光村委","村级",1400,200,"综合避险"]
[1327,"平陵街道平陵村村委","惠州市龙门县平陵街道平陵村村委","村级",2600,200,"综合避险"]
[1328,"永汉镇新陂小学","惠州市龙门县永汉镇G355省道西50米","镇级",11000,500,"综合避险"]
[1329,"永汉镇大埔小学","惠州市龙门县永汉镇永南路90号","镇级",2954,500,"综合避险"]
[1330,"永汉镇见田小学","惠州市龙门县永汉镇见田村福船村路口旁","镇级",1800,500,"综合避险"]
[1331,"永汉镇油田小学","惠州市龙门县永汉镇油田叶屋村","镇级",8000,500,"综合避险"]
[1332,"永汉镇寮田小学","惠州市龙门县永汉镇寮田村崇新小学","镇级",8000,1000,"综合避险"]
[1333,"永汉镇务坑村民委员会","惠州市龙门县永汉镇务坑村委","村级",1000,100,"综合避险"]
[1334,"永汉镇新民小学","惠州市龙门县永汉镇新民小学","镇级",2000,500,"综合避险"]
[1335,"永汉镇洋陂村民委员会","惠州市龙门县永汉镇洋陂村委","村级",1000,100,"综合避险"]
[1336,"永汉镇官田广场","惠州市龙门县永汉镇官田广场","村级",3000,1000,"综合避险"]
[1337,"永汉镇梅州小学","惠州市龙门县永汉镇梅州村236乡道北","镇级",6600,500,"综合避险"]
[1338,"永汉镇黄河村民委员会","惠州市龙门县永汉镇黄河村委","村级",1000,200,"综合避险"]
[1339,"蕉坑村文化广场","惠州市龙门县永汉镇油田林场蕉坑村","村级",800,100,"综合避险"]
[1340,"永汉镇红星小学","惠州市龙门县永汉镇红星小学","镇级",11991,500,"综合避险"]
[1341,"永汉镇莲塘村民委员会","惠州市龙门县永汉镇119省道","村级",1000,500,"综合避险"]
[1342,"永汉镇振东小学","惠州市龙门县永汉镇振东小学","镇级",5000,500,"综合避险"]
[1343,"永汉镇黄牛冚村民委员会","惠州市龙门县永汉镇G355省道西50米","村级",460,300,"综合避险"]
[1344,"永汉镇锦城小学","惠州市龙门县永汉镇曲塘路","镇级",1800,300,"综合避险"]
[1345,"永汉镇马星小学","惠州市龙门县永汉镇G355省道西50米","镇级",1000,500,"综合避险"]
[1346,"永汉镇敬老院","惠州市龙门县永汉镇大埔村星墩埔路旁","镇级",11906,500,"综合避险"]
[1347,"永汉镇城西社区","惠州市龙门县永汉镇永南路51号","镇级",200,1000,"综合避险"]
[1348,"永汉镇二小","惠州市龙门县永汉镇商业路36号","镇级",13162,1000,"综合避险"]
[1349,"永汉镇低冚村民委员会","惠州市龙门县永汉镇增龙路210号","村级",1000,500,"综合避险"]
[1350,"永汉镇人民政府","惠州市龙门县永汉镇永南路8号","镇级",8670,2000,"综合避险"]
[1351,"永汉镇合口文化广场","惠州市龙门县永汉镇105乡道合口小学东侧","村级",3000,1000,"综合避险"]
[1352,"永汉镇上埔村民委员会","惠州市龙门县永汉镇三角夫村75号","村级",1000,500,"综合避险"]
[1353,"永汉镇前锋文化广场","惠州市龙门县永汉镇103乡道","村级",1500,500,"综合避险"]
[1354,"麻榨镇东安文化广场","惠州市龙门县麻榨镇旧东安小学","村级",1100,450,"综合避险"]
[1355,"麻榨镇北隅村民委员会","惠州市龙门县麻榨镇北隅村民委员会","村级",2463,1000,"综合避险"]
[1356,"麻榨镇鳌溪小学","惠州市龙门县麻榨镇鳌溪小学","镇级",21227,1500,"室外避险"]
[1357,"麻榨镇双水村委","惠州市龙门县麻榨镇双水村委","村级",300,300,"综合避险"]
[1358,"麻榨镇罗坑小学","惠州市龙门县麻榨镇罗坑小学","镇级",3000,500,"室外避险"]
[1359,"麻榨镇大陂小学","惠州市龙门县麻榨镇大陂村下圭龙（村民委员会旁）","镇级",7847,600,"室外避险"]
[1360,"麻榨镇原寨吓小学","惠州市龙门县麻榨镇寨下村莲花寨路口","镇级",5000,400,"室内避险"]
[1361,"麻榨镇河东村委","惠州市龙门县麻榨镇河东村委","村级",1300,450,"综合避险"]
[1362,"麻榨镇东埔小学","惠州市龙门县麻榨镇东埔村委","镇级",900,300,"综合避险"]
[1363,"麻榨镇下龙小学","惠州市龙门县麻榨镇下龙小学","镇级",13340,1000,"室外避险"]
[1364,"麻榨镇南滩村委","惠州市龙门县麻榨镇南滩村民委员会办公楼201号","村级",1300,450,"综合避险"]
[1365,"麻榨镇横汉村民委员会","惠州市龙门县麻榨镇横汉村民委员会","村级",540,360,"综合避险"]
[1366,"麻榨镇西牛村民委员会","惠州市龙门县麻榨镇西牛村民委员会龙门县道X219","村级",1100,1000,"综合避险"]
[1367,"麻榨镇约坑村委","惠州市龙门县麻榨镇约坑小学","村级",408,150,"综合避险"]
[1368,"麻榨镇桂村小学","惠州市龙门县麻榨镇桂村村赤岭村民小组","镇级",10000,800,"室外避险"]
[1369,"麻榨镇坑口村委","惠州市龙门县麻榨镇坑口村民委员会","村级",2500,200,"综合避险"]
[1370,"麻榨镇原坳头小学","惠州市龙门县麻榨镇坳头村旧小学","镇级",2400,600,"综合避险"]
[1371,"麻榨镇麻榨中学","惠州市龙门县麻榨镇麻罗公路1号","镇级",2900,317,"室内避险"]
[1372,"麻榨中心小学","惠州市龙门县麻榨镇龙学路","镇级",44825,3000,"室外避险"]
[1373,"康园避护场所","惠州市龙门县麻榨镇沿江路4号","村级",80,30,"综合避险"]
[1374,"麻榨中心幼儿园","惠州市龙门县麻榨镇立新路52号","村级",7918,1000,"室外避险"]
[1375,"龙华镇龙华村","惠州市龙门县龙华镇龙华村委","村级",11000,2000,"综合避险"]
[1376,"龙华镇朗背村","惠州市龙门县龙华镇朗背村委","村级",960,500,"综合避险"]
[1377,"龙华镇双东小学","惠州市龙门县龙华镇双东小学","镇级",1000,300,"综合避险"]
[1378,"龙华镇西溪村","惠州市龙门县龙华镇西溪村委","村级",980,300,"综合避险"]
[1379,"龙华镇水口小学","惠州市龙门县龙华镇水口小学","镇级",3600,1000,"综合避险"]
[1380,"龙华镇龙华社区","惠州市龙门县龙华镇龙华社区","村级",1000,800,"综合避险"]
[1381,"龙华镇花竹小学","惠州市龙门县龙华镇花竹小学","镇级",1500,800,"综合避险"]
[1382,"龙华镇水坑小学","惠州市龙门县龙华镇水坑小学","镇级",1000,100,"综合避险"]
[1383,"龙华镇到滩村","惠州市龙门县龙华镇到滩村","村级",800,300,"综合避险"]
[1384,"龙华镇香溪村","惠州市龙门县龙华镇香溪村","村级",2500,1000,"综合避险"]
[1385,"龙华镇横槎村","惠州市龙门县龙华镇横槎村","村级",1000,200,"综合避险"]
[1386,"龙华镇西族村","惠州市龙门县龙华镇西族村","村级",1600,1000,"综合避险"]
[1387,"龙华镇龙石头小学","惠州市龙门县龙华镇龙石头小学","镇级",800,300,"综合避险"]
[1388,"龙华镇高沙小学","惠州市龙门县龙华镇高沙小学","镇级",1000,500,"综合避险"]
[1389,"龙华镇蓝滘村","惠州市龙门县龙华镇蓝滘村","村级",2000,1000,"综合避险"]
[1390,"龙华镇石下塘村","惠州市龙门县龙华镇石下塘村","村级",1000,700,"综合避险"]
[1391,"龙华镇沙迳社区","惠州市龙门县龙华镇沙迳社区","村级",1500,900,"综合避险"]
[1392,"龙华镇大坪小学","惠州市龙门县龙华镇大坪小学","镇级",1000,500,"综合避险"]
[1393,"龙华镇马嘶村","惠州市龙门县龙华镇马嘶村","村级",850,500,"综合避险"]
[1394,"龙华镇四围小学","惠州市龙门县龙华镇四围小学","镇级",950,500,"综合避险"]
[1395,"龙华镇功武村","惠州市龙门县龙华镇功武村","村级",860,300,"综合避险"]
[1396,"龙华镇长滩小学","惠州市龙门县龙华镇长滩小学","镇级",1600,1000,"综合避险"]
[1397,"龙江镇路溪村委","惠州市龙门县龙江镇路溪村民委员会","村级",3220,150,"综合避险"]
[1398,"龙江镇石前村委","惠州市龙门县龙江镇石前村民委员会","村级",1300,150,"综合避险"]
[1399,"龙江镇罗洞村委","惠州市龙门县龙江镇罗洞村民委员会","村级",10560,400,"综合避险"]
[1400,"龙江镇龙江村委","惠州市龙门县龙江镇龙江路177号","村级",600,400,"综合避险"]
[1401,"龙江镇甘坑村委","惠州市龙门县龙江镇甘坑村民委员会","村级",3000,200,"综合避险"]
[1402,"龙江镇隔㙟村委","惠州市龙门县龙江镇隔㙟村民委员会","村级",4200,300,"综合避险"]
[1403,"龙江镇沈村村委","惠州市龙门县龙江镇沈村村民委员会","村级",2500,200,"综合避险"]
[1404,"龙江镇六子园村委","惠州市龙门县龙江镇六子园村民委员会","村级",6500,150,"综合避险"]
[1405,"龙江镇格浪小学","惠州市龙门县龙江镇格浪小学","镇级",13100,500,"综合避险"]
[1406,"龙江镇龙江中学","惠州市龙门县龙江镇龙江中学","镇级",17323,3000,"综合避险"]
[1407,"龙江镇埔心小学","惠州市龙门县龙江镇埔心小学","镇级",8457,300,"综合避险"]
[1408,"龙江镇龙江中心小学","惠州市龙门县龙江镇龙江中心小学","镇级",17000,2000,"综合避险"]
[1409,"龙江镇六屯小学","惠州市龙门县龙江镇龙江六屯小学","镇级",12654,300,"综合避险"]
[1410,"龙江镇路溪社区居民委员会","惠州市龙门县龙江镇路溪社区居民委员会","村级",1100,300,"综合避险"]
[1411,"龙江镇坑头广场","惠州市龙门县龙江镇坑头广场","村级",3000,300,"综合避险"]
[1412,"龙江镇广尾村委","惠州市龙门县龙江镇广美小学","村级",5000,300,"综合避险"]
[1413,"龙江镇路溪学校","惠州市龙门县龙江镇路溪学校","镇级",66086,3000,"综合避险"]
[1414,"龙江镇良塘村委","惠州市龙门县龙江镇良塘村民委员会","村级",2200,300,"综合避险"]
[1415,"龙江镇岭咀广场","惠州市龙门县龙江镇岭咀村散屋村小组","村级",600,100,"综合避险"]
[1416,"龙江镇石下村委","惠州市龙门县龙江镇石下村民委员会","村级",1800,300,"综合避险"]
[1417,"龙江镇禾洞小学","惠州市龙门县龙江镇禾洞小学","镇级",4662,300,"综合避险"]
[1418,"龙田镇龙田一小","惠州市龙门县龙田镇凌角塘村下围村小组龙天路旁","镇级",18400,2100,"综合避险"]
[1419,"龙田镇龙门中学附属中学","惠州市龙门县龙田镇凌角塘村民委员会红门楼村小组龙新公路旁","镇级",41357,6000,"综合避险"]
[1420,"龙田镇江冚小学","惠州市龙门县龙田镇江冚村民委员会","镇级",3000,300,"综合避险"]
[1421,"龙田镇龙田二小","惠州市龙门县龙田镇田尾圩旁","镇级",12750,900,"综合避险"]
[1422,"龙田镇西埔小学","惠州市龙门县龙田镇西埔村民委员会旁","镇级",11500,900,"综合避险"]
[1423,"龙田镇社厦小学","惠州市龙门县龙田镇社厦村民委员会旁100米","镇级",6300,500,"综合避险"]
[1424,"龙田镇李洞小学","惠州市龙门县龙田镇李洞村井头村小组","镇级",6500,400,"综合避险"]
[1425,"龙田镇旧梁小学","惠州市龙门县龙田镇旧梁村旧梁","镇级",6100,1200,"综合避险"]
[1426,"龙田镇西埔文化广场","惠州市龙门县龙田镇西埔村民委员会旁","村级",500,1000,"综合避险"]
[1427,"龙田镇凌角塘文化广场","惠州市龙门县龙田镇凌角塘村民委员会旁","村级",950,460,"综合避险"]
[1428,"龙田镇黄珠洞文化广场","惠州市龙门县龙田镇黄珠洞村民委员会前","村级",1450,500,"综合避险"]
[1429,"龙田镇李洞文化广场","惠州市龙门县龙田镇李洞村村民委员会旁","村级",1200,600,"综合避险"]
[1430,"龙田镇沙塘文化广场","惠州市龙门县龙田镇沙塘村民委员会旁","村级",600,200,"综合避险"]
[1431,"左潭学校球场","惠州市龙门县龙潭镇龙塘路34号","镇级",10000,2000,"综合避险"]
[1432,"龙潭镇文化室","惠州市龙门县龙潭镇X222线供电所对面","镇级",1150,100,"室内避险"]
[1433,"龙潭镇铁岗学校","惠州市龙门县龙潭镇铁岗社区永丰新街 63 号","镇级",8000,2000,"综合避险"]
[1434,"龙潭镇马岭学校","惠州市龙门县龙潭镇马二小组78号","村级",4800,500,"室内避险"]
[1435,"龙潭镇南坑学校","惠州市龙门县龙潭镇南坑村干坑28号","村级",2700,300,"室内避险"]
[1436,"龙潭镇新屋村委","惠州市龙门县龙潭镇铁岗新屋村","村级",1500,50,"室内避险"]
[1437,"龙潭镇塘坑党群服务中心","惠州市龙门县龙潭镇塘坑村","村级",3000,50,"室内避险"]
[1438,"龙潭镇禾洞学校","惠州市龙门县龙潭镇禾洞村甘岭1号","村级",1500,200,"综合避险"]
[1439,"龙潭镇石坋学校","惠州市龙门县龙潭镇石坋村约场1号","村级",2250,200,"综合避险"]
[1440,"龙潭镇新寮小学","惠州市龙门县龙潭镇新寮小学（新寮村委）","村级",1200,100,"综合避险"]
[1441,"龙潭镇土湖村文化广场","惠州市龙门县龙潭镇土湖村353省道边","村级",3000,100,"室内避险"]
[1442,"龙潭镇下埔村委","惠州市龙门县龙潭镇下埔村委","村级",2300,30,"室内避险"]
[1443,"龙潭镇石莲村委","惠州市龙门县龙潭镇石莲村353省道边\n石莲村委","村级",3000,200,"综合避险"]
[1444,"龙潭镇大坑村委广场","惠州市龙门县龙潭镇大坑村123乡道边","村级",1200,50,"室内避险"]
[1445,"龙潭镇禾仓村委","惠州市龙门县龙潭镇s353线禾仓村委","村级",500,50,"室内避险"]
[1446,"左潭社区","惠州市龙门县龙潭镇龙塘路","村级",200,50,"室内避险"]
[1447,"龙潭镇合头村委","惠州市龙门县龙潭镇合头村委","村级",200,30,"室内避险"]
[1448,"地派镇地派中心小学","惠州市龙门县地派镇高明路1号","镇级",3000,1000,"综合避险"]
[1449,"地派镇地派中学","惠州市龙门县地派镇地派中学","镇级",3000,1000,"综合避险"]
[1450,"地派镇天堂山学校","惠州市龙门县地派镇天堂东路168号","镇级",3000,1000,"综合避险"]
[1451,"地派镇清塘村党群服务中心","惠州市龙门县地派镇龙塘公路与114乡道交叉口西北160米","村级",1000,600,"综合避险"]
[1452,"地派镇芒派村委（原芒派小学）","惠州市龙门县地派镇芒派村委旁","村级",1000,600,"综合避险"]
[1453,"地派镇大坑村委（原大坑小学）","惠州市龙门县地派镇大坑村委旁","村级",1200,800,"综合避险"]
[1454,"地派镇陈洞村委（原陈洞小学）","惠州市龙门县地派镇陈洞村委斜对面","村级",1000,600,"综合避险"]
[1455,"地派镇英洞村委","惠州市龙门县地派镇英洞村委大楼门口","村级",800,300,"综合避险"]
[1456,"地派镇合子村委","惠州市龙门县地派镇合子村25号","村级",700,300,"综合避险"]
[1457,"地派镇古洞村委","惠州市龙门县地派镇古洞村委旁","村级",900,400,"综合避险"]
[1458,"地派镇上仓村委","惠州市龙门县地派镇上仓村委对面（卫生站）","村级",800,300,"综合避险"]
[1459,"地派镇渡头村委","惠州市龙门县地派镇渡头村见龙围祠堂门口","村级",800,300,"综合避险"]
[1460,"地派镇九牛圳村委","惠州市龙门县地派镇天堂山九牛圳广场","村级",900,300,"综合避险"]
[1461,"蓝田瑶族乡人民政府球场","惠州市龙门县蓝田瑶族乡龙新公路","镇级",3220,2000,"综合避险"]
[1462,"蓝田瑶族乡蓝田中学","惠州市龙门县蓝田瑶族乡蓝新街23号","镇级",1300,2000,"综合避险"]
[1463,"蓝田瑶族乡蓝田小学","惠州市龙门县蓝田瑶族乡蓝田卫生院斜对面","镇级",10560,2000,"综合避险"]
[1464,"蓝田瑶族乡文化广场","惠州市龙门县蓝田瑶族乡蓝田村党群服务中心","镇级",600,2000,"综合避险"]
[1465,"蓝田瑶族乡新星村委","惠州市龙门县蓝田瑶族乡新星村党群服务中心","村级",3000,2000,"综合避险"]
[1466,"蓝田瑶族乡倒流村委前广场","惠州市龙门县蓝田瑶族乡到流村党群服务中心","村级",4200,2000,"综合避险"]
[1467,"蓝田瑶族乡上东小学","惠州市龙门县蓝田瑶族乡210乡道附近","镇级",2500,2000,"综合避险"]
[1468,"蓝田瑶族乡小洞村委前广场","惠州市龙门县蓝田瑶族乡小洞村党群服务中心","村级",6500,2000,"综合避险"]
[1469,"蓝田瑶族乡社前村委","惠州市龙门县蓝田瑶族乡社前村党群服务中心","村级",13100,2000,"综合避险"]
[1470,"南昆山学校","惠州市龙门县南昆山生态旅游区下坪社区校前路","镇级",5000,3000,"综合避险"]
[1471,"南昆山下坪社区","惠州市龙门县南昆山生态旅游区下坪社区民兴路","村级",900,700,"综合避险"]
[1472,"南昆山上坪社区","惠州市龙门县南昆山生态旅游区上坪社区","村级",900,700,"综合避险"]
[1473,"南昆山炉下社区","惠州市龙门县南昆山生态旅游区炉下社区","村级",700,500,"综合避险"]
[1474,"南昆山花竹社区","惠州市龙门县南昆山生态旅游区花竹社区","村级",700,500,"综合避险"]
[1475,"南昆山乌坭社区","惠州市龙门县南昆山生态旅游区乌坭社区","村级",700,500,"综合避险"]
[1476,"密溪学校","惠州市龙门县密溪林场密溪学校","镇级",1360,500,"综合避险"]
[1477,"区级应急避难场所","惠州市大亚湾区澳头街道衙前路衙前村88号（衙前村民委员会4、5楼）","区级",600,280,"室内避险"]
[1478,"大亚湾区体育馆应急避难场所","惠州市大亚湾区澳头街道中兴中路88号","区级",12400,3000,"室外避险"]
[1479,"大亚湾区惠民广场应急避难场所","惠州市大亚湾区澳头街道石化大道与中兴中路交汇处","区级",23240,3000,"室外避险"]
[1480,"澳头街道桥西社区避难场所","惠州市大亚湾区澳头街道沿海路前进村196号前进村党群服务中心","村级",110,30,"室内避险"]
[1481,"澳头街道衙前村避难场所","惠州市大亚湾区澳头街道衙前路衙前村88号（衙前村民委员会3楼）","村级",600,200,"室内避险"]
[1482,"澳头街道前进村避难场所","惠州市大亚湾区澳头街道澳头围10号桥西社区党群服务中心","村级",480,80,"室内避险"]
[1483,"澳头街道沙田社区避难场所","惠州市大亚湾区澳头街道新澳大道十二街中萃星光雅居7栋沙田社区党群服务中心","村级",600,30,"室内避险"]
[1484,"大亚湾澳头实验学校避难场所","惠州市大亚湾区澳头街道大塭坝33号","镇级",21200,2000,"综合避险"]
[1485,"大亚湾第一中学避难场所","惠州市大亚湾区澳头街道洗马湖路18号","镇级",2521,200,"室内避险"]
[1486,"西区街道横畲村社区应急避难场所","惠州市大亚湾西区街道塘布村正东方向200米","村级",420,40,"综合避险"]
[1487,"西区街道新寮村社区应急避难场所","惠州市大亚湾西区街道新寮一路28号","村级",1300,150,"综合避险"]
[1488,"西区街道第一小学应急避难场所","惠州市大亚湾西区街道大亚湾大道227号","镇级",41948,3000,"综合避险"]
[1489,"西区街道崇德小学应急避难场所","惠州市大亚湾西区街道龙山五路良建1号","镇级",3200,3500,"综合避险"]
[1490,"西区街道龙山小学应急避难场所","惠州市大亚湾西区街道石古背32号","镇级",8000,3000,"综合避险"]
[1491,"西区街道第二小学应急避难场所","惠州市大亚湾西区街道龙山二路新寮浦尾村73号","镇级",9800,3000,"综合避险"]
[1492,"西区街道荷茶小学应急避难场所","惠州市大亚湾西区街道荷茶村桥背87号","镇级",17000,3000,"综合避险"]
[1493,"大亚湾第四小学应急避难场所","惠州市大亚湾西区街道塘布村塘二队64号","镇级",20000,3000,"综合避险"]
[1494,"西区街道宣平小学应急避难场所","惠州市大亚湾西区街道龙光城老畲村光明小组27号","镇级",3300,3500,"综合避险"]
[1495,"大亚湾第三小学应急避难场所","惠州市大亚湾西区街道三小西路与新西路67号","镇级",4160,3500,"综合避险"]
[1496,"大亚湾第三中学应急避难场所","惠州市大亚湾西区街道光正路9号","镇级",26004,20000,"综合避险"]
[1497,"大亚湾西区兴汉小学应急避难场所","惠州市大亚湾西区街道东联大道7号","镇级",15000,3500,"综合避险"]
[1498,"大亚湾儿童公园应急避难场所","惠州市大亚湾西区街道龙海二路与龙山七路交汇处西南角","区级",40000,15000,"综合避险"]
[1499,"西区街道龙光城南广场应急避难场所","惠州市大亚湾西区街道西南大道88号","村级",4000,2000,"综合避险"]
[1500,"西区街道石禾町社区公园应急避难场所","惠州市大亚湾西区街道龙兴路与新西路交叉路口往东南","村级",900,300,"综合避险"]
[1501,"西区街道金龟山公园应急避难场所","惠州市大亚湾西区街道龙山九路龙山九路68号","村级",2000,800,"综合避险"]
[1502,"清泉古寺风景名胜区避难场所","惠州市大亚湾区霞涌街道上角村金竹园村小组","镇级",11400,3000,"综合避险"]
[1503,"大亚湾第二中学避难场所","惠州市大亚湾区霞涌街道岭东七巷3号","镇级",28031,10000,"综合避险"]
[1504,"霞涌第一小学避难场所","惠州市大亚湾区霞涌街道办霞光二路100号","镇级",31578,3000,"综合避险"]
[1505,"霞涌社区居民委员会避难场所","惠州市惠阳区育才路4号","村级",481,128,"室内避险"]
[1506,"霞涌街道坜下社区居民委员会避难场所","惠州市惠阳区东联大道14号","村级",375,100,"室内避险"]
[1507,"三棵树公园避难场所","惠州市大亚湾区霞涌街道石化区石化大道滨海七路交汇处","村级",2660,27361,"室外避险"]
[1508,"仲恺公园应急避难场所","惠州市仲恺高新区惠风七路惠风七路","县（区）级",50000,25000,"综合避险"]
[1509,"西坑小学","惠州市仲恺高新区惠环西坑河背村21号","村（居）级",2000,500,"综合避险"]
[1510,"平南小学","惠州市仲恺高新区惠环平南村红卫小组55号","村（居）级",3894,800,"综合避险"]
[1511,"红旗小学","惠州市仲恺高新区和畅五路西99号","村（居）级",4000,1000,"综合避险"]
[1512,"古塘坳居民委员会","惠州市仲恺高新区古塘坳横街10号","村（居）级",600,200,"综合避险"]
[1513,"惠环中心小学新校区","惠州市仲恺高新区和畅四路","村（居）级",800,700,"综合避险"]
[1514,"古塘坳小学","惠州市仲恺高新区惠环古塘坳立新一村22号","村（居）级",6617.3,800,"综合避险"]
[1515,"惠环中学","惠州市仲恺高新区和畅东二路","村（居）级",800,600,"综合避险"]
[1516,"陈江文化广场","惠州市仲恺高新区陈江大道中28号","镇（街）级",31000,10000,"综合避险"]
[1517,"陈江御湖社区公共服务站","惠州市仲恺高新区陈江大道中鑫月城小区103栋1楼","村（居）级",1800,200,"综合避险"]
[1518,"五一小学","惠州市仲恺高新区陈江五一村","村（居）级",3000,3000,"综合避险"]
[1519,"陈江小学","惠州市仲恺高新区陈江英才街三巷2号","村（居）级",13500,1500,"综合避险"]
[1520,"万麓湖社区公共服务站","惠州市仲恺高新区陈江街道金湖路118号","村（居）级",400,200,"综合避险"]
[1521,"仲恺中学","惠州市仲恺高新区仲恺五路108号","村（居）级",12000,3000,"综合避险"]
[1522,"观田小学","惠州市仲恺高新区观田村民委员会旁边","村（居）级",1600,200,"综合避险"]
[1523,"青春小学","惠州市仲恺高新区陈江街道青春村工业区后陂村","村（居）级",2000,300,"综合避险"]
[1524,"东阁小学","惠州市仲恺高新区陈江街道青春村东阁老圩","村（居）级",1500,200,"综合避险"]
[1525,"社溪小学","惠州市仲恺高新区陈江街道社溪村民委员会附近","村（居）级",628,200,"综合避险"]
[1526,"东升小学","惠州市仲恺高新区陈江街道东升村产业三路","村（居）级",1300,1000,"综合避险"]
[1527,"陈江中心小学","惠州市仲恺高新区陈江镇甲子路172号","村（居）级",2800,2000,"综合避险"]
[1528,"澄海村避难场所","惠州市仲恺高新区陈江街道澄海村民委员会","村（居）级",500,180,"综合避险"]
[1529,"澄海村堤塘文化室","惠州市仲恺高新区陈江街道澄海村堤塘小组","村（居）级",500,100,"综合避险"]
[1530,"澄海村永联文化楼","惠州市仲恺高新区陈江街道澄海村永联小组","村（居）级",400,100,"综合避险"]
[1531,"甲子老人活动中心","惠州市仲恺高新区陈江街道胜利村甲子","村（居）级",200,100,"综合避险"]
[1532,"胜利村公共服务站 ","惠州市仲恺高新区陈江街道甲子路（谷行组站）旁","村（居）级",600,150,"综合避险"]
[1533,"陈江石圳小学","惠州市仲恺高新区惠风七路石圳小学","村（居）级",2000,800,"综合避险"]
[1534,"幸福村山下小学","惠州市仲恺高新区幸福村山下小学","村（居）级",1160,300,"综合避险"]
[1535,"区社会福利综合服务中心","惠州市仲恺高新区陈江街道杜溪村（新华大道旁）","镇（街）级",32000,5000,"综合避险"]
[1536,"东江村避难场所","惠州市仲恺高新区陈江街道仲恺六路1号","村（居）级",500,500,"综合避险"]
[1537,"东江小学","惠州市仲恺高新区陈江街道东江村东江小学","村（居）级",600,1000,"综合避险"]
[1538,"东楼小学","惠州市仲恺高新区陈江街道东江村东楼小学","村（居）级",400,400,"综合避险"]
[1539,"何岗文化室","惠州市仲恺高新区陈江街道东江村何岗小组","村（居）级",400,300,"综合避险"]
[1540,"凡头文化室","惠州市仲恺高新区陈江街道东江村古屋小组","村（居）级",300,200,"综合避险"]
[1541,"廖岗文化室","惠州市仲恺高新区陈江街道东江村廖岗小组","村（居）级",350,300,"综合避险"]
[1542,"塘背文化室","惠州市仲恺高新区陈江街道东江村塘背小组","村（居）级",300,100,"综合避险"]
[1543,"沥林文化广场","惠州市仲恺高新区沥林镇新镇社区文化广场","镇（街）级",8000,3500,"综合避险"]
[1544,"泮沥村民委员会    ","惠州市仲恺高新区沥林镇泮沥村","村（居）级",900,100,"综合避险"]
[1545,"君子营明宗小学","惠州市仲恺高新区沥林镇君子营村","村（居）级",7600,"2000室外\n300室内","综合避险"]
[1546,"埔心村民委员会","惠州市仲恺高新区沥林镇埔心村","村（居）级",500,100,"综合避险"]
[1547,"企岭小学（新校区）","惠州市仲恺高新区沥林镇企岭村","村（居）级",2000,"1000室外\n300室内","综合避险"]
[1548,"迭石龙村迭石龙小学","惠州市仲恺高新区沥林镇迭石龙村","村（居）级",7555,"1000室外\n300室内","综合避险"]
[1549,"沥林村民委员会","惠州市仲恺高新区沥林镇沥林村","村（居）级",1300,200,"综合避险"]
[1550,"罗村村民委员会","惠州市仲恺高新区沥林镇罗村村","村（居）级",900,150,"综合避险"]
[1551,"英光村民委员会","惠州市仲恺高新区沥林镇英光村","村（居）级",700,100,"综合避险"]
[1552,"埔仔村民委员会","惠州市仲恺高新区沥林镇埔仔村","村（居）级",500,100,"综合避险"]
[1553,"新镇社区委会","惠州市仲恺高新区沥林镇新镇社区","村（居）级",500,50,"综合避险"]
[1554,"山陂村喜庆楼","惠州市仲恺高新区沥林镇山陂村","村（居）级",1200,500,"综合避险"]
[1555,"潼湖广和村室内","惠州市仲恺高新区惠城区S120潼湖大道东","村（居）级",1560,300,"综合避险"]
[1556,"潼湖镇玳瑁村室内","惠州市仲恺高新区潼湖镇玳瑁村东南方向","村（居）级",2240,80,"综合避险"]
[1557,"潼湖镇岗里村室内","惠州市仲恺高新区潼湖镇岗里村","村（居）级",2080,60,"综合避险"]
[1558,"潼湖镇新光村室内","惠州市仲恺高新区潼湖镇新光村","村（居）级",2080,60,"综合避险"]
[1559,"潼湖镇琥珀村室内","惠州市仲恺高新区潼湖镇琥珀村民委员会旁","村（居）级",2240,80,"综合避险"]
[1560,"潼湖镇三和村室内","惠州市仲恺高新区潼湖镇三和村民委员会旁","村（居）级",2580,150,"综合避险"]
[1561,"潼湖镇五村村室内","惠州市仲恺高新区潼湖镇五村村民委员会斜对面","村（居）级",2580,150,"综合避险"]
[1562,"潼湖镇红岗村室内","惠州市仲恺高新区潼湖镇五村西南方向约.08公里","村（居）级",2240,80,"综合避险"]
[1563,"潼湖镇黄屋村室内","惠州市仲恺高新区潼湖镇黄屋村民委员会旁","村（居）级",2240,80,"综合避险"]
[1564,"潼湖镇赤岗村室内","惠州市仲恺高新区潼湖镇赤岗村东南方向","村（居）级",2580,150,"综合避险"]
[1565,"潼湖镇永平村室内","惠州市仲恺高新区潼湖镇永平村","村（居）级",2580,150,"综合避险"]
[1566,"潼湖镇岗里村文化广场","惠州市仲恺高新区潼湖镇岗里村文化广场","村（居）级",2780,3000,"综合避险"]
[1567,"潼侨公园","惠州市仲恺高新区潼侨镇潼侨公园","镇（街）级",943,5000,"综合避险"]
[1568,"学溪居民委员会","惠州市仲恺高新区潼侨镇侨冠路与新华大道交接处康华路旁","村（居）级",300,60,"综合避险"]
[1569,"红岗居民委员会","惠州市仲恺高新区潼侨镇红岗社区居民委员会十队","村（居）级",200,30,"综合避险"]
[1570,"光明村民委员会","惠州市仲恺高新区潼侨镇光明村民委员会","村（居）级",400,50,"综合避险"]
[1571,"新华居民委员会","惠州市仲恺高新区侨安花园三街与侨安花园一街交叉口附近","村（居）级",150,50,"综合避险"]
[1572,"侨冠居民委员会","惠州市仲恺高新区潼侨镇侨光路116号","村（居）级",400,10,"综合避险"]
[1573,"菠萝山居民委员会","惠州市仲恺高新区潼侨镇侨冠中路131号","村（居）级",100,10,"综合避险"]
[1574,"宏村村民委员会","惠州市仲恺高新区潼侨镇宏村村居民委员会","村（居）级",550,50,"综合避险"]
[1575,"金星村民委员会","惠州市仲恺高新区潼侨镇金星村民委员会","村（居）级",400,80,"综合避险"]
[1576,"潼侨镇人民政府","惠州市仲恺高新区潼侨镇曙光东路48号","镇（街）级",2610,50,"综合避险"]
[1577,"东兴礼乐公园","惠州市仲恺高新区东江科技园东兴大道","镇（街）级",21000,10000,"综合避险"]
[1578,"惠州一中东江学校","惠州市仲恺高新区惠州东江高新科技产业园","镇（街）级",10000,1000,"综合避险"]
[1579,"惠南实验学校","惠州市仲恺高新区惠南科技园广泰路11号","镇（街）级",19860,2000,"综合避险"]
[1580,"惠南文化广场","惠州市仲恺高新区惠南科技园金达路","镇（街）级",4540,3000,"综合避险"]